Workbook

Sheet LIST
B3: الأصناف | C3: اسم المورد | D3: اسم المحطة | E3: اسم المشروع | F3: اسم المهندس المستلم | G3: اسم مهندس الجودة | H3: الشركة | I3: اسم مستلم الخام | J3: المحتويات والاجهاد | K3: اسمنت مقاوم | L3: اسمنت عادى | M3: سن1 | N3: سن2 | O3: مادة
B4: اسمنت عادى | C4: الرائد على | D4: محطة رقم 1 | E4: شمالية | F4: الطاهر | G4: يونس | H4: الصفوة | I4: محمد | J4: 180 / 260 | L4: 260 | M4: 0.4755244755 | N4: 0.3732876712 | O4: 2.291666667
B5: اسمنت مقاوم | C5: طه سن | D5: محطة رقم 2 | E5: جنوبية | F5: عساف | G5: وكيل | H5: بنيان | I5: على | J5: 200 / 310 | L5: 310 | M5: 0.3706293706 | N5: 0.4349315068 | O5: 2.708333333
B6: سن1 | C6: على سن | E6: سور | F6: صبحى | G6: رضا | J6: 300 / 400 | L6: 400 | M6: 0.4265734266 | N6: 0.3493150685 | O6: 2.5
B7: سن2 | C7: رضا اسمنت | E7: اسبانى | F7: سيد | J7: 350 / 400 | L7: 400 | M7: 0.3146853147 | N7: 0.4657534247 | O7: 2.5
B8: مادة | C8: على اسمنت | E8: مصنع بطاطس | F8: البشبيشى | J8: 200 / 300 | L8: 300 | M8: 0.3706293706 | N8: 0.4349315068 | O8: 2.708333333
C9: على مادة | E9: ثلاجات | F9: جمعه | J9: 250 / 350 | L9: 350 | M9: 0.3706293706 | N9: 0.4349315068 | O9: 2.5
E10: الماخذ | F10: الملط | J10: 200 / 350 | L10: 350 | M10: 0.3706293706 | N10: 0.4349315068 | O10: 2.5
E11: مبانى إدارية | F11: الباز | J11: 150/180 | L11: 180 | M11: 0.3916083916 | N11: 0.4657534247 | O11: 1.666666667
J12: 180/250 | K12: 250 | L12: 0 | M12: 0.4755244755 | N12: 0.3732876712 | O12: 2.291666667
J13: 300/400 | K13: 400 | L13: 0 | M13: 0.4265734266 | N13: 0.3493150685 | O13: 2.5
J14: 250/350 | K14: 350 | L14: 0 | M14: 0.3706293706 | N14: 0.4349315068 | O14: 2.5
J15: 200 / 300 | K15: 300 | L15: 0 | M15: 0.3706293706 | N15: 0.4349315068 | O15: 2.708333333
J16: 400/500 | K16: 0 | L16: 500 | M16: 0.4265734266 | N16: 0.3493150685 | O16: 2.5

Sheet التوريدات
B4: م | C4: رقم الاذن التوريد | D4: التاريخ التوريد | E4: اسم السائق | F4: رقم السيارة | G4: رقم المقطورة | H4: المورد | I4: الصنف | J4: الكمية الواردة | K4: اسم المستلم | L4: المحطة التوريد
A5: =TEXT(D5,"mmmm-yyyy") -> مايو-2024 | B5: 1 | C5: 1052 | D5: 2024-05-21 | E5: رضا | F5: 5213 | G5: 568 | H5: الرائد على | I5: سن1 | J5: 50 | K5: محمد | L5: محطة رقم 2
A6: =TEXT(D6,"mmmm-yyyy") -> مايو-2024 | B6: =IF(D6<>"",B5+1,"") -> 2 | C6: =+C5+1 -> 1053 | D6: 2024-05-22 | E6: رضا | F6: 5213 | G6: 568 | H6: الرائد على | I6: سن2 | J6: 65 | K6: على | L6: محطة رقم 2
A7: مايو-2024 | B7: =IF(D7<>"",B6+1,"") -> 3 | C7: =+C6+1 -> 1054 | D7: 2024-05-23 | E7: رضا | F7: 5213 | G7: 568 | H7: الرائد على | I7: سن1 | J7: 75 | K7: محمد | L7: محطة رقم 2
A8: مايو-2024 | B8: 4 | C8: 1055 | D8: 2024-05-24 | E8: رضا | F8: 5213 | G8: 568 | H8: الرائد على | I8: اسمنت مقاوم | J8: 100000 | K8: على | L8: محطة رقم 2
A9: مايو-2024 | B9: 5 | C9: 1056 | D9: 2024-05-25 | E9: رضا | F9: 5213 | G9: 568 | H9: الرائد على | I9: اسمنت مقاوم | J9: 200000 | K9: محمد | L9: محطة رقم 2
A10: مايو-2024 | B10: 6 | C10: 1057 | D10: 2024-05-26 | E10: رضا | F10: 5213 | G10: 568 | H10: الرائد على | I10: اسمنت عادى | J10: 125000 | K10: على | L10: محطة رقم 2
A11: مايو-2024 | B11: 7 | C11: 1058 | D11: 2024-05-27 | E11: رضا | F11: 5213 | G11: 568 | H11: الرائد على | I11: اسمنت عادى | J11: =125000*2 -> 250000 | K11: محمد | L11: محطة رقم 2
A12: مايو-2024 | B12: 8 | C12: 1059 | D12: 2024-05-27 | E12: رضا | F12: 5213 | G12: 568 | H12: الرائد على | I12: مادة | J12: 2000 | K12: على | L12: محطة رقم 2
A13: مايو-2024 | B13: 9 | C13: 1060 | D13: 2024-05-27 | E13: رضا | F13: 5213 | G13: 568 | I13: مادة | J13: 3000 | K13: محمد | L13: محطة رقم 2
A14: يناير-1900
A15: يناير-1900
A16: يناير-1900
A17: يناير-1900
A18: يناير-1900
A19: يناير-1900
A20: يناير-1900
A21: يناير-1900
A22: يناير-1900
A23: يناير-1900
A24: يناير-1900
A25: يناير-1900
A26: يناير-1900
A27: يناير-1900
A28: يناير-1900
A29: يناير-1900
A30: يناير-1900
A31: يناير-1900
A32: يناير-1900
A33: يناير-1900
A34: يناير-1900
A35: يناير-1900
A36: يناير-1900
A37: يناير-1900
A38: يناير-1900
A39: يناير-1900
A40: يناير-1900
A41: يناير-1900
A42: يناير-1900
A43: يناير-1900
A44: يناير-1900
A45: يناير-1900
A46: يناير-1900
A47: يناير-1900
A48: يناير-1900
A49: يناير-1900
A50: يناير-1900
A51: يناير-1900
A52: يناير-1900
A53: يناير-1900
A54: يناير-1900
A55: يناير-1900
A56: يناير-1900
A57: يناير-1900
A58: يناير-1900
A59: يناير-1900
A60: يناير-1900
A61: يناير-1900
A62: يناير-1900
A63: يناير-1900
A64: يناير-1900
A65: يناير-1900
A66: يناير-1900
A67: يناير-1900
A68: يناير-1900
A69: يناير-1900
A70: =TEXT(D70,"mmmm-yyyy") -> يناير-1900
A71: يناير-1900 | B71: =IF(D71<>"",B70+1,"") -> 
A72: يناير-1900
A73: يناير-1900
A74: يناير-1900
A75: يناير-1900
A76: يناير-1900
A77: يناير-1900
A78: يناير-1900
A79: يناير-1900
A80: يناير-1900
A81: يناير-1900
A82: يناير-1900
A83: يناير-1900
A84: يناير-1900
A85: يناير-1900
A86: يناير-1900
A87: يناير-1900
A88: يناير-1900
A89: يناير-1900
A90: يناير-1900
A91: يناير-1900
A92: يناير-1900
A93: يناير-1900
A94: يناير-1900
A95: يناير-1900
A96: يناير-1900
A97: يناير-1900
A98: يناير-1900
A99: يناير-1900
A100: يناير-1900
A101: يناير-1900
A102: يناير-1900
A103: يناير-1900
A104: يناير-1900
A105: يناير-1900
A106: يناير-1900
A107: يناير-1900
A108: يناير-1900
A109: يناير-1900
A110: يناير-1900
A111: يناير-1900
A112: يناير-1900
A113: يناير-1900
A114: يناير-1900
A115: يناير-1900
A116: يناير-1900
A117: يناير-1900
A118: يناير-1900
A119: يناير-1900
A120: يناير-1900
A121: يناير-1900
A122: يناير-1900
A123: يناير-1900
A124: يناير-1900
A125: يناير-1900
A126: يناير-1900
A127: يناير-1900
A128: يناير-1900
A129: يناير-1900
A130: يناير-1900
A131: يناير-1900
A132: يناير-1900
A133: يناير-1900
A134: =TEXT(D134,"mmmm-yyyy") -> يناير-1900
A135: يناير-1900 | B135: =IF(D135<>"",B134+1,"") -> 
A136: يناير-1900
B199: =IF(D199<>"",B198+1,"") -> 
B263: =IF(D263<>"",B262+1,"") -> 
B327: =IF(D327<>"",B326+1,"") -> 
B391: =IF(D391<>"",B390+1,"") -> 
B455: =IF(D455<>"",B454+1,"") -> 
B519: =IF(D519<>"",B518+1,"") -> 
B583: =IF(D583<>"",B582+1,"") -> 
B647: =IF(D647<>"",B646+1,"") -> 
B711: =IF(D711<>"",B710+1,"") -> 
B775: =IF(D775<>"",B774+1,"") -> 
B839: =IF(D839<>"",B838+1,"") -> 
B903: =IF(D903<>"",B902+1,"") -> 
B967: =IF(D967<>"",B966+1,"") -> 
B1031: =IF(D1031<>"",B1030+1,"") -> 
B1095: =IF(D1095<>"",B1094+1,"") -> 
B1159: =IF(D1159<>"",B1158+1,"") -> 

Sheet تقرير شهرى توريد
C4: الشهر | D4: اسمنت عادى | F4: اسمنت مقاوم | H4: سن1 | J4: سن2 | L4: مادة
D5: محطة رقم 1 | E5: محطة رقم 2 | F5: محطة رقم 1 | G5: محطة رقم 2 | H5: محطة رقم 1 | I5: محطة رقم 2 | J5: محطة رقم 1 | K5: محطة رقم 2 | L5: محطة رقم 1 | M5: محطة رقم 2
C6: 2024-01-01 | D6: =SUMIFS('التوريدات '!$J$5:$J$1300,'التوريدات '!$L$5:$L$1300,D$5,'التوريدات '!$I$5:$I$1300,D$4,'التوريدات '!$A$5:$A$1300,$C6) -> 0 | E6: =SUMIFS('التوريدات '!$J$5:$J$1300,'التوريدات '!$L$5:$L$1300,E$5,'التوريدات '!$I$5:$I$1300,D$4,'التوريدات '!$A$5:$A$1300,$C6) -> 0 | F6: =SUMIFS('التوريدات '!$J$5:$J$1300,'التوريدات '!$L$5:$L$1300,F$5,'التوريدات '!$I$5:$I$1300,F$4,'التوريدات '!$A$5:$A$1300,$C6) -> 0 | G6: =SUMIFS('التوريدات '!$J$5:$J$1300,'التوريدات '!$L$5:$L$1300,G$5,'التوريدات '!$I$5:$I$1300,F$4,'التوريدات '!$A$5:$A$1300,$C6) -> 0 | H6: =SUMIFS('التوريدات '!$J$5:$J$1300,'التوريدات '!$L$5:$L$1300,H$5,'التوريدات '!$I$5:$I$1300,H$4,'التوريدات '!$A$5:$A$1300,$C6) -> 0 | I6: =SUMIFS('التوريدات '!$J$5:$J$1300,'التوريدات '!$L$5:$L$1300,I$5,'التوريدات '!$I$5:$I$1300,H$4,'التوريدات '!$A$5:$A$1300,$C6) -> 0 | J6: =SUMIFS('التوريدات '!$J$5:$J$1300,'التوريدات '!$L$5:$L$1300,J$5,'التوريدات '!$I$5:$I$1300,J$4,'التوريدات '!$A$5:$A$1300,$C6) -> 0 | K6: =SUMIFS('التوريدات '!$J$5:$J$1300,'التوريدات '!$L$5:$L$1300,K$5,'التوريدات '!$I$5:$I$1300,J$4,'التوريدات '!$A$5:$A$1300,$C6) -> 0 | L6: =SUMIFS('التوريدات '!$J$5:$J$1300,'التوريدات '!$L$5:$L$1300,L$5,'التوريدات '!$I$5:$I$1300,L$4,'التوريدات '!$A$5:$A$1300,$C6) -> 0 | M6: =SUMIFS('التوريدات '!$J$5:$J$1300,'التوريدات '!$L$5:$L$1300,M$5,'التوريدات '!$I$5:$I$1300,L$4,'التوريدات '!$A$5:$A$1300,$C6) -> 0
C7: 2024-02-01 | D7: =SUMIFS('التوريدات '!$J$5:$J$1300,'التوريدات '!$L$5:$L$1300,D$5,'التوريدات '!$I$5:$I$1300,D$4,'التوريدات '!$A$5:$A$1300,$C7) -> 0 | E7: =SUMIFS('التوريدات '!$J$5:$J$1300,'التوريدات '!$L$5:$L$1300,E$5,'التوريدات '!$I$5:$I$1300,D$4,'التوريدات '!$A$5:$A$1300,$C7) -> 0 | F7: =SUMIFS('التوريدات '!$J$5:$J$1300,'التوريدات '!$L$5:$L$1300,F$5,'التوريدات '!$I$5:$I$1300,F$4,'التوريدات '!$A$5:$A$1300,$C7) -> 0 | G7: =SUMIFS('التوريدات '!$J$5:$J$1300,'التوريدات '!$L$5:$L$1300,G$5,'التوريدات '!$I$5:$I$1300,F$4,'التوريدات '!$A$5:$A$1300,$C7) -> 0 | H7: =SUMIFS('التوريدات '!$J$5:$J$1300,'التوريدات '!$L$5:$L$1300,H$5,'التوريدات '!$I$5:$I$1300,H$4,'التوريدات '!$A$5:$A$1300,$C7) -> 0 | I7: =SUMIFS('التوريدات '!$J$5:$J$1300,'التوريدات '!$L$5:$L$1300,I$5,'التوريدات '!$I$5:$I$1300,H$4,'التوريدات '!$A$5:$A$1300,$C7) -> 0 | J7: =SUMIFS('التوريدات '!$J$5:$J$1300,'التوريدات '!$L$5:$L$1300,J$5,'التوريدات '!$I$5:$I$1300,J$4,'التوريدات '!$A$5:$A$1300,$C7) -> 0 | K7: =SUMIFS('التوريدات '!$J$5:$J$1300,'التوريدات '!$L$5:$L$1300,K$5,'التوريدات '!$I$5:$I$1300,J$4,'التوريدات '!$A$5:$A$1300,$C7) -> 0 | L7: =SUMIFS('التوريدات '!$J$5:$J$1300,'التوريدات '!$L$5:$L$1300,L$5,'التوريدات '!$I$5:$I$1300,L$4,'التوريدات '!$A$5:$A$1300,$C7) -> 0 | M7: =SUMIFS('التوريدات '!$J$5:$J$1300,'التوريدات '!$L$5:$L$1300,M$5,'التوريدات '!$I$5:$I$1300,L$4,'التوريدات '!$A$5:$A$1300,$C7) -> 0
C8: 2024-03-01 | D8: =SUMIFS('التوريدات '!$J$5:$J$1300,'التوريدات '!$L$5:$L$1300,D$5,'التوريدات '!$I$5:$I$1300,D$4,'التوريدات '!$A$5:$A$1300,$C8) -> 0 | E8: =SUMIFS('التوريدات '!$J$5:$J$1300,'التوريدات '!$L$5:$L$1300,E$5,'التوريدات '!$I$5:$I$1300,D$4,'التوريدات '!$A$5:$A$1300,$C8) -> 0 | F8: =SUMIFS('التوريدات '!$J$5:$J$1300,'التوريدات '!$L$5:$L$1300,F$5,'التوريدات '!$I$5:$I$1300,F$4,'التوريدات '!$A$5:$A$1300,$C8) -> 0 | G8: =SUMIFS('التوريدات '!$J$5:$J$1300,'التوريدات '!$L$5:$L$1300,G$5,'التوريدات '!$I$5:$I$1300,F$4,'التوريدات '!$A$5:$A$1300,$C8) -> 0 | H8: =SUMIFS('التوريدات '!$J$5:$J$1300,'التوريدات '!$L$5:$L$1300,H$5,'التوريدات '!$I$5:$I$1300,H$4,'التوريدات '!$A$5:$A$1300,$C8) -> 0 | I8: =SUMIFS('التوريدات '!$J$5:$J$1300,'التوريدات '!$L$5:$L$1300,I$5,'التوريدات '!$I$5:$I$1300,H$4,'التوريدات '!$A$5:$A$1300,$C8) -> 0 | J8: =SUMIFS('التوريدات '!$J$5:$J$1300,'التوريدات '!$L$5:$L$1300,J$5,'التوريدات '!$I$5:$I$1300,J$4,'التوريدات '!$A$5:$A$1300,$C8) -> 0 | K8: =SUMIFS('التوريدات '!$J$5:$J$1300,'التوريدات '!$L$5:$L$1300,K$5,'التوريدات '!$I$5:$I$1300,J$4,'التوريدات '!$A$5:$A$1300,$C8) -> 0 | L8: =SUMIFS('التوريدات '!$J$5:$J$1300,'التوريدات '!$L$5:$L$1300,L$5,'التوريدات '!$I$5:$I$1300,L$4,'التوريدات '!$A$5:$A$1300,$C8) -> 0 | M8: =SUMIFS('التوريدات '!$J$5:$J$1300,'التوريدات '!$L$5:$L$1300,M$5,'التوريدات '!$I$5:$I$1300,L$4,'التوريدات '!$A$5:$A$1300,$C8) -> 0
C9: 2024-04-01 | D9: =SUMIFS('التوريدات '!$J$5:$J$1300,'التوريدات '!$L$5:$L$1300,D$5,'التوريدات '!$I$5:$I$1300,D$4,'التوريدات '!$A$5:$A$1300,$C9) -> 0 | E9: =SUMIFS('التوريدات '!$J$5:$J$1300,'التوريدات '!$L$5:$L$1300,E$5,'التوريدات '!$I$5:$I$1300,D$4,'التوريدات '!$A$5:$A$1300,$C9) -> 0 | F9: =SUMIFS('التوريدات '!$J$5:$J$1300,'التوريدات '!$L$5:$L$1300,F$5,'التوريدات '!$I$5:$I$1300,F$4,'التوريدات '!$A$5:$A$1300,$C9) -> 0 | G9: =SUMIFS('التوريدات '!$J$5:$J$1300,'التوريدات '!$L$5:$L$1300,G$5,'التوريدات '!$I$5:$I$1300,F$4,'التوريدات '!$A$5:$A$1300,$C9) -> 0 | H9: =SUMIFS('التوريدات '!$J$5:$J$1300,'التوريدات '!$L$5:$L$1300,H$5,'التوريدات '!$I$5:$I$1300,H$4,'التوريدات '!$A$5:$A$1300,$C9) -> 0 | I9: =SUMIFS('التوريدات '!$J$5:$J$1300,'التوريدات '!$L$5:$L$1300,I$5,'التوريدات '!$I$5:$I$1300,H$4,'التوريدات '!$A$5:$A$1300,$C9) -> 0 | J9: =SUMIFS('التوريدات '!$J$5:$J$1300,'التوريدات '!$L$5:$L$1300,J$5,'التوريدات '!$I$5:$I$1300,J$4,'التوريدات '!$A$5:$A$1300,$C9) -> 0 | K9: =SUMIFS('التوريدات '!$J$5:$J$1300,'التوريدات '!$L$5:$L$1300,K$5,'التوريدات '!$I$5:$I$1300,J$4,'التوريدات '!$A$5:$A$1300,$C9) -> 0 | L9: =SUMIFS('التوريدات '!$J$5:$J$1300,'التوريدات '!$L$5:$L$1300,L$5,'التوريدات '!$I$5:$I$1300,L$4,'التوريدات '!$A$5:$A$1300,$C9) -> 0 | M9: =SUMIFS('التوريدات '!$J$5:$J$1300,'التوريدات '!$L$5:$L$1300,M$5,'التوريدات '!$I$5:$I$1300,L$4,'التوريدات '!$A$5:$A$1300,$C9) -> 0
C10: 2024-05-01 | D10: =SUMIFS('التوريدات '!$J$5:$J$1300,'التوريدات '!$L$5:$L$1300,D$5,'التوريدات '!$I$5:$I$1300,D$4,'التوريدات '!$A$5:$A$1300,$C10) -> 0 | E10: =SUMIFS('التوريدات '!$J$5:$J$1300,'التوريدات '!$L$5:$L$1300,E$5,'التوريدات '!$I$5:$I$1300,D$4,'التوريدات '!$A$5:$A$1300,$C10) -> 375000 | F10: =SUMIFS('التوريدات '!$J$5:$J$1300,'التوريدات '!$L$5:$L$1300,F$5,'التوريدات '!$I$5:$I$1300,F$4,'التوريدات '!$A$5:$A$1300,$C10) -> 0 | G10: =SUMIFS('التوريدات '!$J$5:$J$1300,'التوريدات '!$L$5:$L$1300,G$5,'التوريدات '!$I$5:$I$1300,F$4,'التوريدات '!$A$5:$A$1300,$C10) -> 300000 | H10: =SUMIFS('التوريدات '!$J$5:$J$1300,'التوريدات '!$L$5:$L$1300,H$5,'التوريدات '!$I$5:$I$1300,H$4,'التوريدات '!$A$5:$A$1300,$C10) -> 0 | I10: =SUMIFS('التوريدات '!$J$5:$J$1300,'التوريدات '!$L$5:$L$1300,I$5,'التوريدات '!$I$5:$I$1300,H$4,'التوريدات '!$A$5:$A$1300,$C10) -> 125 | J10: =SUMIFS('التوريدات '!$J$5:$J$1300,'التوريدات '!$L$5:$L$1300,J$5,'التوريدات '!$I$5:$I$1300,J$4,'التوريدات '!$A$5:$A$1300,$C10) -> 0 | K10: =SUMIFS('التوريدات '!$J$5:$J$1300,'التوريدات '!$L$5:$L$1300,K$5,'التوريدات '!$I$5:$I$1300,J$4,'التوريدات '!$A$5:$A$1300,$C10) -> 65 | L10: =SUMIFS('التوريدات '!$J$5:$J$1300,'التوريدات '!$L$5:$L$1300,L$5,'التوريدات '!$I$5:$I$1300,L$4,'التوريدات '!$A$5:$A$1300,$C10) -> 0 | M10: =SUMIFS('التوريدات '!$J$5:$J$1300,'التوريدات '!$L$5:$L$1300,M$5,'التوريدات '!$I$5:$I$1300,L$4,'التوريدات '!$A$5:$A$1300,$C10) -> 5000
C11: 2024-06-01 | D11: =SUMIFS('التوريدات '!$J$5:$J$1300,'التوريدات '!$L$5:$L$1300,D$5,'التوريدات '!$I$5:$I$1300,D$4,'التوريدات '!$A$5:$A$1300,$C11) -> 0 | E11: =SUMIFS('التوريدات '!$J$5:$J$1300,'التوريدات '!$L$5:$L$1300,E$5,'التوريدات '!$I$5:$I$1300,D$4,'التوريدات '!$A$5:$A$1300,$C11) -> 0 | F11: =SUMIFS('التوريدات '!$J$5:$J$1300,'التوريدات '!$L$5:$L$1300,F$5,'التوريدات '!$I$5:$I$1300,F$4,'التوريدات '!$A$5:$A$1300,$C11) -> 0 | G11: =SUMIFS('التوريدات '!$J$5:$J$1300,'التوريدات '!$L$5:$L$1300,G$5,'التوريدات '!$I$5:$I$1300,F$4,'التوريدات '!$A$5:$A$1300,$C11) -> 0 | H11: =SUMIFS('التوريدات '!$J$5:$J$1300,'التوريدات '!$L$5:$L$1300,H$5,'التوريدات '!$I$5:$I$1300,H$4,'التوريدات '!$A$5:$A$1300,$C11) -> 0 | I11: =SUMIFS('التوريدات '!$J$5:$J$1300,'التوريدات '!$L$5:$L$1300,I$5,'التوريدات '!$I$5:$I$1300,H$4,'التوريدات '!$A$5:$A$1300,$C11) -> 0 | J11: =SUMIFS('التوريدات '!$J$5:$J$1300,'التوريدات '!$L$5:$L$1300,J$5,'التوريدات '!$I$5:$I$1300,J$4,'التوريدات '!$A$5:$A$1300,$C11) -> 0 | K11: =SUMIFS('التوريدات '!$J$5:$J$1300,'التوريدات '!$L$5:$L$1300,K$5,'التوريدات '!$I$5:$I$1300,J$4,'التوريدات '!$A$5:$A$1300,$C11) -> 0 | L11: =SUMIFS('التوريدات '!$J$5:$J$1300,'التوريدات '!$L$5:$L$1300,L$5,'التوريدات '!$I$5:$I$1300,L$4,'التوريدات '!$A$5:$A$1300,$C11) -> 0 | M11: =SUMIFS('التوريدات '!$J$5:$J$1300,'التوريدات '!$L$5:$L$1300,M$5,'التوريدات '!$I$5:$I$1300,L$4,'التوريدات '!$A$5:$A$1300,$C11) -> 0
C12: 2024-07-01 | D12: =SUMIFS('التوريدات '!$J$5:$J$1300,'التوريدات '!$L$5:$L$1300,D$5,'التوريدات '!$I$5:$I$1300,D$4,'التوريدات '!$A$5:$A$1300,$C12) -> 0 | E12: =SUMIFS('التوريدات '!$J$5:$J$1300,'التوريدات '!$L$5:$L$1300,E$5,'التوريدات '!$I$5:$I$1300,D$4,'التوريدات '!$A$5:$A$1300,$C12) -> 0 | F12: =SUMIFS('التوريدات '!$J$5:$J$1300,'التوريدات '!$L$5:$L$1300,F$5,'التوريدات '!$I$5:$I$1300,F$4,'التوريدات '!$A$5:$A$1300,$C12) -> 0 | G12: =SUMIFS('التوريدات '!$J$5:$J$1300,'التوريدات '!$L$5:$L$1300,G$5,'التوريدات '!$I$5:$I$1300,F$4,'التوريدات '!$A$5:$A$1300,$C12) -> 0 | H12: =SUMIFS('التوريدات '!$J$5:$J$1300,'التوريدات '!$L$5:$L$1300,H$5,'التوريدات '!$I$5:$I$1300,H$4,'التوريدات '!$A$5:$A$1300,$C12) -> 0 | I12: =SUMIFS('التوريدات '!$J$5:$J$1300,'التوريدات '!$L$5:$L$1300,I$5,'التوريدات '!$I$5:$I$1300,H$4,'التوريدات '!$A$5:$A$1300,$C12) -> 0 | J12: =SUMIFS('التوريدات '!$J$5:$J$1300,'التوريدات '!$L$5:$L$1300,J$5,'التوريدات '!$I$5:$I$1300,J$4,'التوريدات '!$A$5:$A$1300,$C12) -> 0 | K12: =SUMIFS('التوريدات '!$J$5:$J$1300,'التوريدات '!$L$5:$L$1300,K$5,'التوريدات '!$I$5:$I$1300,J$4,'التوريدات '!$A$5:$A$1300,$C12) -> 0 | L12: =SUMIFS('التوريدات '!$J$5:$J$1300,'التوريدات '!$L$5:$L$1300,L$5,'التوريدات '!$I$5:$I$1300,L$4,'التوريدات '!$A$5:$A$1300,$C12) -> 0 | M12: =SUMIFS('التوريدات '!$J$5:$J$1300,'التوريدات '!$L$5:$L$1300,M$5,'التوريدات '!$I$5:$I$1300,L$4,'التوريدات '!$A$5:$A$1300,$C12) -> 0
C13: 2024-08-01 | D13: =SUMIFS('التوريدات '!$J$5:$J$1300,'التوريدات '!$L$5:$L$1300,D$5,'التوريدات '!$I$5:$I$1300,D$4,'التوريدات '!$A$5:$A$1300,$C13) -> 0 | E13: =SUMIFS('التوريدات '!$J$5:$J$1300,'التوريدات '!$L$5:$L$1300,E$5,'التوريدات '!$I$5:$I$1300,D$4,'التوريدات '!$A$5:$A$1300,$C13) -> 0 | F13: =SUMIFS('التوريدات '!$J$5:$J$1300,'التوريدات '!$L$5:$L$1300,F$5,'التوريدات '!$I$5:$I$1300,F$4,'التوريدات '!$A$5:$A$1300,$C13) -> 0 | G13: =SUMIFS('التوريدات '!$J$5:$J$1300,'التوريدات '!$L$5:$L$1300,G$5,'التوريدات '!$I$5:$I$1300,F$4,'التوريدات '!$A$5:$A$1300,$C13) -> 0 | H13: =SUMIFS('التوريدات '!$J$5:$J$1300,'التوريدات '!$L$5:$L$1300,H$5,'التوريدات '!$I$5:$I$1300,H$4,'التوريدات '!$A$5:$A$1300,$C13) -> 0 | I13: =SUMIFS('التوريدات '!$J$5:$J$1300,'التوريدات '!$L$5:$L$1300,I$5,'التوريدات '!$I$5:$I$1300,H$4,'التوريدات '!$A$5:$A$1300,$C13) -> 0 | J13: =SUMIFS('التوريدات '!$J$5:$J$1300,'التوريدات '!$L$5:$L$1300,J$5,'التوريدات '!$I$5:$I$1300,J$4,'التوريدات '!$A$5:$A$1300,$C13) -> 0 | K13: =SUMIFS('التوريدات '!$J$5:$J$1300,'التوريدات '!$L$5:$L$1300,K$5,'التوريدات '!$I$5:$I$1300,J$4,'التوريدات '!$A$5:$A$1300,$C13) -> 0 | L13: =SUMIFS('التوريدات '!$J$5:$J$1300,'التوريدات '!$L$5:$L$1300,L$5,'التوريدات '!$I$5:$I$1300,L$4,'التوريدات '!$A$5:$A$1300,$C13) -> 0 | M13: =SUMIFS('التوريدات '!$J$5:$J$1300,'التوريدات '!$L$5:$L$1300,M$5,'التوريدات '!$I$5:$I$1300,L$4,'التوريدات '!$A$5:$A$1300,$C13) -> 0
C14: 2024-09-01 | D14: =SUMIFS('التوريدات '!$J$5:$J$1300,'التوريدات '!$L$5:$L$1300,D$5,'التوريدات '!$I$5:$I$1300,D$4,'التوريدات '!$A$5:$A$1300,$C14) -> 0 | E14: =SUMIFS('التوريدات '!$J$5:$J$1300,'التوريدات '!$L$5:$L$1300,E$5,'التوريدات '!$I$5:$I$1300,D$4,'التوريدات '!$A$5:$A$1300,$C14) -> 0 | F14: =SUMIFS('التوريدات '!$J$5:$J$1300,'التوريدات '!$L$5:$L$1300,F$5,'التوريدات '!$I$5:$I$1300,F$4,'التوريدات '!$A$5:$A$1300,$C14) -> 0 | G14: =SUMIFS('التوريدات '!$J$5:$J$1300,'التوريدات '!$L$5:$L$1300,G$5,'التوريدات '!$I$5:$I$1300,F$4,'التوريدات '!$A$5:$A$1300,$C14) -> 0 | H14: =SUMIFS('التوريدات '!$J$5:$J$1300,'التوريدات '!$L$5:$L$1300,H$5,'التوريدات '!$I$5:$I$1300,H$4,'التوريدات '!$A$5:$A$1300,$C14) -> 0 | I14: =SUMIFS('التوريدات '!$J$5:$J$1300,'التوريدات '!$L$5:$L$1300,I$5,'التوريدات '!$I$5:$I$1300,H$4,'التوريدات '!$A$5:$A$1300,$C14) -> 0 | J14: =SUMIFS('التوريدات '!$J$5:$J$1300,'التوريدات '!$L$5:$L$1300,J$5,'التوريدات '!$I$5:$I$1300,J$4,'التوريدات '!$A$5:$A$1300,$C14) -> 0 | K14: =SUMIFS('التوريدات '!$J$5:$J$1300,'التوريدات '!$L$5:$L$1300,K$5,'التوريدات '!$I$5:$I$1300,J$4,'التوريدات '!$A$5:$A$1300,$C14) -> 0 | L14: =SUMIFS('التوريدات '!$J$5:$J$1300,'التوريدات '!$L$5:$L$1300,L$5,'التوريدات '!$I$5:$I$1300,L$4,'التوريدات '!$A$5:$A$1300,$C14) -> 0 | M14: =SUMIFS('التوريدات '!$J$5:$J$1300,'التوريدات '!$L$5:$L$1300,M$5,'التوريدات '!$I$5:$I$1300,L$4,'التوريدات '!$A$5:$A$1300,$C14) -> 0
C15: 2024-10-01 | D15: =SUMIFS('التوريدات '!$J$5:$J$1300,'التوريدات '!$L$5:$L$1300,D$5,'التوريدات '!$I$5:$I$1300,D$4,'التوريدات '!$A$5:$A$1300,$C15) -> 0 | E15: =SUMIFS('التوريدات '!$J$5:$J$1300,'التوريدات '!$L$5:$L$1300,E$5,'التوريدات '!$I$5:$I$1300,D$4,'التوريدات '!$A$5:$A$1300,$C15) -> 0 | F15: =SUMIFS('التوريدات '!$J$5:$J$1300,'التوريدات '!$L$5:$L$1300,F$5,'التوريدات '!$I$5:$I$1300,F$4,'التوريدات '!$A$5:$A$1300,$C15) -> 0 | G15: =SUMIFS('التوريدات '!$J$5:$J$1300,'التوريدات '!$L$5:$L$1300,G$5,'التوريدات '!$I$5:$I$1300,F$4,'التوريدات '!$A$5:$A$1300,$C15) -> 0 | H15: =SUMIFS('التوريدات '!$J$5:$J$1300,'التوريدات '!$L$5:$L$1300,H$5,'التوريدات '!$I$5:$I$1300,H$4,'التوريدات '!$A$5:$A$1300,$C15) -> 0 | I15: =SUMIFS('التوريدات '!$J$5:$J$1300,'التوريدات '!$L$5:$L$1300,I$5,'التوريدات '!$I$5:$I$1300,H$4,'التوريدات '!$A$5:$A$1300,$C15) -> 0 | J15: =SUMIFS('التوريدات '!$J$5:$J$1300,'التوريدات '!$L$5:$L$1300,J$5,'التوريدات '!$I$5:$I$1300,J$4,'التوريدات '!$A$5:$A$1300,$C15) -> 0 | K15: =SUMIFS('التوريدات '!$J$5:$J$1300,'التوريدات '!$L$5:$L$1300,K$5,'التوريدات '!$I$5:$I$1300,J$4,'التوريدات '!$A$5:$A$1300,$C15) -> 0 | L15: =SUMIFS('التوريدات '!$J$5:$J$1300,'التوريدات '!$L$5:$L$1300,L$5,'التوريدات '!$I$5:$I$1300,L$4,'التوريدات '!$A$5:$A$1300,$C15) -> 0 | M15: =SUMIFS('التوريدات '!$J$5:$J$1300,'التوريدات '!$L$5:$L$1300,M$5,'التوريدات '!$I$5:$I$1300,L$4,'التوريدات '!$A$5:$A$1300,$C15) -> 0
C16: 2024-11-01 | D16: =SUMIFS('التوريدات '!$J$5:$J$1300,'التوريدات '!$L$5:$L$1300,D$5,'التوريدات '!$I$5:$I$1300,D$4,'التوريدات '!$A$5:$A$1300,$C16) -> 0 | E16: =SUMIFS('التوريدات '!$J$5:$J$1300,'التوريدات '!$L$5:$L$1300,E$5,'التوريدات '!$I$5:$I$1300,D$4,'التوريدات '!$A$5:$A$1300,$C16) -> 0 | F16: =SUMIFS('التوريدات '!$J$5:$J$1300,'التوريدات '!$L$5:$L$1300,F$5,'التوريدات '!$I$5:$I$1300,F$4,'التوريدات '!$A$5:$A$1300,$C16) -> 0 | G16: =SUMIFS('التوريدات '!$J$5:$J$1300,'التوريدات '!$L$5:$L$1300,G$5,'التوريدات '!$I$5:$I$1300,F$4,'التوريدات '!$A$5:$A$1300,$C16) -> 0 | H16: =SUMIFS('التوريدات '!$J$5:$J$1300,'التوريدات '!$L$5:$L$1300,H$5,'التوريدات '!$I$5:$I$1300,H$4,'التوريدات '!$A$5:$A$1300,$C16) -> 0 | I16: =SUMIFS('التوريدات '!$J$5:$J$1300,'التوريدات '!$L$5:$L$1300,I$5,'التوريدات '!$I$5:$I$1300,H$4,'التوريدات '!$A$5:$A$1300,$C16) -> 0 | J16: =SUMIFS('التوريدات '!$J$5:$J$1300,'التوريدات '!$L$5:$L$1300,J$5,'التوريدات '!$I$5:$I$1300,J$4,'التوريدات '!$A$5:$A$1300,$C16) -> 0 | K16: =SUMIFS('التوريدات '!$J$5:$J$1300,'التوريدات '!$L$5:$L$1300,K$5,'التوريدات '!$I$5:$I$1300,J$4,'التوريدات '!$A$5:$A$1300,$C16) -> 0 | L16: =SUMIFS('التوريدات '!$J$5:$J$1300,'التوريدات '!$L$5:$L$1300,L$5,'التوريدات '!$I$5:$I$1300,L$4,'التوريدات '!$A$5:$A$1300,$C16) -> 0 | M16: =SUMIFS('التوريدات '!$J$5:$J$1300,'التوريدات '!$L$5:$L$1300,M$5,'التوريدات '!$I$5:$I$1300,L$4,'التوريدات '!$A$5:$A$1300,$C16) -> 0
C17: 2024-12-01 | D17: =SUMIFS('التوريدات '!$J$5:$J$1300,'التوريدات '!$L$5:$L$1300,D$5,'التوريدات '!$I$5:$I$1300,D$4,'التوريدات '!$A$5:$A$1300,$C17) -> 0 | E17: =SUMIFS('التوريدات '!$J$5:$J$1300,'التوريدات '!$L$5:$L$1300,E$5,'التوريدات '!$I$5:$I$1300,D$4,'التوريدات '!$A$5:$A$1300,$C17) -> 0 | F17: =SUMIFS('التوريدات '!$J$5:$J$1300,'التوريدات '!$L$5:$L$1300,F$5,'التوريدات '!$I$5:$I$1300,F$4,'التوريدات '!$A$5:$A$1300,$C17) -> 0 | G17: =SUMIFS('التوريدات '!$J$5:$J$1300,'التوريدات '!$L$5:$L$1300,G$5,'التوريدات '!$I$5:$I$1300,F$4,'التوريدات '!$A$5:$A$1300,$C17) -> 0 | H17: =SUMIFS('التوريدات '!$J$5:$J$1300,'التوريدات '!$L$5:$L$1300,H$5,'التوريدات '!$I$5:$I$1300,H$4,'التوريدات '!$A$5:$A$1300,$C17) -> 0 | I17: =SUMIFS('التوريدات '!$J$5:$J$1300,'التوريدات '!$L$5:$L$1300,I$5,'التوريدات '!$I$5:$I$1300,H$4,'التوريدات '!$A$5:$A$1300,$C17) -> 0 | J17: =SUMIFS('التوريدات '!$J$5:$J$1300,'التوريدات '!$L$5:$L$1300,J$5,'التوريدات '!$I$5:$I$1300,J$4,'التوريدات '!$A$5:$A$1300,$C17) -> 0 | K17: =SUMIFS('التوريدات '!$J$5:$J$1300,'التوريدات '!$L$5:$L$1300,K$5,'التوريدات '!$I$5:$I$1300,J$4,'التوريدات '!$A$5:$A$1300,$C17) -> 0 | L17: =SUMIFS('التوريدات '!$J$5:$J$1300,'التوريدات '!$L$5:$L$1300,L$5,'التوريدات '!$I$5:$I$1300,L$4,'التوريدات '!$A$5:$A$1300,$C17) -> 0 | M17: =SUMIFS('التوريدات '!$J$5:$J$1300,'التوريدات '!$L$5:$L$1300,M$5,'التوريدات '!$I$5:$I$1300,L$4,'التوريدات '!$A$5:$A$1300,$C17) -> 0
C18: الاجمالى المحطات | D18: =SUM(D6:D17) -> 0 | E18: =SUM(E6:E17) -> 375000 | F18: 0 | G18: 300000 | H18: 0 | I18: 125 | J18: 0 | K18: 65 | L18: 0 | M18: 5000
C19: الاجمالى الكلى | D19: =+D18+E18 -> 375000 | F19: =+F18+G18 -> 300000 | H19: =+H18+I18 -> 125 | J19: =+J18+K18 -> 65 | L19: =+L18+M18 -> 5000

Sheet تقرير عام توريد
B2: رقم الاذن التوريد | C2: التاريخ التوريد | D2: المورد | E2: الصنف | F2: المحطة التوريد | G2: التاريخ التوريد | H2: التاريخ التوريد
D3: الرائد على | E3: سن1 | G3: =">="&B6 -> >=45417 | H3: ="<="&C6 -> <=45461
B5: التاريخ توريد من | C5: التاريخ توريد الى
B6: 2024-05-05 | C6: 2024-06-18 | K6: الكمية الواردة
K7: =SUBTOTAL(9,J10:J16000) -> 125
B9: م | C9: رقم الاذن التوريد | D9: التاريخ التوريد | E9: اسم السائق | F9: رقم السيارة | G9: رقم المقطورة | H9: المورد | I9: الصنف | J9: الكمية الواردة | K9: اسم المستلم | L9: المحطة التوريد
B10: 1 | C10: 1052 | D10: 2024-05-21 | E10: رضا | F10: 5213 | G10: 568 | H10: الرائد على | I10: سن1 | J10: 50 | K10: محمد | L10: محطة رقم 2
B11: 3 | C11: 1054 | D11: 2024-05-23 | E11: رضا | F11: 5213 | G11: 568 | H11: الرائد على | I11: سن1 | J11: 75 | K11: محمد | L11: محطة رقم 2

Sheet التصنيع
Q2: اسمنت مقاوم | S2: اسمنت عادى | U2: سن1 | W2: سن2 | X2: مادة إضافية | Y2: مادة | AA2: اجمالى المادة
Q3: =SUBTOTAL(9,Q6:Q16000) -> 17600 | S3: =SUBTOTAL(9,S6:S16000) -> 253880 | U3: 316.5384615 | W3: 305.4486301 | X3: 70 | Y3: 1984.791667 | AA3: 2054.791667
A5: الشهر | B5: م | C5: التاريخ التصنيع | D5: رقم الاذن التصنيع | E5: رقم السيارة | F5: اسم السائق | G5: ساعة الخروج | H5: ساعة الوصول | I5: المحطة التصنيع | J5: مهندس الجودة | K5: اسم الشركة | L5: اسم المشروع | M5: المحتوى | N5: كمية الخرسانة | O5: الوحدة | P5: 1 | Q5: اسمنت مقاوم | R5: 2 | S5: اسمنت عادى | T5: 3 | U5: سن1 | V5: 4 | W5: سن2 | X5: مادة إضافية | Y5: مادة | Z5: 5 | AA5: اجمالى المادة | AB5: =+'تقرير عام تصنيع'!L11 -> المحتوى | AC5: اسمنت مقاوم | AD5: اسمنت عادى | AE5: سن1 | AF5: سن2 | AG5: مادة
A6: =TEXT(C6,"mmmm") -> مايو | B6: 1 | C6: 2024-05-21 | D6: 5021 | E6: 2523 | F6: محمود | G6: 22:00:00 | H6: 22:25:00 | I6: محطة رقم 1 | J6: يونس | K6: الصفوة | L6: جنوبية | M6: 200 / 300 | N6: 200 | O6: "م2" | P6: اسمنت مقاوم | Q6: =+$N6*AC6 -> 0 | R6: =+S5 -> اسمنت عادى | S6: =+$N6*AD6 -> 60000 | T6: =+U5 -> سن1 | U6: =+$N6*AE6 -> 74.12587413 | V6: =+W5 -> سن2 | W6: =+$N6*AF6 -> 86.98630137 | X6: 50 | Y6: =+$N6*AG6 -> 541.6666667 | Z6: =+Y5 -> مادة | AA6: =+X6+Y6 -> 591.6666667 | AB6: =+M6 -> 200 / 300 | AC6: =VLOOKUP($AB6,LIST!$J$3:$O$190,2,0) -> 0 | AD6: =VLOOKUP($AB6,LIST!$J$3:$O$1900,3,0) -> 300 | AE6: =VLOOKUP($AB6,LIST!$J$3:$O$1900,4,0) -> 0.3706293706 | AF6: =VLOOKUP($AB6,LIST!$J$3:$O$1900,5,0) -> 0.4349315068 | AG6: =VLOOKUP($AB6,LIST!$J$3:$O$1900,6,0) -> 2.708333333
A7: مايو | B7: =IF(C7<>"",B6+1,"") -> 2 | C7: 2024-05-21 | D7: 5022 | E7: 2523 | F7: محمود | G7: 22:00:00 | H7: 22:25:00 | I7: محطة رقم 2 | J7: يونس | K7: الصفوة | L7: جنوبية | M7: 180 / 260 | N7: 23 | O7: "م2" | P7: =+P6 -> اسمنت مقاوم | Q7: 0 | R7: =+R6 -> اسمنت عادى | S7: 5980 | T7: =+T6 -> سن1 | U7: 10.93706294 | V7: =+V6 -> سن2 | W7: 8.585616438 | X7: 20 | Y7: =+$N7*AG7 -> 52.70833333 | Z7: =+Z6 -> مادة | AA7: =+X7+Y7 -> 72.70833333 | AB7: 180 / 260 | AC7: =VLOOKUP($AB7,LIST!$J$3:$O$190,2,0) -> 0 | AD7: =VLOOKUP($AB7,LIST!$J$3:$O$1900,3,0) -> 260 | AE7: =VLOOKUP($AB7,LIST!$J$3:$O$1900,4,0) -> 0.4755244755 | AF7: =VLOOKUP($AB7,LIST!$J$3:$O$1900,5,0) -> 0.3732876712 | AG7: =VLOOKUP($AB7,LIST!$J$3:$O$1900,6,0) -> 2.291666667
A8: مايو | B8: =IF(C8<>"",B7+1,"") -> 3 | C8: 2024-05-21 | D8: 5023 | E8: 2523 | F8: محمود | G8: 22:00:00 | H8: 22:25:00 | I8: محطة رقم 1 | J8: يونس | K8: الصفوة | L8: جنوبية | M8: 200 / 350 | N8: 12 | O8: "م2" | P8: =+P7 -> اسمنت مقاوم | Q8: 0 | R8: =+R7 -> اسمنت عادى | S8: 4200 | T8: =+T7 -> سن1 | U8: 4.447552448 | V8: =+V7 -> سن2 | W8: 5.219178082 | Y8: 30 | Z8: =+Z7 -> مادة | AA8: 30 | AB8: 200 / 350 | AC8: =VLOOKUP($AB8,LIST!$J$3:$O$190,2,0) -> 0 | AD8: =VLOOKUP($AB8,LIST!$J$3:$O$1900,3,0) -> 350 | AE8: =VLOOKUP($AB8,LIST!$J$3:$O$1900,4,0) -> 0.3706293706 | AF8: =VLOOKUP($AB8,LIST!$J$3:$O$1900,5,0) -> 0.4349315068 | AG8: =VLOOKUP($AB8,LIST!$J$3:$O$1900,6,0) -> 2.5
A9: مايو | B9: 4 | C9: 2024-05-21 | D9: 5024 | E9: 2523 | F9: محمود | G9: 22:00:00 | H9: 22:25:00 | I9: محطة رقم 2 | J9: يونس | K9: الصفوة | L9: جنوبية | M9: 300 / 400 | N9: 15 | O9: "م2" | P9: اسمنت مقاوم | Q9: 0 | R9: اسمنت عادى | S9: 6000 | T9: سن1 | U9: 6.398601399 | V9: سن2 | W9: 5.239726027 | Y9: 37.5 | Z9: مادة | AA9: 37.5 | AB9: 300 / 400 | AC9: =VLOOKUP($AB9,LIST!$J$3:$O$190,2,0) -> 0 | AD9: =VLOOKUP($AB9,LIST!$J$3:$O$1900,3,0) -> 400 | AE9: =VLOOKUP($AB9,LIST!$J$3:$O$1900,4,0) -> 0.4265734266 | AF9: =VLOOKUP($AB9,LIST!$J$3:$O$1900,5,0) -> 0.3493150685 | AG9: =VLOOKUP($AB9,LIST!$J$3:$O$1900,6,0) -> 2.5
A10: مايو | B10: 5 | C10: 2024-05-21 | D10: 5025 | E10: 2352 | F10: على | G10: 22:00:00 | H10: 22:25:00 | I10: محطة رقم 1 | J10: يونس | K10: الصفوة | L10: جنوبية | M10: 250 / 350 | N10: 20 | O10: "م2" | P10: اسمنت مقاوم | Q10: 0 | R10: اسمنت عادى | S10: 7000 | T10: سن1 | U10: 7.412587413 | V10: سن2 | W10: 8.698630137 | Y10: 50 | Z10: مادة | AA10: 50 | AB10: 250 / 350 | AC10: =VLOOKUP($AB10,LIST!$J$3:$O$190,2,0) -> 0 | AD10: =VLOOKUP($AB10,LIST!$J$3:$O$1900,3,0) -> 350 | AE10: =VLOOKUP($AB10,LIST!$J$3:$O$1900,4,0) -> 0.3706293706 | AF10: =VLOOKUP($AB10,LIST!$J$3:$O$1900,5,0) -> 0.4349315068 | AG10: =VLOOKUP($AB10,LIST!$J$3:$O$1900,6,0) -> 2.5
A11: مايو | B11: 6 | C11: 2024-05-22 | D11: 5025 | E11: 2352 | F11: على | G11: 22:00:00 | H11: 22:25:00 | I11: محطة رقم 2 | J11: يونس | K11: الصفوة | L11: جنوبية | M11: 300/400 | N11: 30 | O11: "م2" | P11: اسمنت مقاوم | Q11: 12000 | R11: اسمنت عادى | S11: 0 | T11: سن1 | U11: 12.7972028 | V11: سن2 | W11: 10.47945205 | Y11: 75 | Z11: مادة | AA11: 75 | AB11: 300/400 | AC11: =VLOOKUP($AB11,LIST!$J$3:$O$190,2,0) -> 400 | AD11: =VLOOKUP($AB11,LIST!$J$3:$O$1900,3,0) -> 0 | AE11: =VLOOKUP($AB11,LIST!$J$3:$O$1900,4,0) -> 0.4265734266 | AF11: =VLOOKUP($AB11,LIST!$J$3:$O$1900,5,0) -> 0.3493150685 | AG11: =VLOOKUP($AB11,LIST!$J$3:$O$1900,6,0) -> 2.5
A12: مايو | B12: 7 | C12: 2024-05-22 | D12: 5025 | E12: 2352 | F12: على | G12: 22:00:00 | H12: 22:25:00 | I12: محطة رقم 1 | J12: يونس | K12: الصفوة | L12: جنوبية | M12: 300 / 400 | N12: 40 | O12: "م2" | P12: اسمنت مقاوم | Q12: 0 | R12: اسمنت عادى | S12: 16000 | T12: سن1 | U12: 17.06293706 | V12: سن2 | W12: 13.97260274 | Y12: 100 | Z12: مادة | AA12: 100 | AB12: 300 / 400 | AC12: =VLOOKUP($AB12,LIST!$J$3:$O$190,2,0) -> 0 | AD12: =VLOOKUP($AB12,LIST!$J$3:$O$1900,3,0) -> 400 | AE12: =VLOOKUP($AB12,LIST!$J$3:$O$1900,4,0) -> 0.4265734266 | AF12: =VLOOKUP($AB12,LIST!$J$3:$O$1900,5,0) -> 0.3493150685 | AG12: =VLOOKUP($AB12,LIST!$J$3:$O$1900,6,0) -> 2.5
A13: مايو | B13: 8 | C13: 2024-05-22 | D13: 5025 | E13: 2352 | F13: على | G13: 22:00:00 | H13: 22:25:00 | I13: محطة رقم 2 | J13: يونس | K13: الصفوة | L13: جنوبية | M13: 200 / 310 | N13: 50 | O13: "م2" | P13: اسمنت مقاوم | Q13: 0 | R13: اسمنت عادى | S13: 15500 | T13: سن1 | U13: 18.53146853 | V13: سن2 | W13: 21.74657534 | Y13: 135.4166667 | Z13: مادة | AA13: 135.4166667 | AB13: 200 / 310 | AC13: =VLOOKUP($AB13,LIST!$J$3:$O$190,2,0) -> 0 | AD13: =VLOOKUP($AB13,LIST!$J$3:$O$1900,3,0) -> 310 | AE13: =VLOOKUP($AB13,LIST!$J$3:$O$1900,4,0) -> 0.3706293706 | AF13: =VLOOKUP($AB13,LIST!$J$3:$O$1900,5,0) -> 0.4349315068 | AG13: =VLOOKUP($AB13,LIST!$J$3:$O$1900,6,0) -> 2.708333333
A14: مايو | B14: 9 | C14: 2024-05-22 | D14: 5025 | E14: 2352 | F14: على | G14: 22:00:00 | H14: 22:25:00 | I14: محطة رقم 1 | J14: يونس | K14: الصفوة | L14: جنوبية | M14: 180 / 260 | N14: 60 | O14: "م2" | P14: اسمنت مقاوم | Q14: 0 | R14: اسمنت عادى | S14: 15600 | T14: سن1 | U14: 28.53146853 | V14: سن2 | W14: 22.39726027 | Y14: 137.5 | Z14: مادة | AA14: 137.5 | AB14: 180 / 260 | AC14: =VLOOKUP($AB14,LIST!$J$3:$O$190,2,0) -> 0 | AD14: =VLOOKUP($AB14,LIST!$J$3:$O$1900,3,0) -> 260 | AE14: =VLOOKUP($AB14,LIST!$J$3:$O$1900,4,0) -> 0.4755244755 | AF14: =VLOOKUP($AB14,LIST!$J$3:$O$1900,5,0) -> 0.3732876712 | AG14: =VLOOKUP($AB14,LIST!$J$3:$O$1900,6,0) -> 2.291666667
A15: مايو | B15: 10 | C15: 2024-05-22 | D15: 5025 | E15: 2352 | F15: على | G15: 22:00:00 | H15: 22:25:00 | I15: محطة رقم 2 | J15: يونس | K15: الصفوة | L15: جنوبية | M15: 200 / 350 | N15: 70 | O15: "م2" | P15: اسمنت مقاوم | Q15: 0 | R15: اسمنت عادى | S15: 24500 | T15: سن1 | U15: 25.94405594 | V15: سن2 | W15: 30.44520548 | Y15: 175 | Z15: مادة | AA15: 175 | AB15: 200 / 350 | AC15: =VLOOKUP($AB15,LIST!$J$3:$O$190,2,0) -> 0 | AD15: =VLOOKUP($AB15,LIST!$J$3:$O$1900,3,0) -> 350 | AE15: =VLOOKUP($AB15,LIST!$J$3:$O$1900,4,0) -> 0.3706293706 | AF15: =VLOOKUP($AB15,LIST!$J$3:$O$1900,5,0) -> 0.4349315068 | AG15: =VLOOKUP($AB15,LIST!$J$3:$O$1900,6,0) -> 2.5
A16: مايو | B16: 11 | C16: 2024-05-23 | D16: 5025 | E16: 2352 | F16: على | G16: 22:00:00 | H16: 22:25:00 | I16: محطة رقم 1 | J16: يونس | K16: الصفوة | L16: جنوبية | M16: 300 / 400 | N16: 20 | O16: "م2" | P16: اسمنت مقاوم | Q16: 0 | R16: اسمنت عادى | S16: 8000 | T16: سن1 | U16: 8.531468531 | V16: سن2 | W16: 6.98630137 | Y16: 50 | Z16: مادة | AA16: 50 | AB16: =+M16 -> 300 / 400 | AC16: =IFERROR(VLOOKUP($AB16,LIST!$J$3:$O$190,2,0),"") -> 0 | AD16: =VLOOKUP($AB16,LIST!$J$3:$O$1900,3,0) -> 400 | AE16: =VLOOKUP($AB16,LIST!$J$3:$O$1900,4,0) -> 0.4265734266 | AF16: =VLOOKUP($AB16,LIST!$J$3:$O$1900,5,0) -> 0.3493150685 | AG16: =VLOOKUP($AB16,LIST!$J$3:$O$1900,6,0) -> 2.5
A17: مايو | B17: 12 | C17: 2024-05-23 | D17: 5025 | E17: 2352 | F17: على | G17: 22:00:00 | H17: 22:25:00 | I17: محطة رقم 2 | J17: يونس | K17: الصفوة | L17: جنوبية | M17: 250 / 350 | N17: 10 | O17: "م2" | P17: اسمنت مقاوم | Q17: 0 | R17: اسمنت عادى | S17: 3500 | T17: سن1 | U17: 3.706293706 | V17: سن2 | W17: 4.349315068 | Y17: 25 | Z17: مادة | AA17: 25 | AB17: 250 / 350 | AC17: =IFERROR(VLOOKUP($AB17,LIST!$J$3:$O$190,2,0),"") -> 0 | AD17: =VLOOKUP($AB17,LIST!$J$3:$O$1900,3,0) -> 350 | AE17: =VLOOKUP($AB17,LIST!$J$3:$O$1900,4,0) -> 0.3706293706 | AF17: =VLOOKUP($AB17,LIST!$J$3:$O$1900,5,0) -> 0.4349315068 | AG17: =VLOOKUP($AB17,LIST!$J$3:$O$1900,6,0) -> 2.5
A18: مايو | B18: 13 | C18: 2024-05-23 | D18: 5025 | E18: 2352 | F18: على | G18: 22:00:00 | H18: 22:25:00 | I18: محطة رقم 1 | J18: يونس | K18: الصفوة | L18: جنوبية | M18: 300/400 | N18: 14 | O18: "م2" | P18: اسمنت مقاوم | Q18: 5600 | R18: اسمنت عادى | S18: 0 | T18: سن1 | U18: 5.972027972 | V18: سن2 | W18: 4.890410959 | Y18: 35 | Z18: مادة | AA18: 35 | AB18: 300/400 | AC18: =IFERROR(VLOOKUP($AB18,LIST!$J$3:$O$190,2,0),"") -> 400 | AD18: =VLOOKUP($AB18,LIST!$J$3:$O$1900,3,0) -> 0 | AE18: =VLOOKUP($AB18,LIST!$J$3:$O$1900,4,0) -> 0.4265734266 | AF18: =VLOOKUP($AB18,LIST!$J$3:$O$1900,5,0) -> 0.3493150685 | AG18: =VLOOKUP($AB18,LIST!$J$3:$O$1900,6,0) -> 2.5
A19: مايو | B19: 14 | C19: 2024-05-23 | D19: 5025 | E19: 2352 | F19: على | G19: 22:00:00 | H19: 22:25:00 | I19: محطة رقم 2 | J19: يونس | K19: الصفوة | L19: جنوبية | M19: 300 / 400 | N19: 12 | O19: "م2" | P19: اسمنت مقاوم | Q19: 0 | R19: اسمنت عادى | S19: 4800 | T19: سن1 | U19: 5.118881119 | V19: سن2 | W19: 4.191780822 | Y19: 30 | Z19: مادة | AA19: 30 | AB19: 300 / 400 | AC19: =IFERROR(VLOOKUP($AB19,LIST!$J$3:$O$190,2,0),"") -> 0 | AD19: =VLOOKUP($AB19,LIST!$J$3:$O$1900,3,0) -> 400 | AE19: =VLOOKUP($AB19,LIST!$J$3:$O$1900,4,0) -> 0.4265734266 | AF19: =VLOOKUP($AB19,LIST!$J$3:$O$1900,5,0) -> 0.3493150685 | AG19: =VLOOKUP($AB19,LIST!$J$3:$O$1900,6,0) -> 2.5
A20: مايو | B20: 15 | C20: 2024-05-24 | D20: 5025 | E20: 2352 | F20: على | G20: 22:00:00 | H20: 22:25:00 | I20: محطة رقم 1 | J20: يونس | K20: الصفوة | L20: جنوبية | M20: 300 / 400 | N20: 12 | O20: "م2" | P20: اسمنت مقاوم | Q20: 0 | R20: اسمنت عادى | S20: 4800 | T20: سن1 | U20: 5.118881119 | V20: سن2 | W20: 4.191780822 | Y20: 30 | Z20: مادة | AA20: 30 | AB20: 300 / 400 | AC20: =IFERROR(VLOOKUP($AB20,LIST!$J$3:$O$190,2,0),"") -> 0 | AD20: =VLOOKUP($AB20,LIST!$J$3:$O$1900,3,0) -> 400 | AE20: =VLOOKUP($AB20,LIST!$J$3:$O$1900,4,0) -> 0.4265734266 | AF20: =VLOOKUP($AB20,LIST!$J$3:$O$1900,5,0) -> 0.3493150685 | AG20: =VLOOKUP($AB20,LIST!$J$3:$O$1900,6,0) -> 2.5
A21: مايو | B21: 16 | C21: 2024-05-25 | D21: 5025 | E21: 2352 | F21: على | G21: 22:00:00 | H21: 22:25:00 | I21: محطة رقم 2 | J21: يونس | K21: الصفوة | L21: جنوبية | M21: 300 / 400 | N21: 12 | O21: "م2" | P21: اسمنت مقاوم | Q21: 0 | R21: اسمنت عادى | S21: 4800 | T21: سن1 | U21: 5.118881119 | V21: سن2 | W21: 4.191780822 | Y21: 30 | Z21: مادة | AA21: 30 | AB21: 300 / 400 | AC21: =IFERROR(VLOOKUP($AB21,LIST!$J$3:$O$190,2,0),"") -> 0 | AD21: =VLOOKUP($AB21,LIST!$J$3:$O$1900,3,0) -> 400 | AE21: =VLOOKUP($AB21,LIST!$J$3:$O$1900,4,0) -> 0.4265734266 | AF21: =VLOOKUP($AB21,LIST!$J$3:$O$1900,5,0) -> 0.3493150685 | AG21: =VLOOKUP($AB21,LIST!$J$3:$O$1900,6,0) -> 2.5
A22: مايو | B22: 17 | C22: 2024-05-26 | D22: 5025 | E22: 2352 | F22: على | G22: 22:00:00 | H22: 22:25:00 | I22: محطة رقم 1 | J22: يونس | K22: الصفوة | L22: جنوبية | M22: 300 / 400 | N22: 12 | O22: "م2" | P22: اسمنت مقاوم | Q22: 0 | R22: اسمنت عادى | S22: 4800 | T22: سن1 | U22: 5.118881119 | V22: سن2 | W22: 4.191780822 | Y22: 30 | Z22: مادة | AA22: 30 | AB22: 300 / 400 | AC22: =IFERROR(VLOOKUP($AB22,LIST!$J$3:$O$190,2,0),"") -> 0 | AD22: =VLOOKUP($AB22,LIST!$J$3:$O$1900,3,0) -> 400 | AE22: =VLOOKUP($AB22,LIST!$J$3:$O$1900,4,0) -> 0.4265734266 | AF22: =VLOOKUP($AB22,LIST!$J$3:$O$1900,5,0) -> 0.3493150685 | AG22: =VLOOKUP($AB22,LIST!$J$3:$O$1900,6,0) -> 2.5
A23: مايو | B23: 18 | C23: 2024-05-27 | D23: 5025 | E23: 2352 | F23: على | G23: 22:00:00 | H23: 22:25:00 | I23: محطة رقم 2 | J23: يونس | K23: الصفوة | L23: جنوبية | M23: 300 / 400 | N23: 12 | O23: "م2" | P23: اسمنت مقاوم | Q23: 0 | R23: اسمنت عادى | S23: 4800 | T23: سن1 | U23: 5.118881119 | V23: سن2 | W23: 4.191780822 | Y23: 30 | Z23: مادة | AA23: 30 | AB23: 300 / 400 | AC23: =IFERROR(VLOOKUP($AB23,LIST!$J$3:$O$190,2,0),"") -> 0 | AD23: =VLOOKUP($AB23,LIST!$J$3:$O$1900,3,0) -> 400 | AE23: =VLOOKUP($AB23,LIST!$J$3:$O$1900,4,0) -> 0.4265734266 | AF23: =VLOOKUP($AB23,LIST!$J$3:$O$1900,5,0) -> 0.3493150685 | AG23: =VLOOKUP($AB23,LIST!$J$3:$O$1900,6,0) -> 2.5
A24: مايو | B24: 19 | C24: 2024-05-28 | D24: 5025 | E24: 2352 | F24: على | G24: 22:00:00 | H24: 22:25:00 | I24: محطة رقم 1 | J24: يونس | K24: الصفوة | L24: جنوبية | M24: 300 / 400 | N24: 12 | O24: "م2" | P24: اسمنت مقاوم | Q24: 0 | R24: اسمنت عادى | S24: 4800 | T24: سن1 | U24: 5.118881119 | V24: سن2 | W24: 4.191780822 | Y24: 30 | Z24: مادة | AA24: 30 | AB24: 300 / 400 | AC24: =IFERROR(VLOOKUP($AB24,LIST!$J$3:$O$190,2,0),"") -> 0 | AD24: =VLOOKUP($AB24,LIST!$J$3:$O$1900,3,0) -> 400 | AE24: =VLOOKUP($AB24,LIST!$J$3:$O$1900,4,0) -> 0.4265734266 | AF24: =VLOOKUP($AB24,LIST!$J$3:$O$1900,5,0) -> 0.3493150685 | AG24: =VLOOKUP($AB24,LIST!$J$3:$O$1900,6,0) -> 2.5
A25: مايو | B25: 20 | C25: 2024-05-29 | D25: 5025 | E25: 2352 | F25: على | G25: 22:00:00 | H25: 22:25:00 | I25: محطة رقم 2 | J25: يونس | K25: الصفوة | L25: جنوبية | M25: 300 / 400 | N25: 12 | O25: "م2" | P25: اسمنت مقاوم | Q25: 0 | R25: اسمنت عادى | S25: 4800 | T25: سن1 | U25: 5.118881119 | V25: سن2 | W25: 4.191780822 | Y25: 30 | Z25: مادة | AA25: 30 | AB25: 300 / 400 | AC25: =IFERROR(VLOOKUP($AB25,LIST!$J$3:$O$190,2,0),"") -> 0 | AD25: =VLOOKUP($AB25,LIST!$J$3:$O$1900,3,0) -> 400 | AE25: =VLOOKUP($AB25,LIST!$J$3:$O$1900,4,0) -> 0.4265734266 | AF25: =VLOOKUP($AB25,LIST!$J$3:$O$1900,5,0) -> 0.3493150685 | AG25: =VLOOKUP($AB25,LIST!$J$3:$O$1900,6,0) -> 2.5
A26: مايو | B26: 21 | C26: 2024-05-30 | D26: 5025 | E26: 2352 | F26: على | G26: 22:00:00 | H26: 22:25:00 | I26: محطة رقم 1 | J26: يونس | K26: الصفوة | L26: جنوبية | M26: 300 / 400 | N26: 12 | O26: "م2" | P26: اسمنت مقاوم | Q26: 0 | R26: اسمنت عادى | S26: 4800 | T26: سن1 | U26: 5.118881119 | V26: سن2 | W26: 4.191780822 | Y26: 30 | Z26: مادة | AA26: 30 | AB26: 300 / 400 | AC26: =IFERROR(VLOOKUP($AB26,LIST!$J$3:$O$190,2,0),"") -> 0 | AD26: =VLOOKUP($AB26,LIST!$J$3:$O$1900,3,0) -> 400 | AE26: =VLOOKUP($AB26,LIST!$J$3:$O$1900,4,0) -> 0.4265734266 | AF26: =VLOOKUP($AB26,LIST!$J$3:$O$1900,5,0) -> 0.3493150685 | AG26: =VLOOKUP($AB26,LIST!$J$3:$O$1900,6,0) -> 2.5
A27: مايو | B27: 22 | C27: 2024-05-31 | D27: 5025 | E27: 2352 | F27: على | G27: 22:00:00 | H27: 22:25:00 | I27: محطة رقم 2 | J27: يونس | K27: الصفوة | L27: جنوبية | M27: 300 / 400 | N27: 12 | O27: "م2" | P27: اسمنت مقاوم | Q27: 0 | R27: اسمنت عادى | S27: 4800 | T27: سن1 | U27: 5.118881119 | V27: سن2 | W27: 4.191780822 | Y27: 30 | Z27: مادة | AA27: 30 | AB27: 300 / 400 | AC27: =IFERROR(VLOOKUP($AB27,LIST!$J$3:$O$190,2,0),"") -> 0 | AD27: =VLOOKUP($AB27,LIST!$J$3:$O$1900,3,0) -> 400 | AE27: =VLOOKUP($AB27,LIST!$J$3:$O$1900,4,0) -> 0.4265734266 | AF27: =VLOOKUP($AB27,LIST!$J$3:$O$1900,5,0) -> 0.3493150685 | AG27: =VLOOKUP($AB27,LIST!$J$3:$O$1900,6,0) -> 2.5
A28: يونيو | B28: 23 | C28: 2024-06-01 | D28: 5025 | E28: 2352 | F28: على | G28: 22:00:00 | H28: 22:25:00 | I28: محطة رقم 1 | J28: يونس | K28: الصفوة | L28: جنوبية | M28: 300 / 400 | N28: 12 | O28: "م2" | P28: اسمنت مقاوم | Q28: 0 | R28: اسمنت عادى | S28: 4800 | T28: سن1 | U28: 5.118881119 | V28: سن2 | W28: 4.191780822 | Y28: 30 | Z28: مادة | AA28: 30 | AB28: 300 / 400 | AC28: =IFERROR(VLOOKUP($AB28,LIST!$J$3:$O$190,2,0),"") -> 0 | AD28: =VLOOKUP($AB28,LIST!$J$3:$O$1900,3,0) -> 400 | AE28: =VLOOKUP($AB28,LIST!$J$3:$O$1900,4,0) -> 0.4265734266 | AF28: =VLOOKUP($AB28,LIST!$J$3:$O$1900,5,0) -> 0.3493150685 | AG28: =VLOOKUP($AB28,LIST!$J$3:$O$1900,6,0) -> 2.5
A29: يونيو | B29: 24 | C29: 2024-06-02 | D29: 5025 | E29: 2352 | F29: على | G29: 22:00:00 | H29: 22:25:00 | I29: محطة رقم 2 | J29: يونس | K29: الصفوة | L29: جنوبية | M29: 300 / 400 | N29: 12 | O29: "م2" | P29: اسمنت مقاوم | Q29: 0 | R29: اسمنت عادى | S29: 4800 | T29: سن1 | U29: 5.118881119 | V29: سن2 | W29: 4.191780822 | Y29: 30 | Z29: مادة | AA29: 30 | AB29: 300 / 400 | AC29: =IFERROR(VLOOKUP($AB29,LIST!$J$3:$O$190,2,0),"") -> 0 | AD29: =VLOOKUP($AB29,LIST!$J$3:$O$1900,3,0) -> 400 | AE29: =VLOOKUP($AB29,LIST!$J$3:$O$1900,4,0) -> 0.4265734266 | AF29: =VLOOKUP($AB29,LIST!$J$3:$O$1900,5,0) -> 0.3493150685 | AG29: =VLOOKUP($AB29,LIST!$J$3:$O$1900,6,0) -> 2.5
A30: يونيو | B30: 25 | C30: 2024-06-03 | D30: 5025 | E30: 2352 | F30: على | G30: 22:00:00 | H30: 22:25:00 | I30: محطة رقم 1 | J30: يونس | K30: الصفوة | L30: جنوبية | M30: 300 / 400 | N30: 12 | O30: "م2" | P30: اسمنت مقاوم | Q30: 0 | R30: اسمنت عادى | S30: 4800 | T30: سن1 | U30: 5.118881119 | V30: سن2 | W30: 4.191780822 | Y30: 30 | Z30: مادة | AA30: 30 | AB30: 300 / 400 | AC30: =IFERROR(VLOOKUP($AB30,LIST!$J$3:$O$190,2,0),"") -> 0 | AD30: =VLOOKUP($AB30,LIST!$J$3:$O$1900,3,0) -> 400 | AE30: =VLOOKUP($AB30,LIST!$J$3:$O$1900,4,0) -> 0.4265734266 | AF30: =VLOOKUP($AB30,LIST!$J$3:$O$1900,5,0) -> 0.3493150685 | AG30: =VLOOKUP($AB30,LIST!$J$3:$O$1900,6,0) -> 2.5
A31: يونيو | B31: 26 | C31: 2024-06-04 | D31: 5025 | E31: 2352 | F31: على | G31: 22:00:00 | H31: 22:25:00 | I31: محطة رقم 2 | J31: يونس | K31: الصفوة | L31: جنوبية | M31: 300 / 400 | N31: 12 | O31: "م2" | P31: اسمنت مقاوم | Q31: 0 | R31: اسمنت عادى | S31: 4800 | T31: سن1 | U31: 5.118881119 | V31: سن2 | W31: 4.191780822 | Y31: 30 | Z31: مادة | AA31: 30 | AB31: 300 / 400 | AC31: =IFERROR(VLOOKUP($AB31,LIST!$J$3:$O$190,2,0),"") -> 0 | AD31: =VLOOKUP($AB31,LIST!$J$3:$O$1900,3,0) -> 400 | AE31: =VLOOKUP($AB31,LIST!$J$3:$O$1900,4,0) -> 0.4265734266 | AF31: =VLOOKUP($AB31,LIST!$J$3:$O$1900,5,0) -> 0.3493150685 | AG31: =VLOOKUP($AB31,LIST!$J$3:$O$1900,6,0) -> 2.5
A32: يونيو | B32: 27 | C32: 2024-06-05 | D32: 5025 | E32: 2352 | F32: على | G32: 22:00:00 | H32: 22:25:00 | I32: محطة رقم 1 | J32: يونس | K32: الصفوة | L32: جنوبية | M32: 300 / 400 | N32: 12 | O32: "م2" | P32: اسمنت مقاوم | Q32: 0 | R32: اسمنت عادى | S32: 4800 | T32: سن1 | U32: 5.118881119 | V32: سن2 | W32: 4.191780822 | Y32: 30 | Z32: مادة | AA32: 30 | AB32: 300 / 400 | AC32: =IFERROR(VLOOKUP($AB32,LIST!$J$3:$O$190,2,0),"") -> 0 | AD32: =VLOOKUP($AB32,LIST!$J$3:$O$1900,3,0) -> 400 | AE32: =VLOOKUP($AB32,LIST!$J$3:$O$1900,4,0) -> 0.4265734266 | AF32: =VLOOKUP($AB32,LIST!$J$3:$O$1900,5,0) -> 0.3493150685 | AG32: =VLOOKUP($AB32,LIST!$J$3:$O$1900,6,0) -> 2.5
A33: يونيو | B33: 28 | C33: 2024-06-06 | D33: 5025 | E33: 2352 | F33: على | G33: 22:00:00 | H33: 22:25:00 | I33: محطة رقم 2 | J33: يونس | K33: الصفوة | L33: جنوبية | M33: 300 / 400 | N33: 12 | O33: "م2" | P33: اسمنت مقاوم | Q33: 0 | R33: اسمنت عادى | S33: 4800 | T33: سن1 | U33: 5.118881119 | V33: سن2 | W33: 4.191780822 | Y33: 30 | Z33: مادة | AA33: 30 | AB33: 300 / 400 | AC33: =IFERROR(VLOOKUP($AB33,LIST!$J$3:$O$190,2,0),"") -> 0 | AD33: =VLOOKUP($AB33,LIST!$J$3:$O$1900,3,0) -> 400 | AE33: =VLOOKUP($AB33,LIST!$J$3:$O$1900,4,0) -> 0.4265734266 | AF33: =VLOOKUP($AB33,LIST!$J$3:$O$1900,5,0) -> 0.3493150685 | AG33: =VLOOKUP($AB33,LIST!$J$3:$O$1900,6,0) -> 2.5
A34: يونيو | B34: 29 | C34: 2024-06-07 | D34: 5025 | E34: 2352 | F34: على | G34: 22:00:00 | H34: 22:25:00 | I34: محطة رقم 1 | J34: يونس | K34: الصفوة | L34: جنوبية | M34: 300 / 400 | N34: 12 | O34: "م2" | P34: اسمنت مقاوم | Q34: 0 | R34: اسمنت عادى | S34: 4800 | T34: سن1 | U34: 5.118881119 | V34: سن2 | W34: 4.191780822 | Y34: 30 | Z34: مادة | AA34: 30 | AB34: 300 / 400 | AC34: =IFERROR(VLOOKUP($AB34,LIST!$J$3:$O$190,2,0),"") -> 0 | AD34: =VLOOKUP($AB34,LIST!$J$3:$O$1900,3,0) -> 400 | AE34: =VLOOKUP($AB34,LIST!$J$3:$O$1900,4,0) -> 0.4265734266 | AF34: =VLOOKUP($AB34,LIST!$J$3:$O$1900,5,0) -> 0.3493150685 | AG34: =VLOOKUP($AB34,LIST!$J$3:$O$1900,6,0) -> 2.5
A35: يونيو | B35: 30 | C35: 2024-06-08 | D35: 5025 | E35: 2352 | F35: على | G35: 22:00:00 | H35: 22:25:00 | I35: محطة رقم 2 | J35: يونس | K35: الصفوة | L35: جنوبية | M35: 300 / 400 | N35: 12 | O35: "م2" | P35: اسمنت مقاوم | Q35: 0 | R35: اسمنت عادى | S35: =+$N35*AD35 -> 4800 | T35: سن1 | U35: 5.118881119 | V35: سن2 | W35: 4.191780822 | Y35: 30 | Z35: مادة | AA35: 30 | AB35: 300 / 400 | AC35: =IFERROR(VLOOKUP($AB35,LIST!$J$3:$O$190,2,0),"") -> 0 | AD35: =VLOOKUP($AB35,LIST!$J$3:$O$1900,3,0) -> 400 | AE35: =VLOOKUP($AB35,LIST!$J$3:$O$1900,4,0) -> 0.4265734266 | AF35: =VLOOKUP($AB35,LIST!$J$3:$O$1900,5,0) -> 0.3493150685 | AG35: =VLOOKUP($AB35,LIST!$J$3:$O$1900,6,0) -> 2.5
A36: يناير | M36: 400/500 | N36: 12 | O36: "م2" | P36: اسمنت مقاوم | Q36: =+$N36*AC36 -> 0 | R36: اسمنت عادى | S36: 6000 | T36: سن1 | U36: 5.118881119 | V36: سن2 | W36: 4.191780822 | Y36: 30 | Z36: مادة | AA36: 30 | AB36: 400/500 | AC36: =IFERROR(VLOOKUP($AB36,LIST!$J$3:$O$190,2,0),"") -> 0 | AD36: =VLOOKUP($AB36,LIST!$J$3:$O$1900,3,0) -> 500 | AE36: =VLOOKUP($AB36,LIST!$J$3:$O$1900,4,0) -> 0.4265734266 | AF36: =VLOOKUP($AB36,LIST!$J$3:$O$1900,5,0) -> 0.3493150685 | AG36: =VLOOKUP($AB36,LIST!$J$3:$O$1900,6,0) -> 2.5
A37: يناير | O37: "م2" | P37: اسمنت مقاوم | Q37: =+$N37*AC37 -> 0 | R37: اسمنت عادى | S37: 0 | T37: سن1 | U37: 0 | V37: سن2 | W37: 0 | Y37: 0 | Z37: مادة | AA37: 0 | AB37: 0 | AC37: =IFERROR(VLOOKUP($AB37,LIST!$J$3:$O$190,2,0),0) -> 0 | AD37: =IFERROR(VLOOKUP($AB37,LIST!$J$3:$O$1900,3,0),0) -> 0 | AE37: =IFERROR(VLOOKUP($AB37,LIST!$J$3:$O$1900,4,0),0) -> 0 | AF37: =IFERROR(VLOOKUP($AB37,LIST!$J$3:$O$1900,5,0),0) -> 0 | AG37: =IFERROR(VLOOKUP($AB37,LIST!$J$3:$O$1900,6,0),0) -> 0
A38: يناير | O38: "م2" | P38: اسمنت مقاوم | Q38: 0 | R38: اسمنت عادى | S38: 0 | T38: سن1 | U38: 0 | V38: سن2 | W38: 0 | Y38: 0 | Z38: مادة | AA38: 0 | AB38: 0 | AC38: =IFERROR(VLOOKUP($AB38,LIST!$J$3:$O$190,2,0),0) -> 0 | AD38: =IFERROR(VLOOKUP($AB38,LIST!$J$3:$O$1900,3,0),0) -> 0 | AE38: =IFERROR(VLOOKUP($AB38,LIST!$J$3:$O$1900,4,0),0) -> 0 | AF38: =IFERROR(VLOOKUP($AB38,LIST!$J$3:$O$1900,5,0),0) -> 0 | AG38: =IFERROR(VLOOKUP($AB38,LIST!$J$3:$O$1900,6,0),0) -> 0
A39: يناير | O39: "م2" | P39: اسمنت مقاوم | Q39: 0 | R39: اسمنت عادى | S39: 0 | T39: سن1 | U39: 0 | V39: سن2 | W39: 0 | Y39: 0 | Z39: مادة | AA39: 0 | AB39: 0 | AC39: =IFERROR(VLOOKUP($AB39,LIST!$J$3:$O$190,2,0),0) -> 0 | AD39: =IFERROR(VLOOKUP($AB39,LIST!$J$3:$O$1900,3,0),0) -> 0 | AE39: =IFERROR(VLOOKUP($AB39,LIST!$J$3:$O$1900,4,0),0) -> 0 | AF39: =IFERROR(VLOOKUP($AB39,LIST!$J$3:$O$1900,5,0),0) -> 0 | AG39: =IFERROR(VLOOKUP($AB39,LIST!$J$3:$O$1900,6,0),0) -> 0
A40: يناير | O40: "م2" | P40: اسمنت مقاوم | Q40: 0 | R40: اسمنت عادى | S40: 0 | T40: سن1 | U40: 0 | V40: سن2 | W40: 0 | Y40: 0 | Z40: مادة | AA40: 0 | AB40: 0 | AC40: =IFERROR(VLOOKUP($AB40,LIST!$J$3:$O$190,2,0),0) -> 0 | AD40: =IFERROR(VLOOKUP($AB40,LIST!$J$3:$O$1900,3,0),0) -> 0 | AE40: =IFERROR(VLOOKUP($AB40,LIST!$J$3:$O$1900,4,0),0) -> 0 | AF40: =IFERROR(VLOOKUP($AB40,LIST!$J$3:$O$1900,5,0),0) -> 0 | AG40: =IFERROR(VLOOKUP($AB40,LIST!$J$3:$O$1900,6,0),0) -> 0
A41: يناير | O41: "م2" | P41: اسمنت مقاوم | Q41: 0 | R41: اسمنت عادى | S41: 0 | T41: سن1 | U41: 0 | V41: سن2 | W41: 0 | Y41: 0 | Z41: مادة | AA41: 0 | AB41: 0 | AC41: =IFERROR(VLOOKUP($AB41,LIST!$J$3:$O$190,2,0),0) -> 0 | AD41: =IFERROR(VLOOKUP($AB41,LIST!$J$3:$O$1900,3,0),0) -> 0 | AE41: =IFERROR(VLOOKUP($AB41,LIST!$J$3:$O$1900,4,0),0) -> 0 | AF41: =IFERROR(VLOOKUP($AB41,LIST!$J$3:$O$1900,5,0),0) -> 0 | AG41: =IFERROR(VLOOKUP($AB41,LIST!$J$3:$O$1900,6,0),0) -> 0
A42: يناير | O42: "م2" | P42: اسمنت مقاوم | Q42: 0 | R42: اسمنت عادى | S42: 0 | T42: سن1 | U42: 0 | V42: سن2 | W42: 0 | Y42: 0 | Z42: مادة | AA42: 0 | AB42: 0 | AC42: =IFERROR(VLOOKUP($AB42,LIST!$J$3:$O$190,2,0),0) -> 0 | AD42: =IFERROR(VLOOKUP($AB42,LIST!$J$3:$O$1900,3,0),0) -> 0 | AE42: =IFERROR(VLOOKUP($AB42,LIST!$J$3:$O$1900,4,0),0) -> 0 | AF42: =IFERROR(VLOOKUP($AB42,LIST!$J$3:$O$1900,5,0),0) -> 0 | AG42: =IFERROR(VLOOKUP($AB42,LIST!$J$3:$O$1900,6,0),0) -> 0
A43: يناير | O43: "م2" | P43: اسمنت مقاوم | Q43: 0 | R43: اسمنت عادى | S43: 0 | T43: سن1 | U43: 0 | V43: سن2 | W43: 0 | Y43: 0 | Z43: مادة | AA43: 0 | AB43: 0 | AC43: =IFERROR(VLOOKUP($AB43,LIST!$J$3:$O$190,2,0),0) -> 0 | AD43: =IFERROR(VLOOKUP($AB43,LIST!$J$3:$O$1900,3,0),0) -> 0 | AE43: =IFERROR(VLOOKUP($AB43,LIST!$J$3:$O$1900,4,0),0) -> 0 | AF43: =IFERROR(VLOOKUP($AB43,LIST!$J$3:$O$1900,5,0),0) -> 0 | AG43: =IFERROR(VLOOKUP($AB43,LIST!$J$3:$O$1900,6,0),0) -> 0
A44: يناير | O44: "م2" | P44: اسمنت مقاوم | Q44: 0 | R44: اسمنت عادى | S44: 0 | T44: سن1 | U44: 0 | V44: سن2 | W44: 0 | Y44: 0 | Z44: مادة | AA44: 0 | AB44: 0 | AC44: =IFERROR(VLOOKUP($AB44,LIST!$J$3:$O$190,2,0),0) -> 0 | AD44: =IFERROR(VLOOKUP($AB44,LIST!$J$3:$O$1900,3,0),0) -> 0 | AE44: =IFERROR(VLOOKUP($AB44,LIST!$J$3:$O$1900,4,0),0) -> 0 | AF44: =IFERROR(VLOOKUP($AB44,LIST!$J$3:$O$1900,5,0),0) -> 0 | AG44: =IFERROR(VLOOKUP($AB44,LIST!$J$3:$O$1900,6,0),0) -> 0
A45: يناير | O45: "م2" | P45: اسمنت مقاوم | Q45: 0 | R45: اسمنت عادى | S45: 0 | T45: سن1 | U45: 0 | V45: سن2 | W45: 0 | Y45: 0 | Z45: مادة | AA45: 0 | AB45: 0 | AC45: =IFERROR(VLOOKUP($AB45,LIST!$J$3:$O$190,2,0),0) -> 0 | AD45: =IFERROR(VLOOKUP($AB45,LIST!$J$3:$O$1900,3,0),0) -> 0 | AE45: =IFERROR(VLOOKUP($AB45,LIST!$J$3:$O$1900,4,0),0) -> 0 | AF45: =IFERROR(VLOOKUP($AB45,LIST!$J$3:$O$1900,5,0),0) -> 0 | AG45: =IFERROR(VLOOKUP($AB45,LIST!$J$3:$O$1900,6,0),0) -> 0
A46: يناير | O46: "م2" | P46: اسمنت مقاوم | Q46: 0 | R46: اسمنت عادى | S46: 0 | T46: سن1 | U46: 0 | V46: سن2 | W46: 0 | Y46: 0 | Z46: مادة | AA46: 0 | AB46: 0 | AC46: =IFERROR(VLOOKUP($AB46,LIST!$J$3:$O$190,2,0),0) -> 0 | AD46: =IFERROR(VLOOKUP($AB46,LIST!$J$3:$O$1900,3,0),0) -> 0 | AE46: =IFERROR(VLOOKUP($AB46,LIST!$J$3:$O$1900,4,0),0) -> 0 | AF46: =IFERROR(VLOOKUP($AB46,LIST!$J$3:$O$1900,5,0),0) -> 0 | AG46: =IFERROR(VLOOKUP($AB46,LIST!$J$3:$O$1900,6,0),0) -> 0
A47: يناير | O47: "م2" | P47: اسمنت مقاوم | Q47: 0 | R47: اسمنت عادى | S47: 0 | T47: سن1 | U47: 0 | V47: سن2 | W47: 0 | Y47: 0 | Z47: مادة | AA47: 0 | AB47: 0 | AC47: =IFERROR(VLOOKUP($AB47,LIST!$J$3:$O$190,2,0),0) -> 0 | AD47: =IFERROR(VLOOKUP($AB47,LIST!$J$3:$O$1900,3,0),0) -> 0 | AE47: =IFERROR(VLOOKUP($AB47,LIST!$J$3:$O$1900,4,0),0) -> 0 | AF47: =IFERROR(VLOOKUP($AB47,LIST!$J$3:$O$1900,5,0),0) -> 0 | AG47: =IFERROR(VLOOKUP($AB47,LIST!$J$3:$O$1900,6,0),0) -> 0
A48: يناير | O48: "م2" | P48: اسمنت مقاوم | Q48: 0 | R48: اسمنت عادى | S48: 0 | T48: سن1 | U48: 0 | V48: سن2 | W48: 0 | Y48: 0 | Z48: مادة | AA48: 0 | AB48: 0 | AC48: =IFERROR(VLOOKUP($AB48,LIST!$J$3:$O$190,2,0),0) -> 0 | AD48: =IFERROR(VLOOKUP($AB48,LIST!$J$3:$O$1900,3,0),0) -> 0 | AE48: =IFERROR(VLOOKUP($AB48,LIST!$J$3:$O$1900,4,0),0) -> 0 | AF48: =IFERROR(VLOOKUP($AB48,LIST!$J$3:$O$1900,5,0),0) -> 0 | AG48: =IFERROR(VLOOKUP($AB48,LIST!$J$3:$O$1900,6,0),0) -> 0
A49: يناير | O49: "م2" | P49: اسمنت مقاوم | Q49: 0 | R49: اسمنت عادى | S49: 0 | T49: سن1 | U49: 0 | V49: سن2 | W49: 0 | Y49: 0 | Z49: مادة | AA49: 0 | AB49: 0 | AC49: =IFERROR(VLOOKUP($AB49,LIST!$J$3:$O$190,2,0),0) -> 0 | AD49: =IFERROR(VLOOKUP($AB49,LIST!$J$3:$O$1900,3,0),0) -> 0 | AE49: =IFERROR(VLOOKUP($AB49,LIST!$J$3:$O$1900,4,0),0) -> 0 | AF49: =IFERROR(VLOOKUP($AB49,LIST!$J$3:$O$1900,5,0),0) -> 0 | AG49: =IFERROR(VLOOKUP($AB49,LIST!$J$3:$O$1900,6,0),0) -> 0
A50: يناير | O50: "م2" | P50: اسمنت مقاوم | Q50: 0 | R50: اسمنت عادى | S50: 0 | T50: سن1 | U50: 0 | V50: سن2 | W50: 0 | Y50: 0 | Z50: مادة | AA50: 0 | AB50: 0 | AC50: =IFERROR(VLOOKUP($AB50,LIST!$J$3:$O$190,2,0),0) -> 0 | AD50: =IFERROR(VLOOKUP($AB50,LIST!$J$3:$O$1900,3,0),0) -> 0 | AE50: =IFERROR(VLOOKUP($AB50,LIST!$J$3:$O$1900,4,0),0) -> 0 | AF50: =IFERROR(VLOOKUP($AB50,LIST!$J$3:$O$1900,5,0),0) -> 0 | AG50: =IFERROR(VLOOKUP($AB50,LIST!$J$3:$O$1900,6,0),0) -> 0
A51: يناير | O51: "م2" | P51: اسمنت مقاوم | Q51: 0 | R51: اسمنت عادى | S51: 0 | T51: سن1 | U51: 0 | V51: سن2 | W51: 0 | Y51: 0 | Z51: مادة | AA51: 0 | AB51: 0 | AC51: =IFERROR(VLOOKUP($AB51,LIST!$J$3:$O$190,2,0),0) -> 0 | AD51: =IFERROR(VLOOKUP($AB51,LIST!$J$3:$O$1900,3,0),0) -> 0 | AE51: =IFERROR(VLOOKUP($AB51,LIST!$J$3:$O$1900,4,0),0) -> 0 | AF51: =IFERROR(VLOOKUP($AB51,LIST!$J$3:$O$1900,5,0),0) -> 0 | AG51: =IFERROR(VLOOKUP($AB51,LIST!$J$3:$O$1900,6,0),0) -> 0
A52: يناير | O52: "م2" | P52: اسمنت مقاوم | Q52: 0 | R52: اسمنت عادى | S52: 0 | T52: سن1 | U52: 0 | V52: سن2 | W52: 0 | Y52: 0 | Z52: مادة | AA52: 0 | AB52: 0 | AC52: =IFERROR(VLOOKUP($AB52,LIST!$J$3:$O$190,2,0),0) -> 0 | AD52: =IFERROR(VLOOKUP($AB52,LIST!$J$3:$O$1900,3,0),0) -> 0 | AE52: =IFERROR(VLOOKUP($AB52,LIST!$J$3:$O$1900,4,0),0) -> 0 | AF52: =IFERROR(VLOOKUP($AB52,LIST!$J$3:$O$1900,5,0),0) -> 0 | AG52: =IFERROR(VLOOKUP($AB52,LIST!$J$3:$O$1900,6,0),0) -> 0
A53: يناير | O53: "م2" | P53: اسمنت مقاوم | Q53: 0 | R53: اسمنت عادى | S53: 0 | T53: سن1 | U53: 0 | V53: سن2 | W53: 0 | Y53: 0 | Z53: مادة | AA53: 0 | AB53: 0 | AC53: =IFERROR(VLOOKUP($AB53,LIST!$J$3:$O$190,2,0),0) -> 0 | AD53: =IFERROR(VLOOKUP($AB53,LIST!$J$3:$O$1900,3,0),0) -> 0 | AE53: =IFERROR(VLOOKUP($AB53,LIST!$J$3:$O$1900,4,0),0) -> 0 | AF53: =IFERROR(VLOOKUP($AB53,LIST!$J$3:$O$1900,5,0),0) -> 0 | AG53: =IFERROR(VLOOKUP($AB53,LIST!$J$3:$O$1900,6,0),0) -> 0
A54: يناير | O54: "م2" | P54: اسمنت مقاوم | Q54: 0 | R54: اسمنت عادى | S54: 0 | T54: سن1 | U54: 0 | V54: سن2 | W54: 0 | Y54: 0 | Z54: مادة | AA54: 0 | AB54: 0 | AC54: =IFERROR(VLOOKUP($AB54,LIST!$J$3:$O$190,2,0),0) -> 0 | AD54: =IFERROR(VLOOKUP($AB54,LIST!$J$3:$O$1900,3,0),0) -> 0 | AE54: =IFERROR(VLOOKUP($AB54,LIST!$J$3:$O$1900,4,0),0) -> 0 | AF54: =IFERROR(VLOOKUP($AB54,LIST!$J$3:$O$1900,5,0),0) -> 0 | AG54: =IFERROR(VLOOKUP($AB54,LIST!$J$3:$O$1900,6,0),0) -> 0
A55: يناير | O55: "م2" | P55: اسمنت مقاوم | Q55: 0 | R55: اسمنت عادى | S55: 0 | T55: سن1 | U55: 0 | V55: سن2 | W55: 0 | Y55: 0 | Z55: مادة | AA55: 0 | AB55: 0 | AC55: =IFERROR(VLOOKUP($AB55,LIST!$J$3:$O$190,2,0),0) -> 0 | AD55: =IFERROR(VLOOKUP($AB55,LIST!$J$3:$O$1900,3,0),0) -> 0 | AE55: =IFERROR(VLOOKUP($AB55,LIST!$J$3:$O$1900,4,0),0) -> 0 | AF55: =IFERROR(VLOOKUP($AB55,LIST!$J$3:$O$1900,5,0),0) -> 0 | AG55: =IFERROR(VLOOKUP($AB55,LIST!$J$3:$O$1900,6,0),0) -> 0
A56: يناير | O56: "م2" | P56: اسمنت مقاوم | Q56: 0 | R56: اسمنت عادى | S56: 0 | T56: سن1 | U56: 0 | V56: سن2 | W56: 0 | Y56: 0 | Z56: مادة | AA56: 0 | AB56: 0 | AC56: =IFERROR(VLOOKUP($AB56,LIST!$J$3:$O$190,2,0),0) -> 0 | AD56: =IFERROR(VLOOKUP($AB56,LIST!$J$3:$O$1900,3,0),0) -> 0 | AE56: =IFERROR(VLOOKUP($AB56,LIST!$J$3:$O$1900,4,0),0) -> 0 | AF56: =IFERROR(VLOOKUP($AB56,LIST!$J$3:$O$1900,5,0),0) -> 0 | AG56: =IFERROR(VLOOKUP($AB56,LIST!$J$3:$O$1900,6,0),0) -> 0
A57: يناير | O57: "م2" | P57: اسمنت مقاوم | Q57: 0 | R57: اسمنت عادى | S57: 0 | T57: سن1 | U57: 0 | V57: سن2 | W57: 0 | Y57: 0 | Z57: مادة | AA57: 0 | AB57: 0 | AC57: =IFERROR(VLOOKUP($AB57,LIST!$J$3:$O$190,2,0),0) -> 0 | AD57: =IFERROR(VLOOKUP($AB57,LIST!$J$3:$O$1900,3,0),0) -> 0 | AE57: =IFERROR(VLOOKUP($AB57,LIST!$J$3:$O$1900,4,0),0) -> 0 | AF57: =IFERROR(VLOOKUP($AB57,LIST!$J$3:$O$1900,5,0),0) -> 0 | AG57: =IFERROR(VLOOKUP($AB57,LIST!$J$3:$O$1900,6,0),0) -> 0
A58: يناير | O58: "م2" | P58: اسمنت مقاوم | Q58: 0 | R58: اسمنت عادى | S58: 0 | T58: سن1 | U58: 0 | V58: سن2 | W58: 0 | Y58: 0 | Z58: مادة | AA58: 0 | AB58: 0 | AC58: =IFERROR(VLOOKUP($AB58,LIST!$J$3:$O$190,2,0),0) -> 0 | AD58: =IFERROR(VLOOKUP($AB58,LIST!$J$3:$O$1900,3,0),0) -> 0 | AE58: =IFERROR(VLOOKUP($AB58,LIST!$J$3:$O$1900,4,0),0) -> 0 | AF58: =IFERROR(VLOOKUP($AB58,LIST!$J$3:$O$1900,5,0),0) -> 0 | AG58: =IFERROR(VLOOKUP($AB58,LIST!$J$3:$O$1900,6,0),0) -> 0
A59: يناير | O59: "م2" | P59: اسمنت مقاوم | Q59: 0 | R59: اسمنت عادى | S59: 0 | T59: سن1 | U59: 0 | V59: سن2 | W59: 0 | Y59: 0 | Z59: مادة | AA59: 0 | AB59: 0 | AC59: =IFERROR(VLOOKUP($AB59,LIST!$J$3:$O$190,2,0),0) -> 0 | AD59: =IFERROR(VLOOKUP($AB59,LIST!$J$3:$O$1900,3,0),0) -> 0 | AE59: =IFERROR(VLOOKUP($AB59,LIST!$J$3:$O$1900,4,0),0) -> 0 | AF59: =IFERROR(VLOOKUP($AB59,LIST!$J$3:$O$1900,5,0),0) -> 0 | AG59: =IFERROR(VLOOKUP($AB59,LIST!$J$3:$O$1900,6,0),0) -> 0
A60: يناير | O60: "م2" | P60: اسمنت مقاوم | Q60: 0 | R60: اسمنت عادى | S60: 0 | T60: سن1 | U60: 0 | V60: سن2 | W60: 0 | Y60: 0 | Z60: مادة | AA60: 0 | AB60: 0 | AC60: =IFERROR(VLOOKUP($AB60,LIST!$J$3:$O$190,2,0),0) -> 0 | AD60: =IFERROR(VLOOKUP($AB60,LIST!$J$3:$O$1900,3,0),0) -> 0 | AE60: =IFERROR(VLOOKUP($AB60,LIST!$J$3:$O$1900,4,0),0) -> 0 | AF60: =IFERROR(VLOOKUP($AB60,LIST!$J$3:$O$1900,5,0),0) -> 0 | AG60: =IFERROR(VLOOKUP($AB60,LIST!$J$3:$O$1900,6,0),0) -> 0
A61: يناير | O61: "م2" | P61: اسمنت مقاوم | Q61: 0 | R61: اسمنت عادى | S61: 0 | T61: سن1 | U61: 0 | V61: سن2 | W61: 0 | Y61: 0 | Z61: مادة | AA61: 0 | AB61: 0 | AC61: =IFERROR(VLOOKUP($AB61,LIST!$J$3:$O$190,2,0),0) -> 0 | AD61: =IFERROR(VLOOKUP($AB61,LIST!$J$3:$O$1900,3,0),0) -> 0 | AE61: =IFERROR(VLOOKUP($AB61,LIST!$J$3:$O$1900,4,0),0) -> 0 | AF61: =IFERROR(VLOOKUP($AB61,LIST!$J$3:$O$1900,5,0),0) -> 0 | AG61: =IFERROR(VLOOKUP($AB61,LIST!$J$3:$O$1900,6,0),0) -> 0
A62: يناير | O62: "م2" | P62: اسمنت مقاوم | Q62: 0 | R62: اسمنت عادى | S62: 0 | T62: سن1 | U62: 0 | V62: سن2 | W62: 0 | Y62: 0 | Z62: مادة | AA62: 0 | AB62: 0 | AC62: =IFERROR(VLOOKUP($AB62,LIST!$J$3:$O$190,2,0),0) -> 0 | AD62: =IFERROR(VLOOKUP($AB62,LIST!$J$3:$O$1900,3,0),0) -> 0 | AE62: =IFERROR(VLOOKUP($AB62,LIST!$J$3:$O$1900,4,0),0) -> 0 | AF62: =IFERROR(VLOOKUP($AB62,LIST!$J$3:$O$1900,5,0),0) -> 0 | AG62: =IFERROR(VLOOKUP($AB62,LIST!$J$3:$O$1900,6,0),0) -> 0
A63: يناير | O63: "م2" | P63: اسمنت مقاوم | Q63: 0 | R63: اسمنت عادى | S63: 0 | T63: سن1 | U63: 0 | V63: سن2 | W63: 0 | Y63: 0 | Z63: مادة | AA63: 0 | AB63: 0 | AC63: =IFERROR(VLOOKUP($AB63,LIST!$J$3:$O$190,2,0),0) -> 0 | AD63: =IFERROR(VLOOKUP($AB63,LIST!$J$3:$O$1900,3,0),0) -> 0 | AE63: =IFERROR(VLOOKUP($AB63,LIST!$J$3:$O$1900,4,0),0) -> 0 | AF63: =IFERROR(VLOOKUP($AB63,LIST!$J$3:$O$1900,5,0),0) -> 0 | AG63: =IFERROR(VLOOKUP($AB63,LIST!$J$3:$O$1900,6,0),0) -> 0
A64: يناير | O64: "م2" | P64: اسمنت مقاوم | Q64: 0 | R64: اسمنت عادى | S64: 0 | T64: سن1 | U64: 0 | V64: سن2 | W64: 0 | Y64: 0 | Z64: مادة | AA64: 0 | AB64: 0 | AC64: =IFERROR(VLOOKUP($AB64,LIST!$J$3:$O$190,2,0),0) -> 0 | AD64: =IFERROR(VLOOKUP($AB64,LIST!$J$3:$O$1900,3,0),0) -> 0 | AE64: =IFERROR(VLOOKUP($AB64,LIST!$J$3:$O$1900,4,0),0) -> 0 | AF64: =IFERROR(VLOOKUP($AB64,LIST!$J$3:$O$1900,5,0),0) -> 0 | AG64: =IFERROR(VLOOKUP($AB64,LIST!$J$3:$O$1900,6,0),0) -> 0
A65: يناير | O65: "م2" | P65: اسمنت مقاوم | Q65: 0 | R65: اسمنت عادى | S65: 0 | T65: سن1 | U65: 0 | V65: سن2 | W65: 0 | Y65: 0 | Z65: مادة | AA65: 0 | AB65: 0 | AC65: =IFERROR(VLOOKUP($AB65,LIST!$J$3:$O$190,2,0),0) -> 0 | AD65: =IFERROR(VLOOKUP($AB65,LIST!$J$3:$O$1900,3,0),0) -> 0 | AE65: =IFERROR(VLOOKUP($AB65,LIST!$J$3:$O$1900,4,0),0) -> 0 | AF65: =IFERROR(VLOOKUP($AB65,LIST!$J$3:$O$1900,5,0),0) -> 0 | AG65: =IFERROR(VLOOKUP($AB65,LIST!$J$3:$O$1900,6,0),0) -> 0
A66: يناير | O66: "م2" | P66: اسمنت مقاوم | Q66: 0 | R66: اسمنت عادى | S66: 0 | T66: سن1 | U66: 0 | V66: سن2 | W66: 0 | Y66: 0 | Z66: مادة | AA66: 0 | AB66: 0 | AC66: =IFERROR(VLOOKUP($AB66,LIST!$J$3:$O$190,2,0),0) -> 0 | AD66: =IFERROR(VLOOKUP($AB66,LIST!$J$3:$O$1900,3,0),0) -> 0 | AE66: =IFERROR(VLOOKUP($AB66,LIST!$J$3:$O$1900,4,0),0) -> 0 | AF66: =IFERROR(VLOOKUP($AB66,LIST!$J$3:$O$1900,5,0),0) -> 0 | AG66: =IFERROR(VLOOKUP($AB66,LIST!$J$3:$O$1900,6,0),0) -> 0
A67: يناير | O67: "م2" | P67: اسمنت مقاوم | Q67: 0 | R67: اسمنت عادى | S67: 0 | T67: سن1 | U67: 0 | V67: سن2 | W67: 0 | Y67: 0 | Z67: مادة | AA67: 0 | AB67: 0 | AC67: =IFERROR(VLOOKUP($AB67,LIST!$J$3:$O$190,2,0),0) -> 0 | AD67: =IFERROR(VLOOKUP($AB67,LIST!$J$3:$O$1900,3,0),0) -> 0 | AE67: =IFERROR(VLOOKUP($AB67,LIST!$J$3:$O$1900,4,0),0) -> 0 | AF67: =IFERROR(VLOOKUP($AB67,LIST!$J$3:$O$1900,5,0),0) -> 0 | AG67: =IFERROR(VLOOKUP($AB67,LIST!$J$3:$O$1900,6,0),0) -> 0
A68: يناير | O68: "م2" | P68: اسمنت مقاوم | Q68: 0 | R68: اسمنت عادى | S68: 0 | T68: سن1 | U68: 0 | V68: سن2 | W68: 0 | Y68: 0 | Z68: مادة | AA68: 0 | AB68: 0 | AC68: =IFERROR(VLOOKUP($AB68,LIST!$J$3:$O$190,2,0),0) -> 0 | AD68: =IFERROR(VLOOKUP($AB68,LIST!$J$3:$O$1900,3,0),0) -> 0 | AE68: =IFERROR(VLOOKUP($AB68,LIST!$J$3:$O$1900,4,0),0) -> 0 | AF68: =IFERROR(VLOOKUP($AB68,LIST!$J$3:$O$1900,5,0),0) -> 0 | AG68: =IFERROR(VLOOKUP($AB68,LIST!$J$3:$O$1900,6,0),0) -> 0
A69: يناير | O69: "م2" | P69: اسمنت مقاوم | Q69: 0 | R69: اسمنت عادى | S69: 0 | T69: سن1 | U69: 0 | V69: سن2 | W69: 0 | Y69: 0 | Z69: مادة | AA69: 0 | AB69: 0 | AC69: =IFERROR(VLOOKUP($AB69,LIST!$J$3:$O$190,2,0),0) -> 0 | AD69: =IFERROR(VLOOKUP($AB69,LIST!$J$3:$O$1900,3,0),0) -> 0 | AE69: =IFERROR(VLOOKUP($AB69,LIST!$J$3:$O$1900,4,0),0) -> 0 | AF69: =IFERROR(VLOOKUP($AB69,LIST!$J$3:$O$1900,5,0),0) -> 0 | AG69: =IFERROR(VLOOKUP($AB69,LIST!$J$3:$O$1900,6,0),0) -> 0
A70: =TEXT(C70,"mmmm") -> يناير | O70: "م2" | P70: اسمنت مقاوم | Q70: =+$N70*AC70 -> 0 | R70: اسمنت عادى | S70: =+$N70*AD70 -> 0 | T70: سن1 | U70: =+$N70*AE70 -> 0 | V70: سن2 | W70: =+$N70*AF70 -> 0 | Y70: 0 | Z70: مادة | AA70: 0 | AB70: =+M70 -> 0 | AC70: =IFERROR(VLOOKUP($AB70,LIST!$J$3:$O$190,2,0),0) -> 0 | AD70: =IFERROR(VLOOKUP($AB70,LIST!$J$3:$O$1900,3,0),0) -> 0 | AE70: =IFERROR(VLOOKUP($AB70,LIST!$J$3:$O$1900,4,0),0) -> 0 | AF70: =IFERROR(VLOOKUP($AB70,LIST!$J$3:$O$1900,5,0),0) -> 0 | AG70: =IFERROR(VLOOKUP($AB70,LIST!$J$3:$O$1900,6,0),0) -> 0
A71: يناير | O71: "م2" | P71: اسمنت مقاوم | Q71: 0 | R71: اسمنت عادى | S71: 0 | T71: سن1 | U71: 0 | V71: سن2 | W71: 0 | Y71: =+$N71*AG71 -> 0 | Z71: مادة | AA71: =+X71+Y71 -> 0 | AB71: 0 | AC71: =IFERROR(VLOOKUP($AB71,LIST!$J$3:$O$190,2,0),0) -> 0 | AD71: =IFERROR(VLOOKUP($AB71,LIST!$J$3:$O$1900,3,0),0) -> 0 | AE71: =IFERROR(VLOOKUP($AB71,LIST!$J$3:$O$1900,4,0),0) -> 0 | AF71: =IFERROR(VLOOKUP($AB71,LIST!$J$3:$O$1900,5,0),0) -> 0 | AG71: =IFERROR(VLOOKUP($AB71,LIST!$J$3:$O$1900,6,0),0) -> 0
A72: يناير | B72: =IF(C72<>"",B71+1,"") ->  | O72: "م2" | P72: =+P71 -> اسمنت مقاوم | Q72: 0 | R72: =+R71 -> اسمنت عادى | S72: 0 | T72: =+T71 -> سن1 | U72: 0 | V72: =+V71 -> سن2 | W72: 0 | Y72: 0 | Z72: =+Z71 -> مادة | AA72: 0 | AB72: 0 | AC72: =IFERROR(VLOOKUP($AB72,LIST!$J$3:$O$190,2,0),0) -> 0 | AD72: =IFERROR(VLOOKUP($AB72,LIST!$J$3:$O$1900,3,0),0) -> 0 | AE72: =IFERROR(VLOOKUP($AB72,LIST!$J$3:$O$1900,4,0),0) -> 0 | AF72: =IFERROR(VLOOKUP($AB72,LIST!$J$3:$O$1900,5,0),0) -> 0 | AG72: =IFERROR(VLOOKUP($AB72,LIST!$J$3:$O$1900,6,0),0) -> 0
A73: يناير | O73: "م2" | P73: اسمنت مقاوم | Q73: 0 | R73: اسمنت عادى | S73: 0 | T73: سن1 | U73: 0 | V73: سن2 | W73: 0 | Y73: 0 | Z73: مادة | AA73: 0 | AB73: 0 | AC73: =IFERROR(VLOOKUP($AB73,LIST!$J$3:$O$190,2,0),0) -> 0 | AD73: =IFERROR(VLOOKUP($AB73,LIST!$J$3:$O$1900,3,0),0) -> 0 | AE73: =IFERROR(VLOOKUP($AB73,LIST!$J$3:$O$1900,4,0),0) -> 0 | AF73: =IFERROR(VLOOKUP($AB73,LIST!$J$3:$O$1900,5,0),0) -> 0 | AG73: =IFERROR(VLOOKUP($AB73,LIST!$J$3:$O$1900,6,0),0) -> 0
A74: يناير | O74: "م2" | P74: اسمنت مقاوم | Q74: 0 | R74: اسمنت عادى | S74: 0 | T74: سن1 | U74: 0 | V74: سن2 | W74: 0 | Y74: 0 | Z74: مادة | AA74: 0 | AB74: 0 | AC74: =IFERROR(VLOOKUP($AB74,LIST!$J$3:$O$190,2,0),0) -> 0 | AD74: =IFERROR(VLOOKUP($AB74,LIST!$J$3:$O$1900,3,0),0) -> 0 | AE74: =IFERROR(VLOOKUP($AB74,LIST!$J$3:$O$1900,4,0),0) -> 0 | AF74: =IFERROR(VLOOKUP($AB74,LIST!$J$3:$O$1900,5,0),0) -> 0 | AG74: =IFERROR(VLOOKUP($AB74,LIST!$J$3:$O$1900,6,0),0) -> 0
A75: يناير | O75: "م2" | P75: اسمنت مقاوم | Q75: 0 | R75: اسمنت عادى | S75: 0 | T75: سن1 | U75: 0 | V75: سن2 | W75: 0 | Y75: 0 | Z75: مادة | AA75: 0 | AB75: 0 | AC75: =IFERROR(VLOOKUP($AB75,LIST!$J$3:$O$190,2,0),0) -> 0 | AD75: =IFERROR(VLOOKUP($AB75,LIST!$J$3:$O$1900,3,0),0) -> 0 | AE75: =IFERROR(VLOOKUP($AB75,LIST!$J$3:$O$1900,4,0),0) -> 0 | AF75: =IFERROR(VLOOKUP($AB75,LIST!$J$3:$O$1900,5,0),0) -> 0 | AG75: =IFERROR(VLOOKUP($AB75,LIST!$J$3:$O$1900,6,0),0) -> 0
A76: يناير | O76: "م2" | P76: اسمنت مقاوم | Q76: 0 | R76: اسمنت عادى | S76: 0 | T76: سن1 | U76: 0 | V76: سن2 | W76: 0 | Y76: 0 | Z76: مادة | AA76: 0 | AB76: 0 | AC76: =IFERROR(VLOOKUP($AB76,LIST!$J$3:$O$190,2,0),0) -> 0 | AD76: =IFERROR(VLOOKUP($AB76,LIST!$J$3:$O$1900,3,0),0) -> 0 | AE76: =IFERROR(VLOOKUP($AB76,LIST!$J$3:$O$1900,4,0),0) -> 0 | AF76: =IFERROR(VLOOKUP($AB76,LIST!$J$3:$O$1900,5,0),0) -> 0 | AG76: =IFERROR(VLOOKUP($AB76,LIST!$J$3:$O$1900,6,0),0) -> 0
A77: يناير | O77: "م2" | P77: اسمنت مقاوم | Q77: 0 | R77: اسمنت عادى | S77: 0 | T77: سن1 | U77: 0 | V77: سن2 | W77: 0 | Y77: 0 | Z77: مادة | AA77: 0 | AB77: 0 | AC77: =IFERROR(VLOOKUP($AB77,LIST!$J$3:$O$190,2,0),0) -> 0 | AD77: =IFERROR(VLOOKUP($AB77,LIST!$J$3:$O$1900,3,0),0) -> 0 | AE77: =IFERROR(VLOOKUP($AB77,LIST!$J$3:$O$1900,4,0),0) -> 0 | AF77: =IFERROR(VLOOKUP($AB77,LIST!$J$3:$O$1900,5,0),0) -> 0 | AG77: =IFERROR(VLOOKUP($AB77,LIST!$J$3:$O$1900,6,0),0) -> 0
A78: يناير | O78: "م2" | P78: اسمنت مقاوم | Q78: 0 | R78: اسمنت عادى | S78: 0 | T78: سن1 | U78: 0 | V78: سن2 | W78: 0 | Y78: 0 | Z78: مادة | AA78: 0 | AB78: 0 | AC78: =IFERROR(VLOOKUP($AB78,LIST!$J$3:$O$190,2,0),0) -> 0 | AD78: =IFERROR(VLOOKUP($AB78,LIST!$J$3:$O$1900,3,0),0) -> 0 | AE78: =IFERROR(VLOOKUP($AB78,LIST!$J$3:$O$1900,4,0),0) -> 0 | AF78: =IFERROR(VLOOKUP($AB78,LIST!$J$3:$O$1900,5,0),0) -> 0 | AG78: =IFERROR(VLOOKUP($AB78,LIST!$J$3:$O$1900,6,0),0) -> 0
A79: يناير | O79: "م2" | P79: اسمنت مقاوم | Q79: 0 | R79: اسمنت عادى | S79: 0 | T79: سن1 | U79: 0 | V79: سن2 | W79: 0 | Y79: 0 | Z79: مادة | AA79: 0 | AB79: 0 | AC79: =IFERROR(VLOOKUP($AB79,LIST!$J$3:$O$190,2,0),0) -> 0 | AD79: =IFERROR(VLOOKUP($AB79,LIST!$J$3:$O$1900,3,0),0) -> 0 | AE79: =IFERROR(VLOOKUP($AB79,LIST!$J$3:$O$1900,4,0),0) -> 0 | AF79: =IFERROR(VLOOKUP($AB79,LIST!$J$3:$O$1900,5,0),0) -> 0 | AG79: =IFERROR(VLOOKUP($AB79,LIST!$J$3:$O$1900,6,0),0) -> 0
A80: يناير | O80: "م2" | P80: اسمنت مقاوم | Q80: 0 | R80: اسمنت عادى | S80: 0 | T80: سن1 | U80: 0 | V80: سن2 | W80: 0 | Y80: 0 | Z80: مادة | AA80: 0 | AB80: 0 | AC80: =IFERROR(VLOOKUP($AB80,LIST!$J$3:$O$190,2,0),0) -> 0 | AD80: =IFERROR(VLOOKUP($AB80,LIST!$J$3:$O$1900,3,0),0) -> 0 | AE80: =IFERROR(VLOOKUP($AB80,LIST!$J$3:$O$1900,4,0),0) -> 0 | AF80: =IFERROR(VLOOKUP($AB80,LIST!$J$3:$O$1900,5,0),0) -> 0 | AG80: =IFERROR(VLOOKUP($AB80,LIST!$J$3:$O$1900,6,0),0) -> 0
A81: يناير | O81: "م2" | P81: اسمنت مقاوم | Q81: 0 | R81: اسمنت عادى | S81: 0 | T81: سن1 | U81: 0 | V81: سن2 | W81: 0 | Y81: 0 | Z81: مادة | AA81: 0 | AB81: 0 | AC81: =IFERROR(VLOOKUP($AB81,LIST!$J$3:$O$190,2,0),0) -> 0 | AD81: =IFERROR(VLOOKUP($AB81,LIST!$J$3:$O$1900,3,0),0) -> 0 | AE81: =IFERROR(VLOOKUP($AB81,LIST!$J$3:$O$1900,4,0),0) -> 0 | AF81: =IFERROR(VLOOKUP($AB81,LIST!$J$3:$O$1900,5,0),0) -> 0 | AG81: =IFERROR(VLOOKUP($AB81,LIST!$J$3:$O$1900,6,0),0) -> 0
A82: يناير | O82: "م2" | P82: اسمنت مقاوم | Q82: 0 | R82: اسمنت عادى | S82: 0 | T82: سن1 | U82: 0 | V82: سن2 | W82: 0 | Y82: 0 | Z82: مادة | AA82: 0 | AB82: 0 | AC82: =IFERROR(VLOOKUP($AB82,LIST!$J$3:$O$190,2,0),0) -> 0 | AD82: =IFERROR(VLOOKUP($AB82,LIST!$J$3:$O$1900,3,0),0) -> 0 | AE82: =IFERROR(VLOOKUP($AB82,LIST!$J$3:$O$1900,4,0),0) -> 0 | AF82: =IFERROR(VLOOKUP($AB82,LIST!$J$3:$O$1900,5,0),0) -> 0 | AG82: =IFERROR(VLOOKUP($AB82,LIST!$J$3:$O$1900,6,0),0) -> 0
A83: يناير | O83: "م2" | P83: اسمنت مقاوم | Q83: 0 | R83: اسمنت عادى | S83: 0 | T83: سن1 | U83: 0 | V83: سن2 | W83: 0 | Y83: 0 | Z83: مادة | AA83: 0 | AB83: 0 | AC83: =IFERROR(VLOOKUP($AB83,LIST!$J$3:$O$190,2,0),0) -> 0 | AD83: =IFERROR(VLOOKUP($AB83,LIST!$J$3:$O$1900,3,0),0) -> 0 | AE83: =IFERROR(VLOOKUP($AB83,LIST!$J$3:$O$1900,4,0),0) -> 0 | AF83: =IFERROR(VLOOKUP($AB83,LIST!$J$3:$O$1900,5,0),0) -> 0 | AG83: =IFERROR(VLOOKUP($AB83,LIST!$J$3:$O$1900,6,0),0) -> 0
A84: يناير | O84: "م2" | P84: اسمنت مقاوم | Q84: 0 | R84: اسمنت عادى | S84: 0 | T84: سن1 | U84: 0 | V84: سن2 | W84: 0 | Y84: 0 | Z84: مادة | AA84: 0 | AB84: 0 | AC84: =IFERROR(VLOOKUP($AB84,LIST!$J$3:$O$190,2,0),0) -> 0 | AD84: =IFERROR(VLOOKUP($AB84,LIST!$J$3:$O$1900,3,0),0) -> 0 | AE84: =IFERROR(VLOOKUP($AB84,LIST!$J$3:$O$1900,4,0),0) -> 0 | AF84: =IFERROR(VLOOKUP($AB84,LIST!$J$3:$O$1900,5,0),0) -> 0 | AG84: =IFERROR(VLOOKUP($AB84,LIST!$J$3:$O$1900,6,0),0) -> 0
A85: يناير | O85: "م2" | P85: اسمنت مقاوم | Q85: 0 | R85: اسمنت عادى | S85: 0 | T85: سن1 | U85: 0 | V85: سن2 | W85: 0 | Y85: 0 | Z85: مادة | AA85: 0 | AB85: 0 | AC85: =IFERROR(VLOOKUP($AB85,LIST!$J$3:$O$190,2,0),0) -> 0 | AD85: =IFERROR(VLOOKUP($AB85,LIST!$J$3:$O$1900,3,0),0) -> 0 | AE85: =IFERROR(VLOOKUP($AB85,LIST!$J$3:$O$1900,4,0),0) -> 0 | AF85: =IFERROR(VLOOKUP($AB85,LIST!$J$3:$O$1900,5,0),0) -> 0 | AG85: =IFERROR(VLOOKUP($AB85,LIST!$J$3:$O$1900,6,0),0) -> 0
A86: يناير | O86: "م2" | P86: اسمنت مقاوم | Q86: 0 | R86: اسمنت عادى | S86: 0 | T86: سن1 | U86: 0 | V86: سن2 | W86: 0 | Y86: 0 | Z86: مادة | AA86: 0 | AB86: 0 | AC86: =IFERROR(VLOOKUP($AB86,LIST!$J$3:$O$190,2,0),0) -> 0 | AD86: =IFERROR(VLOOKUP($AB86,LIST!$J$3:$O$1900,3,0),0) -> 0 | AE86: =IFERROR(VLOOKUP($AB86,LIST!$J$3:$O$1900,4,0),0) -> 0 | AF86: =IFERROR(VLOOKUP($AB86,LIST!$J$3:$O$1900,5,0),0) -> 0 | AG86: =IFERROR(VLOOKUP($AB86,LIST!$J$3:$O$1900,6,0),0) -> 0
A87: يناير | O87: "م2" | P87: اسمنت مقاوم | Q87: 0 | R87: اسمنت عادى | S87: 0 | T87: سن1 | U87: 0 | V87: سن2 | W87: 0 | Y87: 0 | Z87: مادة | AA87: 0 | AB87: 0 | AC87: =IFERROR(VLOOKUP($AB87,LIST!$J$3:$O$190,2,0),0) -> 0 | AD87: =IFERROR(VLOOKUP($AB87,LIST!$J$3:$O$1900,3,0),0) -> 0 | AE87: =IFERROR(VLOOKUP($AB87,LIST!$J$3:$O$1900,4,0),0) -> 0 | AF87: =IFERROR(VLOOKUP($AB87,LIST!$J$3:$O$1900,5,0),0) -> 0 | AG87: =IFERROR(VLOOKUP($AB87,LIST!$J$3:$O$1900,6,0),0) -> 0
A88: يناير | O88: "م2" | P88: اسمنت مقاوم | Q88: 0 | R88: اسمنت عادى | S88: 0 | T88: سن1 | U88: 0 | V88: سن2 | W88: 0 | Y88: 0 | Z88: مادة | AA88: 0 | AB88: 0 | AC88: =IFERROR(VLOOKUP($AB88,LIST!$J$3:$O$190,2,0),0) -> 0 | AD88: =IFERROR(VLOOKUP($AB88,LIST!$J$3:$O$1900,3,0),0) -> 0 | AE88: =IFERROR(VLOOKUP($AB88,LIST!$J$3:$O$1900,4,0),0) -> 0 | AF88: =IFERROR(VLOOKUP($AB88,LIST!$J$3:$O$1900,5,0),0) -> 0 | AG88: =IFERROR(VLOOKUP($AB88,LIST!$J$3:$O$1900,6,0),0) -> 0
A89: يناير | O89: "م2" | P89: اسمنت مقاوم | Q89: 0 | R89: اسمنت عادى | S89: 0 | T89: سن1 | U89: 0 | V89: سن2 | W89: 0 | Y89: 0 | Z89: مادة | AA89: 0 | AB89: 0 | AC89: =IFERROR(VLOOKUP($AB89,LIST!$J$3:$O$190,2,0),0) -> 0 | AD89: =IFERROR(VLOOKUP($AB89,LIST!$J$3:$O$1900,3,0),0) -> 0 | AE89: =IFERROR(VLOOKUP($AB89,LIST!$J$3:$O$1900,4,0),0) -> 0 | AF89: =IFERROR(VLOOKUP($AB89,LIST!$J$3:$O$1900,5,0),0) -> 0 | AG89: =IFERROR(VLOOKUP($AB89,LIST!$J$3:$O$1900,6,0),0) -> 0
A90: يناير | O90: "م2" | P90: اسمنت مقاوم | Q90: 0 | R90: اسمنت عادى | S90: 0 | T90: سن1 | U90: 0 | V90: سن2 | W90: 0 | Y90: 0 | Z90: مادة | AA90: 0 | AB90: 0 | AC90: =IFERROR(VLOOKUP($AB90,LIST!$J$3:$O$190,2,0),0) -> 0 | AD90: =IFERROR(VLOOKUP($AB90,LIST!$J$3:$O$1900,3,0),0) -> 0 | AE90: =IFERROR(VLOOKUP($AB90,LIST!$J$3:$O$1900,4,0),0) -> 0 | AF90: =IFERROR(VLOOKUP($AB90,LIST!$J$3:$O$1900,5,0),0) -> 0 | AG90: =IFERROR(VLOOKUP($AB90,LIST!$J$3:$O$1900,6,0),0) -> 0
A91: يناير | O91: "م2" | P91: اسمنت مقاوم | Q91: 0 | R91: اسمنت عادى | S91: 0 | T91: سن1 | U91: 0 | V91: سن2 | W91: 0 | Y91: 0 | Z91: مادة | AA91: 0 | AB91: 0 | AC91: =IFERROR(VLOOKUP($AB91,LIST!$J$3:$O$190,2,0),0) -> 0 | AD91: =IFERROR(VLOOKUP($AB91,LIST!$J$3:$O$1900,3,0),0) -> 0 | AE91: =IFERROR(VLOOKUP($AB91,LIST!$J$3:$O$1900,4,0),0) -> 0 | AF91: =IFERROR(VLOOKUP($AB91,LIST!$J$3:$O$1900,5,0),0) -> 0 | AG91: =IFERROR(VLOOKUP($AB91,LIST!$J$3:$O$1900,6,0),0) -> 0
A92: يناير | O92: "م2" | P92: اسمنت مقاوم | Q92: 0 | R92: اسمنت عادى | S92: 0 | T92: سن1 | U92: 0 | V92: سن2 | W92: 0 | Y92: 0 | Z92: مادة | AA92: 0 | AB92: 0 | AC92: =IFERROR(VLOOKUP($AB92,LIST!$J$3:$O$190,2,0),0) -> 0 | AD92: =IFERROR(VLOOKUP($AB92,LIST!$J$3:$O$1900,3,0),0) -> 0 | AE92: =IFERROR(VLOOKUP($AB92,LIST!$J$3:$O$1900,4,0),0) -> 0 | AF92: =IFERROR(VLOOKUP($AB92,LIST!$J$3:$O$1900,5,0),0) -> 0 | AG92: =IFERROR(VLOOKUP($AB92,LIST!$J$3:$O$1900,6,0),0) -> 0
A93: يناير | O93: "م2" | P93: اسمنت مقاوم | Q93: 0 | R93: اسمنت عادى | S93: 0 | T93: سن1 | U93: 0 | V93: سن2 | W93: 0 | Y93: 0 | Z93: مادة | AA93: 0 | AB93: 0 | AC93: =IFERROR(VLOOKUP($AB93,LIST!$J$3:$O$190,2,0),0) -> 0 | AD93: =IFERROR(VLOOKUP($AB93,LIST!$J$3:$O$1900,3,0),0) -> 0 | AE93: =IFERROR(VLOOKUP($AB93,LIST!$J$3:$O$1900,4,0),0) -> 0 | AF93: =IFERROR(VLOOKUP($AB93,LIST!$J$3:$O$1900,5,0),0) -> 0 | AG93: =IFERROR(VLOOKUP($AB93,LIST!$J$3:$O$1900,6,0),0) -> 0
A94: يناير | O94: "م2" | P94: اسمنت مقاوم | Q94: 0 | R94: اسمنت عادى | S94: 0 | T94: سن1 | U94: 0 | V94: سن2 | W94: 0 | Y94: 0 | Z94: مادة | AA94: 0 | AB94: 0 | AC94: =IFERROR(VLOOKUP($AB94,LIST!$J$3:$O$190,2,0),0) -> 0 | AD94: =IFERROR(VLOOKUP($AB94,LIST!$J$3:$O$1900,3,0),0) -> 0 | AE94: =IFERROR(VLOOKUP($AB94,LIST!$J$3:$O$1900,4,0),0) -> 0 | AF94: =IFERROR(VLOOKUP($AB94,LIST!$J$3:$O$1900,5,0),0) -> 0 | AG94: =IFERROR(VLOOKUP($AB94,LIST!$J$3:$O$1900,6,0),0) -> 0
A95: يناير | O95: "م2" | P95: اسمنت مقاوم | Q95: 0 | R95: اسمنت عادى | S95: 0 | T95: سن1 | U95: 0 | V95: سن2 | W95: 0 | Y95: 0 | Z95: مادة | AA95: 0 | AB95: 0 | AC95: =IFERROR(VLOOKUP($AB95,LIST!$J$3:$O$190,2,0),0) -> 0 | AD95: =IFERROR(VLOOKUP($AB95,LIST!$J$3:$O$1900,3,0),0) -> 0 | AE95: =IFERROR(VLOOKUP($AB95,LIST!$J$3:$O$1900,4,0),0) -> 0 | AF95: =IFERROR(VLOOKUP($AB95,LIST!$J$3:$O$1900,5,0),0) -> 0 | AG95: =IFERROR(VLOOKUP($AB95,LIST!$J$3:$O$1900,6,0),0) -> 0
A96: يناير | O96: "م2" | P96: اسمنت مقاوم | Q96: 0 | R96: اسمنت عادى | S96: 0 | T96: سن1 | U96: 0 | V96: سن2 | W96: 0 | Y96: 0 | Z96: مادة | AA96: 0 | AB96: 0 | AC96: =IFERROR(VLOOKUP($AB96,LIST!$J$3:$O$190,2,0),0) -> 0 | AD96: =IFERROR(VLOOKUP($AB96,LIST!$J$3:$O$1900,3,0),0) -> 0 | AE96: =IFERROR(VLOOKUP($AB96,LIST!$J$3:$O$1900,4,0),0) -> 0 | AF96: =IFERROR(VLOOKUP($AB96,LIST!$J$3:$O$1900,5,0),0) -> 0 | AG96: =IFERROR(VLOOKUP($AB96,LIST!$J$3:$O$1900,6,0),0) -> 0
A97: يناير | O97: "م2" | P97: اسمنت مقاوم | Q97: 0 | R97: اسمنت عادى | S97: 0 | T97: سن1 | U97: 0 | V97: سن2 | W97: 0 | Y97: 0 | Z97: مادة | AA97: 0 | AB97: 0 | AC97: =IFERROR(VLOOKUP($AB97,LIST!$J$3:$O$190,2,0),0) -> 0 | AD97: =IFERROR(VLOOKUP($AB97,LIST!$J$3:$O$1900,3,0),0) -> 0 | AE97: =IFERROR(VLOOKUP($AB97,LIST!$J$3:$O$1900,4,0),0) -> 0 | AF97: =IFERROR(VLOOKUP($AB97,LIST!$J$3:$O$1900,5,0),0) -> 0 | AG97: =IFERROR(VLOOKUP($AB97,LIST!$J$3:$O$1900,6,0),0) -> 0
A98: يناير | O98: "م2" | P98: اسمنت مقاوم | Q98: 0 | R98: اسمنت عادى | S98: 0 | T98: سن1 | U98: 0 | V98: سن2 | W98: 0 | Y98: 0 | Z98: مادة | AA98: 0 | AB98: 0 | AC98: =IFERROR(VLOOKUP($AB98,LIST!$J$3:$O$190,2,0),0) -> 0 | AD98: =IFERROR(VLOOKUP($AB98,LIST!$J$3:$O$1900,3,0),0) -> 0 | AE98: =IFERROR(VLOOKUP($AB98,LIST!$J$3:$O$1900,4,0),0) -> 0 | AF98: =IFERROR(VLOOKUP($AB98,LIST!$J$3:$O$1900,5,0),0) -> 0 | AG98: =IFERROR(VLOOKUP($AB98,LIST!$J$3:$O$1900,6,0),0) -> 0
A99: يناير | O99: "م2" | P99: اسمنت مقاوم | Q99: 0 | R99: اسمنت عادى | S99: 0 | T99: سن1 | U99: 0 | V99: سن2 | W99: 0 | Y99: 0 | Z99: مادة | AA99: 0 | AB99: 0 | AC99: =IFERROR(VLOOKUP($AB99,LIST!$J$3:$O$190,2,0),0) -> 0 | AD99: =IFERROR(VLOOKUP($AB99,LIST!$J$3:$O$1900,3,0),0) -> 0 | AE99: =IFERROR(VLOOKUP($AB99,LIST!$J$3:$O$1900,4,0),0) -> 0 | AF99: =IFERROR(VLOOKUP($AB99,LIST!$J$3:$O$1900,5,0),0) -> 0 | AG99: =IFERROR(VLOOKUP($AB99,LIST!$J$3:$O$1900,6,0),0) -> 0
A100: يناير | O100: "م2" | P100: اسمنت مقاوم | Q100: 0 | R100: اسمنت عادى | S100: 0 | T100: سن1 | U100: 0 | V100: سن2 | W100: 0 | Y100: 0 | Z100: مادة | AA100: 0 | AB100: 0 | AC100: =IFERROR(VLOOKUP($AB100,LIST!$J$3:$O$190,2,0),0) -> 0 | AD100: =IFERROR(VLOOKUP($AB100,LIST!$J$3:$O$1900,3,0),0) -> 0 | AE100: =IFERROR(VLOOKUP($AB100,LIST!$J$3:$O$1900,4,0),0) -> 0 | AF100: =IFERROR(VLOOKUP($AB100,LIST!$J$3:$O$1900,5,0),0) -> 0 | AG100: =IFERROR(VLOOKUP($AB100,LIST!$J$3:$O$1900,6,0),0) -> 0
A101: يناير | O101: "م2" | P101: اسمنت مقاوم | Q101: 0 | R101: اسمنت عادى | S101: 0 | T101: سن1 | U101: 0 | V101: سن2 | W101: 0 | Y101: 0 | Z101: مادة | AA101: 0 | AB101: 0 | AC101: =IFERROR(VLOOKUP($AB101,LIST!$J$3:$O$190,2,0),0) -> 0 | AD101: =IFERROR(VLOOKUP($AB101,LIST!$J$3:$O$1900,3,0),0) -> 0 | AE101: =IFERROR(VLOOKUP($AB101,LIST!$J$3:$O$1900,4,0),0) -> 0 | AF101: =IFERROR(VLOOKUP($AB101,LIST!$J$3:$O$1900,5,0),0) -> 0 | AG101: =IFERROR(VLOOKUP($AB101,LIST!$J$3:$O$1900,6,0),0) -> 0
A102: يناير | O102: "م2" | P102: اسمنت مقاوم | Q102: 0 | R102: اسمنت عادى | S102: 0 | T102: سن1 | U102: 0 | V102: سن2 | W102: 0 | Y102: 0 | Z102: مادة | AA102: 0 | AB102: 0 | AC102: =IFERROR(VLOOKUP($AB102,LIST!$J$3:$O$190,2,0),0) -> 0 | AD102: =IFERROR(VLOOKUP($AB102,LIST!$J$3:$O$1900,3,0),0) -> 0 | AE102: =IFERROR(VLOOKUP($AB102,LIST!$J$3:$O$1900,4,0),0) -> 0 | AF102: =IFERROR(VLOOKUP($AB102,LIST!$J$3:$O$1900,5,0),0) -> 0 | AG102: =IFERROR(VLOOKUP($AB102,LIST!$J$3:$O$1900,6,0),0) -> 0
A103: يناير | O103: "م2" | P103: اسمنت مقاوم | Q103: 0 | R103: اسمنت عادى | S103: 0 | T103: سن1 | U103: 0 | V103: سن2 | W103: 0 | Y103: 0 | Z103: مادة | AA103: 0 | AB103: 0 | AC103: =IFERROR(VLOOKUP($AB103,LIST!$J$3:$O$190,2,0),0) -> 0 | AD103: =IFERROR(VLOOKUP($AB103,LIST!$J$3:$O$1900,3,0),0) -> 0 | AE103: =IFERROR(VLOOKUP($AB103,LIST!$J$3:$O$1900,4,0),0) -> 0 | AF103: =IFERROR(VLOOKUP($AB103,LIST!$J$3:$O$1900,5,0),0) -> 0 | AG103: =IFERROR(VLOOKUP($AB103,LIST!$J$3:$O$1900,6,0),0) -> 0
A104: يناير | O104: "م2" | P104: اسمنت مقاوم | Q104: 0 | R104: اسمنت عادى | S104: 0 | T104: سن1 | U104: 0 | V104: سن2 | W104: 0 | Y104: 0 | Z104: مادة | AA104: 0 | AB104: 0 | AC104: =IFERROR(VLOOKUP($AB104,LIST!$J$3:$O$190,2,0),0) -> 0 | AD104: =IFERROR(VLOOKUP($AB104,LIST!$J$3:$O$1900,3,0),0) -> 0 | AE104: =IFERROR(VLOOKUP($AB104,LIST!$J$3:$O$1900,4,0),0) -> 0 | AF104: =IFERROR(VLOOKUP($AB104,LIST!$J$3:$O$1900,5,0),0) -> 0 | AG104: =IFERROR(VLOOKUP($AB104,LIST!$J$3:$O$1900,6,0),0) -> 0
A105: يناير | O105: "م2" | P105: اسمنت مقاوم | Q105: 0 | R105: اسمنت عادى | S105: 0 | T105: سن1 | U105: 0 | V105: سن2 | W105: 0 | Y105: 0 | Z105: مادة | AA105: 0 | AB105: 0 | AC105: =IFERROR(VLOOKUP($AB105,LIST!$J$3:$O$190,2,0),0) -> 0 | AD105: =IFERROR(VLOOKUP($AB105,LIST!$J$3:$O$1900,3,0),0) -> 0 | AE105: =IFERROR(VLOOKUP($AB105,LIST!$J$3:$O$1900,4,0),0) -> 0 | AF105: =IFERROR(VLOOKUP($AB105,LIST!$J$3:$O$1900,5,0),0) -> 0 | AG105: =IFERROR(VLOOKUP($AB105,LIST!$J$3:$O$1900,6,0),0) -> 0
A106: يناير | O106: "م2" | P106: اسمنت مقاوم | Q106: 0 | R106: اسمنت عادى | S106: 0 | T106: سن1 | U106: 0 | V106: سن2 | W106: 0 | Y106: 0 | Z106: مادة | AA106: 0 | AB106: 0 | AC106: =IFERROR(VLOOKUP($AB106,LIST!$J$3:$O$190,2,0),0) -> 0 | AD106: =IFERROR(VLOOKUP($AB106,LIST!$J$3:$O$1900,3,0),0) -> 0 | AE106: =IFERROR(VLOOKUP($AB106,LIST!$J$3:$O$1900,4,0),0) -> 0 | AF106: =IFERROR(VLOOKUP($AB106,LIST!$J$3:$O$1900,5,0),0) -> 0 | AG106: =IFERROR(VLOOKUP($AB106,LIST!$J$3:$O$1900,6,0),0) -> 0
A107: يناير | O107: "م2" | P107: اسمنت مقاوم | Q107: 0 | R107: اسمنت عادى | S107: 0 | T107: سن1 | U107: 0 | V107: سن2 | W107: 0 | Y107: 0 | Z107: مادة | AA107: 0 | AB107: 0 | AC107: =IFERROR(VLOOKUP($AB107,LIST!$J$3:$O$190,2,0),0) -> 0 | AD107: =IFERROR(VLOOKUP($AB107,LIST!$J$3:$O$1900,3,0),0) -> 0 | AE107: =IFERROR(VLOOKUP($AB107,LIST!$J$3:$O$1900,4,0),0) -> 0 | AF107: =IFERROR(VLOOKUP($AB107,LIST!$J$3:$O$1900,5,0),0) -> 0 | AG107: =IFERROR(VLOOKUP($AB107,LIST!$J$3:$O$1900,6,0),0) -> 0
A108: يناير | O108: "م2" | P108: اسمنت مقاوم | Q108: 0 | R108: اسمنت عادى | S108: 0 | T108: سن1 | U108: 0 | V108: سن2 | W108: 0 | Y108: 0 | Z108: مادة | AA108: 0 | AB108: 0 | AC108: =IFERROR(VLOOKUP($AB108,LIST!$J$3:$O$190,2,0),0) -> 0 | AD108: =IFERROR(VLOOKUP($AB108,LIST!$J$3:$O$1900,3,0),0) -> 0 | AE108: =IFERROR(VLOOKUP($AB108,LIST!$J$3:$O$1900,4,0),0) -> 0 | AF108: =IFERROR(VLOOKUP($AB108,LIST!$J$3:$O$1900,5,0),0) -> 0 | AG108: =IFERROR(VLOOKUP($AB108,LIST!$J$3:$O$1900,6,0),0) -> 0
A109: يناير | O109: "م2" | P109: اسمنت مقاوم | Q109: 0 | R109: اسمنت عادى | S109: 0 | T109: سن1 | U109: 0 | V109: سن2 | W109: 0 | Y109: 0 | Z109: مادة | AA109: 0 | AB109: 0 | AC109: =IFERROR(VLOOKUP($AB109,LIST!$J$3:$O$190,2,0),0) -> 0 | AD109: =IFERROR(VLOOKUP($AB109,LIST!$J$3:$O$1900,3,0),0) -> 0 | AE109: =IFERROR(VLOOKUP($AB109,LIST!$J$3:$O$1900,4,0),0) -> 0 | AF109: =IFERROR(VLOOKUP($AB109,LIST!$J$3:$O$1900,5,0),0) -> 0 | AG109: =IFERROR(VLOOKUP($AB109,LIST!$J$3:$O$1900,6,0),0) -> 0
A110: يناير | O110: "م2" | P110: اسمنت مقاوم | Q110: 0 | R110: اسمنت عادى | S110: 0 | T110: سن1 | U110: 0 | V110: سن2 | W110: 0 | Y110: 0 | Z110: مادة | AA110: 0 | AB110: 0 | AC110: =IFERROR(VLOOKUP($AB110,LIST!$J$3:$O$190,2,0),0) -> 0 | AD110: =IFERROR(VLOOKUP($AB110,LIST!$J$3:$O$1900,3,0),0) -> 0 | AE110: =IFERROR(VLOOKUP($AB110,LIST!$J$3:$O$1900,4,0),0) -> 0 | AF110: =IFERROR(VLOOKUP($AB110,LIST!$J$3:$O$1900,5,0),0) -> 0 | AG110: =IFERROR(VLOOKUP($AB110,LIST!$J$3:$O$1900,6,0),0) -> 0
A111: يناير | O111: "م2" | P111: اسمنت مقاوم | Q111: 0 | R111: اسمنت عادى | S111: 0 | T111: سن1 | U111: 0 | V111: سن2 | W111: 0 | Y111: 0 | Z111: مادة | AA111: 0 | AB111: 0 | AC111: =IFERROR(VLOOKUP($AB111,LIST!$J$3:$O$190,2,0),0) -> 0 | AD111: =IFERROR(VLOOKUP($AB111,LIST!$J$3:$O$1900,3,0),0) -> 0 | AE111: =IFERROR(VLOOKUP($AB111,LIST!$J$3:$O$1900,4,0),0) -> 0 | AF111: =IFERROR(VLOOKUP($AB111,LIST!$J$3:$O$1900,5,0),0) -> 0 | AG111: =IFERROR(VLOOKUP($AB111,LIST!$J$3:$O$1900,6,0),0) -> 0
A112: يناير | O112: "م2" | P112: اسمنت مقاوم | Q112: 0 | R112: اسمنت عادى | S112: 0 | T112: سن1 | U112: 0 | V112: سن2 | W112: 0 | Y112: 0 | Z112: مادة | AA112: 0 | AB112: 0 | AC112: =IFERROR(VLOOKUP($AB112,LIST!$J$3:$O$190,2,0),0) -> 0 | AD112: =IFERROR(VLOOKUP($AB112,LIST!$J$3:$O$1900,3,0),0) -> 0 | AE112: =IFERROR(VLOOKUP($AB112,LIST!$J$3:$O$1900,4,0),0) -> 0 | AF112: =IFERROR(VLOOKUP($AB112,LIST!$J$3:$O$1900,5,0),0) -> 0 | AG112: =IFERROR(VLOOKUP($AB112,LIST!$J$3:$O$1900,6,0),0) -> 0
A113: يناير | O113: "م2" | P113: اسمنت مقاوم | Q113: 0 | R113: اسمنت عادى | S113: 0 | T113: سن1 | U113: 0 | V113: سن2 | W113: 0 | Y113: 0 | Z113: مادة | AA113: 0 | AB113: 0 | AC113: =IFERROR(VLOOKUP($AB113,LIST!$J$3:$O$190,2,0),0) -> 0 | AD113: =IFERROR(VLOOKUP($AB113,LIST!$J$3:$O$1900,3,0),0) -> 0 | AE113: =IFERROR(VLOOKUP($AB113,LIST!$J$3:$O$1900,4,0),0) -> 0 | AF113: =IFERROR(VLOOKUP($AB113,LIST!$J$3:$O$1900,5,0),0) -> 0 | AG113: =IFERROR(VLOOKUP($AB113,LIST!$J$3:$O$1900,6,0),0) -> 0
A114: يناير | O114: "م2" | P114: اسمنت مقاوم | Q114: 0 | R114: اسمنت عادى | S114: 0 | T114: سن1 | U114: 0 | V114: سن2 | W114: 0 | Y114: 0 | Z114: مادة | AA114: 0 | AB114: 0 | AC114: =IFERROR(VLOOKUP($AB114,LIST!$J$3:$O$190,2,0),0) -> 0 | AD114: =IFERROR(VLOOKUP($AB114,LIST!$J$3:$O$1900,3,0),0) -> 0 | AE114: =IFERROR(VLOOKUP($AB114,LIST!$J$3:$O$1900,4,0),0) -> 0 | AF114: =IFERROR(VLOOKUP($AB114,LIST!$J$3:$O$1900,5,0),0) -> 0 | AG114: =IFERROR(VLOOKUP($AB114,LIST!$J$3:$O$1900,6,0),0) -> 0
A115: يناير | O115: "م2" | P115: اسمنت مقاوم | Q115: 0 | R115: اسمنت عادى | S115: 0 | T115: سن1 | U115: 0 | V115: سن2 | W115: 0 | Y115: 0 | Z115: مادة | AA115: 0 | AB115: 0 | AC115: =IFERROR(VLOOKUP($AB115,LIST!$J$3:$O$190,2,0),0) -> 0 | AD115: =IFERROR(VLOOKUP($AB115,LIST!$J$3:$O$1900,3,0),0) -> 0 | AE115: =IFERROR(VLOOKUP($AB115,LIST!$J$3:$O$1900,4,0),0) -> 0 | AF115: =IFERROR(VLOOKUP($AB115,LIST!$J$3:$O$1900,5,0),0) -> 0 | AG115: =IFERROR(VLOOKUP($AB115,LIST!$J$3:$O$1900,6,0),0) -> 0
A116: يناير | O116: "م2" | P116: اسمنت مقاوم | Q116: 0 | R116: اسمنت عادى | S116: 0 | T116: سن1 | U116: 0 | V116: سن2 | W116: 0 | Y116: 0 | Z116: مادة | AA116: 0 | AB116: 0 | AC116: =IFERROR(VLOOKUP($AB116,LIST!$J$3:$O$190,2,0),0) -> 0 | AD116: =IFERROR(VLOOKUP($AB116,LIST!$J$3:$O$1900,3,0),0) -> 0 | AE116: =IFERROR(VLOOKUP($AB116,LIST!$J$3:$O$1900,4,0),0) -> 0 | AF116: =IFERROR(VLOOKUP($AB116,LIST!$J$3:$O$1900,5,0),0) -> 0 | AG116: =IFERROR(VLOOKUP($AB116,LIST!$J$3:$O$1900,6,0),0) -> 0
A117: يناير | O117: "م2" | P117: اسمنت مقاوم | Q117: 0 | R117: اسمنت عادى | S117: 0 | T117: سن1 | U117: 0 | V117: سن2 | W117: 0 | Y117: 0 | Z117: مادة | AA117: 0 | AB117: 0 | AC117: =IFERROR(VLOOKUP($AB117,LIST!$J$3:$O$190,2,0),0) -> 0 | AD117: =IFERROR(VLOOKUP($AB117,LIST!$J$3:$O$1900,3,0),0) -> 0 | AE117: =IFERROR(VLOOKUP($AB117,LIST!$J$3:$O$1900,4,0),0) -> 0 | AF117: =IFERROR(VLOOKUP($AB117,LIST!$J$3:$O$1900,5,0),0) -> 0 | AG117: =IFERROR(VLOOKUP($AB117,LIST!$J$3:$O$1900,6,0),0) -> 0
A118: يناير | O118: "م2" | P118: اسمنت مقاوم | Q118: 0 | R118: اسمنت عادى | S118: 0 | T118: سن1 | U118: 0 | V118: سن2 | W118: 0 | Y118: 0 | Z118: مادة | AA118: 0 | AB118: 0 | AC118: =IFERROR(VLOOKUP($AB118,LIST!$J$3:$O$190,2,0),0) -> 0 | AD118: =IFERROR(VLOOKUP($AB118,LIST!$J$3:$O$1900,3,0),0) -> 0 | AE118: =IFERROR(VLOOKUP($AB118,LIST!$J$3:$O$1900,4,0),0) -> 0 | AF118: =IFERROR(VLOOKUP($AB118,LIST!$J$3:$O$1900,5,0),0) -> 0 | AG118: =IFERROR(VLOOKUP($AB118,LIST!$J$3:$O$1900,6,0),0) -> 0
A119: يناير | O119: "م2" | P119: اسمنت مقاوم | Q119: 0 | R119: اسمنت عادى | S119: 0 | T119: سن1 | U119: 0 | V119: سن2 | W119: 0 | Y119: 0 | Z119: مادة | AA119: 0 | AB119: 0 | AC119: =IFERROR(VLOOKUP($AB119,LIST!$J$3:$O$190,2,0),0) -> 0 | AD119: =IFERROR(VLOOKUP($AB119,LIST!$J$3:$O$1900,3,0),0) -> 0 | AE119: =IFERROR(VLOOKUP($AB119,LIST!$J$3:$O$1900,4,0),0) -> 0 | AF119: =IFERROR(VLOOKUP($AB119,LIST!$J$3:$O$1900,5,0),0) -> 0 | AG119: =IFERROR(VLOOKUP($AB119,LIST!$J$3:$O$1900,6,0),0) -> 0
A120: يناير | O120: "م2" | P120: اسمنت مقاوم | Q120: 0 | R120: اسمنت عادى | S120: 0 | T120: سن1 | U120: 0 | V120: سن2 | W120: 0 | Y120: 0 | Z120: مادة | AA120: 0 | AB120: 0 | AC120: =IFERROR(VLOOKUP($AB120,LIST!$J$3:$O$190,2,0),0) -> 0 | AD120: =IFERROR(VLOOKUP($AB120,LIST!$J$3:$O$1900,3,0),0) -> 0 | AE120: =IFERROR(VLOOKUP($AB120,LIST!$J$3:$O$1900,4,0),0) -> 0 | AF120: =IFERROR(VLOOKUP($AB120,LIST!$J$3:$O$1900,5,0),0) -> 0 | AG120: =IFERROR(VLOOKUP($AB120,LIST!$J$3:$O$1900,6,0),0) -> 0
A121: يناير | O121: "م2" | P121: اسمنت مقاوم | Q121: 0 | R121: اسمنت عادى | S121: 0 | T121: سن1 | U121: 0 | V121: سن2 | W121: 0 | Y121: 0 | Z121: مادة | AA121: 0 | AB121: 0 | AC121: =IFERROR(VLOOKUP($AB121,LIST!$J$3:$O$190,2,0),0) -> 0 | AD121: =IFERROR(VLOOKUP($AB121,LIST!$J$3:$O$1900,3,0),0) -> 0 | AE121: =IFERROR(VLOOKUP($AB121,LIST!$J$3:$O$1900,4,0),0) -> 0 | AF121: =IFERROR(VLOOKUP($AB121,LIST!$J$3:$O$1900,5,0),0) -> 0 | AG121: =IFERROR(VLOOKUP($AB121,LIST!$J$3:$O$1900,6,0),0) -> 0
A122: يناير | O122: "م2" | P122: اسمنت مقاوم | Q122: 0 | R122: اسمنت عادى | S122: 0 | T122: سن1 | U122: 0 | V122: سن2 | W122: 0 | Y122: 0 | Z122: مادة | AA122: 0 | AB122: 0 | AC122: =IFERROR(VLOOKUP($AB122,LIST!$J$3:$O$190,2,0),0) -> 0 | AD122: =IFERROR(VLOOKUP($AB122,LIST!$J$3:$O$1900,3,0),0) -> 0 | AE122: =IFERROR(VLOOKUP($AB122,LIST!$J$3:$O$1900,4,0),0) -> 0 | AF122: =IFERROR(VLOOKUP($AB122,LIST!$J$3:$O$1900,5,0),0) -> 0 | AG122: =IFERROR(VLOOKUP($AB122,LIST!$J$3:$O$1900,6,0),0) -> 0
A123: يناير | O123: "م2" | P123: اسمنت مقاوم | Q123: 0 | R123: اسمنت عادى | S123: 0 | T123: سن1 | U123: 0 | V123: سن2 | W123: 0 | Y123: 0 | Z123: مادة | AA123: 0 | AB123: 0 | AC123: =IFERROR(VLOOKUP($AB123,LIST!$J$3:$O$190,2,0),0) -> 0 | AD123: =IFERROR(VLOOKUP($AB123,LIST!$J$3:$O$1900,3,0),0) -> 0 | AE123: =IFERROR(VLOOKUP($AB123,LIST!$J$3:$O$1900,4,0),0) -> 0 | AF123: =IFERROR(VLOOKUP($AB123,LIST!$J$3:$O$1900,5,0),0) -> 0 | AG123: =IFERROR(VLOOKUP($AB123,LIST!$J$3:$O$1900,6,0),0) -> 0
A124: يناير | O124: "م2" | P124: اسمنت مقاوم | Q124: 0 | R124: اسمنت عادى | S124: 0 | T124: سن1 | U124: 0 | V124: سن2 | W124: 0 | Y124: 0 | Z124: مادة | AA124: 0 | AB124: 0 | AC124: =IFERROR(VLOOKUP($AB124,LIST!$J$3:$O$190,2,0),0) -> 0 | AD124: =IFERROR(VLOOKUP($AB124,LIST!$J$3:$O$1900,3,0),0) -> 0 | AE124: =IFERROR(VLOOKUP($AB124,LIST!$J$3:$O$1900,4,0),0) -> 0 | AF124: =IFERROR(VLOOKUP($AB124,LIST!$J$3:$O$1900,5,0),0) -> 0 | AG124: =IFERROR(VLOOKUP($AB124,LIST!$J$3:$O$1900,6,0),0) -> 0
A125: يناير | O125: "م2" | P125: اسمنت مقاوم | Q125: 0 | R125: اسمنت عادى | S125: 0 | T125: سن1 | U125: 0 | V125: سن2 | W125: 0 | Y125: 0 | Z125: مادة | AA125: 0 | AB125: 0 | AC125: =IFERROR(VLOOKUP($AB125,LIST!$J$3:$O$190,2,0),0) -> 0 | AD125: =IFERROR(VLOOKUP($AB125,LIST!$J$3:$O$1900,3,0),0) -> 0 | AE125: =IFERROR(VLOOKUP($AB125,LIST!$J$3:$O$1900,4,0),0) -> 0 | AF125: =IFERROR(VLOOKUP($AB125,LIST!$J$3:$O$1900,5,0),0) -> 0 | AG125: =IFERROR(VLOOKUP($AB125,LIST!$J$3:$O$1900,6,0),0) -> 0
A126: يناير | O126: "م2" | P126: اسمنت مقاوم | Q126: 0 | R126: اسمنت عادى | S126: 0 | T126: سن1 | U126: 0 | V126: سن2 | W126: 0 | Y126: 0 | Z126: مادة | AA126: 0 | AB126: 0 | AC126: =IFERROR(VLOOKUP($AB126,LIST!$J$3:$O$190,2,0),0) -> 0 | AD126: =IFERROR(VLOOKUP($AB126,LIST!$J$3:$O$1900,3,0),0) -> 0 | AE126: =IFERROR(VLOOKUP($AB126,LIST!$J$3:$O$1900,4,0),0) -> 0 | AF126: =IFERROR(VLOOKUP($AB126,LIST!$J$3:$O$1900,5,0),0) -> 0 | AG126: =IFERROR(VLOOKUP($AB126,LIST!$J$3:$O$1900,6,0),0) -> 0
A127: يناير | O127: "م2" | P127: اسمنت مقاوم | Q127: 0 | R127: اسمنت عادى | S127: 0 | T127: سن1 | U127: 0 | V127: سن2 | W127: 0 | Y127: 0 | Z127: مادة | AA127: 0 | AB127: 0 | AC127: =IFERROR(VLOOKUP($AB127,LIST!$J$3:$O$190,2,0),0) -> 0 | AD127: =IFERROR(VLOOKUP($AB127,LIST!$J$3:$O$1900,3,0),0) -> 0 | AE127: =IFERROR(VLOOKUP($AB127,LIST!$J$3:$O$1900,4,0),0) -> 0 | AF127: =IFERROR(VLOOKUP($AB127,LIST!$J$3:$O$1900,5,0),0) -> 0 | AG127: =IFERROR(VLOOKUP($AB127,LIST!$J$3:$O$1900,6,0),0) -> 0
A128: يناير | O128: "م2" | P128: اسمنت مقاوم | Q128: 0 | R128: اسمنت عادى | S128: 0 | T128: سن1 | U128: 0 | V128: سن2 | W128: 0 | Y128: 0 | Z128: مادة | AA128: 0 | AB128: 0 | AC128: =IFERROR(VLOOKUP($AB128,LIST!$J$3:$O$190,2,0),0) -> 0 | AD128: =IFERROR(VLOOKUP($AB128,LIST!$J$3:$O$1900,3,0),0) -> 0 | AE128: =IFERROR(VLOOKUP($AB128,LIST!$J$3:$O$1900,4,0),0) -> 0 | AF128: =IFERROR(VLOOKUP($AB128,LIST!$J$3:$O$1900,5,0),0) -> 0 | AG128: =IFERROR(VLOOKUP($AB128,LIST!$J$3:$O$1900,6,0),0) -> 0
A129: يناير | O129: "م2" | P129: اسمنت مقاوم | Q129: 0 | R129: اسمنت عادى | S129: 0 | T129: سن1 | U129: 0 | V129: سن2 | W129: 0 | Y129: 0 | Z129: مادة | AA129: 0 | AB129: 0 | AC129: =IFERROR(VLOOKUP($AB129,LIST!$J$3:$O$190,2,0),0) -> 0 | AD129: =IFERROR(VLOOKUP($AB129,LIST!$J$3:$O$1900,3,0),0) -> 0 | AE129: =IFERROR(VLOOKUP($AB129,LIST!$J$3:$O$1900,4,0),0) -> 0 | AF129: =IFERROR(VLOOKUP($AB129,LIST!$J$3:$O$1900,5,0),0) -> 0 | AG129: =IFERROR(VLOOKUP($AB129,LIST!$J$3:$O$1900,6,0),0) -> 0
A130: يناير | O130: "م2" | P130: اسمنت مقاوم | Q130: 0 | R130: اسمنت عادى | S130: 0 | T130: سن1 | U130: 0 | V130: سن2 | W130: 0 | Y130: 0 | Z130: مادة | AA130: 0 | AB130: 0 | AC130: =IFERROR(VLOOKUP($AB130,LIST!$J$3:$O$190,2,0),0) -> 0 | AD130: =IFERROR(VLOOKUP($AB130,LIST!$J$3:$O$1900,3,0),0) -> 0 | AE130: =IFERROR(VLOOKUP($AB130,LIST!$J$3:$O$1900,4,0),0) -> 0 | AF130: =IFERROR(VLOOKUP($AB130,LIST!$J$3:$O$1900,5,0),0) -> 0 | AG130: =IFERROR(VLOOKUP($AB130,LIST!$J$3:$O$1900,6,0),0) -> 0
A131: يناير | O131: "م2" | P131: اسمنت مقاوم | Q131: 0 | R131: اسمنت عادى | S131: 0 | T131: سن1 | U131: 0 | V131: سن2 | W131: 0 | Y131: 0 | Z131: مادة | AA131: 0 | AB131: 0 | AC131: =IFERROR(VLOOKUP($AB131,LIST!$J$3:$O$190,2,0),0) -> 0 | AD131: =IFERROR(VLOOKUP($AB131,LIST!$J$3:$O$1900,3,0),0) -> 0 | AE131: =IFERROR(VLOOKUP($AB131,LIST!$J$3:$O$1900,4,0),0) -> 0 | AF131: =IFERROR(VLOOKUP($AB131,LIST!$J$3:$O$1900,5,0),0) -> 0 | AG131: =IFERROR(VLOOKUP($AB131,LIST!$J$3:$O$1900,6,0),0) -> 0
A132: يناير | O132: "م2" | P132: اسمنت مقاوم | Q132: 0 | R132: اسمنت عادى | S132: 0 | T132: سن1 | U132: 0 | V132: سن2 | W132: 0 | Y132: 0 | Z132: مادة | AA132: 0 | AB132: 0 | AC132: =IFERROR(VLOOKUP($AB132,LIST!$J$3:$O$190,2,0),0) -> 0 | AD132: =IFERROR(VLOOKUP($AB132,LIST!$J$3:$O$1900,3,0),0) -> 0 | AE132: =IFERROR(VLOOKUP($AB132,LIST!$J$3:$O$1900,4,0),0) -> 0 | AF132: =IFERROR(VLOOKUP($AB132,LIST!$J$3:$O$1900,5,0),0) -> 0 | AG132: =IFERROR(VLOOKUP($AB132,LIST!$J$3:$O$1900,6,0),0) -> 0
A133: يناير | O133: "م2" | P133: اسمنت مقاوم | Q133: 0 | R133: اسمنت عادى | S133: 0 | T133: سن1 | U133: 0 | V133: سن2 | W133: 0 | Y133: 0 | Z133: مادة | AA133: 0 | AB133: 0 | AC133: =IFERROR(VLOOKUP($AB133,LIST!$J$3:$O$190,2,0),0) -> 0 | AD133: =IFERROR(VLOOKUP($AB133,LIST!$J$3:$O$1900,3,0),0) -> 0 | AE133: =IFERROR(VLOOKUP($AB133,LIST!$J$3:$O$1900,4,0),0) -> 0 | AF133: =IFERROR(VLOOKUP($AB133,LIST!$J$3:$O$1900,5,0),0) -> 0 | AG133: =IFERROR(VLOOKUP($AB133,LIST!$J$3:$O$1900,6,0),0) -> 0
A134: =TEXT(C134,"mmmm") -> يناير | O134: "م2" | P134: اسمنت مقاوم | Q134: =+$N134*AC134 -> 0 | R134: اسمنت عادى | S134: =+$N134*AD134 -> 0 | T134: سن1 | U134: =+$N134*AE134 -> 0 | V134: سن2 | W134: =+$N134*AF134 -> 0 | Y134: 0 | Z134: مادة | AA134: 0 | AB134: =+M134 -> 0 | AC134: =IFERROR(VLOOKUP($AB134,LIST!$J$3:$O$190,2,0),0) -> 0 | AD134: =IFERROR(VLOOKUP($AB134,LIST!$J$3:$O$1900,3,0),0) -> 0 | AE134: =IFERROR(VLOOKUP($AB134,LIST!$J$3:$O$1900,4,0),0) -> 0 | AF134: =IFERROR(VLOOKUP($AB134,LIST!$J$3:$O$1900,5,0),0) -> 0 | AG134: =IFERROR(VLOOKUP($AB134,LIST!$J$3:$O$1900,6,0),0) -> 0
A135: يناير | O135: "م2" | P135: اسمنت مقاوم | Q135: 0 | R135: اسمنت عادى | S135: 0 | T135: سن1 | U135: 0 | V135: سن2 | W135: 0 | Y135: =+$N135*AG135 -> 0 | Z135: مادة | AA135: =+X135+Y135 -> 0 | AB135: 0 | AC135: =IFERROR(VLOOKUP($AB135,LIST!$J$3:$O$190,2,0),0) -> 0 | AD135: =IFERROR(VLOOKUP($AB135,LIST!$J$3:$O$1900,3,0),0) -> 0 | AE135: =IFERROR(VLOOKUP($AB135,LIST!$J$3:$O$1900,4,0),0) -> 0 | AF135: =IFERROR(VLOOKUP($AB135,LIST!$J$3:$O$1900,5,0),0) -> 0 | AG135: =IFERROR(VLOOKUP($AB135,LIST!$J$3:$O$1900,6,0),0) -> 0
A136: يناير | B136: =IF(C136<>"",B135+1,"") ->  | O136: "م2" | P136: =+P135 -> اسمنت مقاوم | Q136: 0 | R136: =+R135 -> اسمنت عادى | S136: 0 | T136: =+T135 -> سن1 | U136: 0 | V136: =+V135 -> سن2 | W136: 0 | Y136: 0 | Z136: =+Z135 -> مادة | AA136: 0 | AB136: 0 | AC136: =IFERROR(VLOOKUP($AB136,LIST!$J$3:$O$190,2,0),0) -> 0 | AD136: =IFERROR(VLOOKUP($AB136,LIST!$J$3:$O$1900,3,0),0) -> 0 | AE136: =IFERROR(VLOOKUP($AB136,LIST!$J$3:$O$1900,4,0),0) -> 0 | AF136: =IFERROR(VLOOKUP($AB136,LIST!$J$3:$O$1900,5,0),0) -> 0 | AG136: =IFERROR(VLOOKUP($AB136,LIST!$J$3:$O$1900,6,0),0) -> 0
A137: يناير | O137: "م2" | P137: اسمنت مقاوم | Q137: 0 | R137: اسمنت عادى | S137: 0 | T137: سن1 | U137: 0 | V137: سن2 | W137: 0 | Y137: 0 | Z137: مادة | AA137: 0 | AB137: 0 | AC137: =IFERROR(VLOOKUP($AB137,LIST!$J$3:$O$190,2,0),0) -> 0 | AD137: =IFERROR(VLOOKUP($AB137,LIST!$J$3:$O$1900,3,0),0) -> 0 | AE137: =IFERROR(VLOOKUP($AB137,LIST!$J$3:$O$1900,4,0),0) -> 0 | AF137: =IFERROR(VLOOKUP($AB137,LIST!$J$3:$O$1900,5,0),0) -> 0 | AG137: =IFERROR(VLOOKUP($AB137,LIST!$J$3:$O$1900,6,0),0) -> 0
A138: يناير | O138: "م2" | P138: اسمنت مقاوم | Q138: 0 | R138: اسمنت عادى | S138: 0 | T138: سن1 | U138: 0 | V138: سن2 | W138: 0 | Y138: 0 | Z138: مادة | AA138: 0 | AB138: 0 | AC138: =IFERROR(VLOOKUP($AB138,LIST!$J$3:$O$190,2,0),0) -> 0 | AD138: =IFERROR(VLOOKUP($AB138,LIST!$J$3:$O$1900,3,0),0) -> 0 | AE138: =IFERROR(VLOOKUP($AB138,LIST!$J$3:$O$1900,4,0),0) -> 0 | AF138: =IFERROR(VLOOKUP($AB138,LIST!$J$3:$O$1900,5,0),0) -> 0 | AG138: =IFERROR(VLOOKUP($AB138,LIST!$J$3:$O$1900,6,0),0) -> 0
A139: يناير | O139: "م2" | P139: اسمنت مقاوم | Q139: 0 | R139: اسمنت عادى | S139: 0 | T139: سن1 | U139: 0 | V139: سن2 | W139: 0 | Y139: 0 | Z139: مادة | AA139: 0 | AB139: 0 | AC139: =IFERROR(VLOOKUP($AB139,LIST!$J$3:$O$190,2,0),0) -> 0 | AD139: =IFERROR(VLOOKUP($AB139,LIST!$J$3:$O$1900,3,0),0) -> 0 | AE139: =IFERROR(VLOOKUP($AB139,LIST!$J$3:$O$1900,4,0),0) -> 0 | AF139: =IFERROR(VLOOKUP($AB139,LIST!$J$3:$O$1900,5,0),0) -> 0 | AG139: =IFERROR(VLOOKUP($AB139,LIST!$J$3:$O$1900,6,0),0) -> 0
A140: يناير | O140: "م2" | P140: اسمنت مقاوم | Q140: 0 | R140: اسمنت عادى | S140: 0 | T140: سن1 | U140: 0 | V140: سن2 | W140: 0 | Y140: 0 | Z140: مادة | AA140: 0 | AB140: 0 | AC140: =IFERROR(VLOOKUP($AB140,LIST!$J$3:$O$190,2,0),0) -> 0 | AD140: =IFERROR(VLOOKUP($AB140,LIST!$J$3:$O$1900,3,0),0) -> 0 | AE140: =IFERROR(VLOOKUP($AB140,LIST!$J$3:$O$1900,4,0),0) -> 0 | AF140: =IFERROR(VLOOKUP($AB140,LIST!$J$3:$O$1900,5,0),0) -> 0 | AG140: =IFERROR(VLOOKUP($AB140,LIST!$J$3:$O$1900,6,0),0) -> 0
A141: يناير | O141: "م2" | P141: اسمنت مقاوم | Q141: 0 | R141: اسمنت عادى | S141: 0 | T141: سن1 | U141: 0 | V141: سن2 | W141: 0 | Y141: 0 | Z141: مادة | AA141: 0 | AB141: 0 | AC141: =IFERROR(VLOOKUP($AB141,LIST!$J$3:$O$190,2,0),0) -> 0 | AD141: =IFERROR(VLOOKUP($AB141,LIST!$J$3:$O$1900,3,0),0) -> 0 | AE141: =IFERROR(VLOOKUP($AB141,LIST!$J$3:$O$1900,4,0),0) -> 0 | AF141: =IFERROR(VLOOKUP($AB141,LIST!$J$3:$O$1900,5,0),0) -> 0 | AG141: =IFERROR(VLOOKUP($AB141,LIST!$J$3:$O$1900,6,0),0) -> 0
A142: يناير | O142: "م2" | P142: اسمنت مقاوم | Q142: 0 | R142: اسمنت عادى | S142: 0 | T142: سن1 | U142: 0 | V142: سن2 | W142: 0 | Y142: 0 | Z142: مادة | AA142: 0 | AB142: 0 | AC142: =IFERROR(VLOOKUP($AB142,LIST!$J$3:$O$190,2,0),0) -> 0 | AD142: =IFERROR(VLOOKUP($AB142,LIST!$J$3:$O$1900,3,0),0) -> 0 | AE142: =IFERROR(VLOOKUP($AB142,LIST!$J$3:$O$1900,4,0),0) -> 0 | AF142: =IFERROR(VLOOKUP($AB142,LIST!$J$3:$O$1900,5,0),0) -> 0 | AG142: =IFERROR(VLOOKUP($AB142,LIST!$J$3:$O$1900,6,0),0) -> 0
A143: يناير | O143: "م2" | P143: اسمنت مقاوم | Q143: 0 | R143: اسمنت عادى | S143: 0 | T143: سن1 | U143: 0 | V143: سن2 | W143: 0 | Y143: 0 | Z143: مادة | AA143: 0 | AB143: 0 | AC143: =IFERROR(VLOOKUP($AB143,LIST!$J$3:$O$190,2,0),0) -> 0 | AD143: =IFERROR(VLOOKUP($AB143,LIST!$J$3:$O$1900,3,0),0) -> 0 | AE143: =IFERROR(VLOOKUP($AB143,LIST!$J$3:$O$1900,4,0),0) -> 0 | AF143: =IFERROR(VLOOKUP($AB143,LIST!$J$3:$O$1900,5,0),0) -> 0 | AG143: =IFERROR(VLOOKUP($AB143,LIST!$J$3:$O$1900,6,0),0) -> 0
A144: يناير | O144: "م2" | P144: اسمنت مقاوم | Q144: 0 | R144: اسمنت عادى | S144: 0 | T144: سن1 | U144: 0 | V144: سن2 | W144: 0 | Y144: 0 | Z144: مادة | AA144: 0 | AB144: 0 | AC144: =IFERROR(VLOOKUP($AB144,LIST!$J$3:$O$190,2,0),0) -> 0 | AD144: =IFERROR(VLOOKUP($AB144,LIST!$J$3:$O$1900,3,0),0) -> 0 | AE144: =IFERROR(VLOOKUP($AB144,LIST!$J$3:$O$1900,4,0),0) -> 0 | AF144: =IFERROR(VLOOKUP($AB144,LIST!$J$3:$O$1900,5,0),0) -> 0 | AG144: =IFERROR(VLOOKUP($AB144,LIST!$J$3:$O$1900,6,0),0) -> 0
A145: يناير | O145: "م2" | P145: اسمنت مقاوم | Q145: 0 | R145: اسمنت عادى | S145: 0 | T145: سن1 | U145: 0 | V145: سن2 | W145: 0 | Y145: 0 | Z145: مادة | AA145: 0 | AB145: 0 | AC145: =IFERROR(VLOOKUP($AB145,LIST!$J$3:$O$190,2,0),0) -> 0 | AD145: =IFERROR(VLOOKUP($AB145,LIST!$J$3:$O$1900,3,0),0) -> 0 | AE145: =IFERROR(VLOOKUP($AB145,LIST!$J$3:$O$1900,4,0),0) -> 0 | AF145: =IFERROR(VLOOKUP($AB145,LIST!$J$3:$O$1900,5,0),0) -> 0 | AG145: =IFERROR(VLOOKUP($AB145,LIST!$J$3:$O$1900,6,0),0) -> 0
A146: يناير | O146: "م2" | P146: اسمنت مقاوم | Q146: 0 | R146: اسمنت عادى | S146: 0 | T146: سن1 | U146: 0 | V146: سن2 | W146: 0 | Y146: 0 | Z146: مادة | AA146: 0 | AB146: 0 | AC146: =IFERROR(VLOOKUP($AB146,LIST!$J$3:$O$190,2,0),0) -> 0 | AD146: =IFERROR(VLOOKUP($AB146,LIST!$J$3:$O$1900,3,0),0) -> 0 | AE146: =IFERROR(VLOOKUP($AB146,LIST!$J$3:$O$1900,4,0),0) -> 0 | AF146: =IFERROR(VLOOKUP($AB146,LIST!$J$3:$O$1900,5,0),0) -> 0 | AG146: =IFERROR(VLOOKUP($AB146,LIST!$J$3:$O$1900,6,0),0) -> 0
A147: يناير | O147: "م2" | P147: اسمنت مقاوم | Q147: 0 | R147: اسمنت عادى | S147: 0 | T147: سن1 | U147: 0 | V147: سن2 | W147: 0 | Y147: 0 | Z147: مادة | AA147: 0 | AB147: 0 | AC147: =IFERROR(VLOOKUP($AB147,LIST!$J$3:$O$190,2,0),0) -> 0 | AD147: =IFERROR(VLOOKUP($AB147,LIST!$J$3:$O$1900,3,0),0) -> 0 | AE147: =IFERROR(VLOOKUP($AB147,LIST!$J$3:$O$1900,4,0),0) -> 0 | AF147: =IFERROR(VLOOKUP($AB147,LIST!$J$3:$O$1900,5,0),0) -> 0 | AG147: =IFERROR(VLOOKUP($AB147,LIST!$J$3:$O$1900,6,0),0) -> 0
A148: يناير | O148: "م2" | P148: اسمنت مقاوم | Q148: 0 | R148: اسمنت عادى | S148: 0 | T148: سن1 | U148: 0 | V148: سن2 | W148: 0 | Y148: 0 | Z148: مادة | AA148: 0 | AB148: 0 | AC148: =IFERROR(VLOOKUP($AB148,LIST!$J$3:$O$190,2,0),0) -> 0 | AD148: =IFERROR(VLOOKUP($AB148,LIST!$J$3:$O$1900,3,0),0) -> 0 | AE148: =IFERROR(VLOOKUP($AB148,LIST!$J$3:$O$1900,4,0),0) -> 0 | AF148: =IFERROR(VLOOKUP($AB148,LIST!$J$3:$O$1900,5,0),0) -> 0 | AG148: =IFERROR(VLOOKUP($AB148,LIST!$J$3:$O$1900,6,0),0) -> 0
A149: يناير | O149: "م2" | P149: اسمنت مقاوم | Q149: 0 | R149: اسمنت عادى | S149: 0 | T149: سن1 | U149: 0 | V149: سن2 | W149: 0 | Y149: 0 | Z149: مادة | AA149: 0 | AB149: 0 | AC149: =IFERROR(VLOOKUP($AB149,LIST!$J$3:$O$190,2,0),0) -> 0 | AD149: =IFERROR(VLOOKUP($AB149,LIST!$J$3:$O$1900,3,0),0) -> 0 | AE149: =IFERROR(VLOOKUP($AB149,LIST!$J$3:$O$1900,4,0),0) -> 0 | AF149: =IFERROR(VLOOKUP($AB149,LIST!$J$3:$O$1900,5,0),0) -> 0 | AG149: =IFERROR(VLOOKUP($AB149,LIST!$J$3:$O$1900,6,0),0) -> 0
A150: يناير | O150: "م2" | P150: اسمنت مقاوم | Q150: 0 | R150: اسمنت عادى | S150: 0 | T150: سن1 | U150: 0 | V150: سن2 | W150: 0 | Y150: 0 | Z150: مادة | AA150: 0 | AB150: 0 | AC150: =IFERROR(VLOOKUP($AB150,LIST!$J$3:$O$190,2,0),0) -> 0 | AD150: =IFERROR(VLOOKUP($AB150,LIST!$J$3:$O$1900,3,0),0) -> 0 | AE150: =IFERROR(VLOOKUP($AB150,LIST!$J$3:$O$1900,4,0),0) -> 0 | AF150: =IFERROR(VLOOKUP($AB150,LIST!$J$3:$O$1900,5,0),0) -> 0 | AG150: =IFERROR(VLOOKUP($AB150,LIST!$J$3:$O$1900,6,0),0) -> 0
A151: يناير | O151: "م2" | P151: اسمنت مقاوم | Q151: 0 | R151: اسمنت عادى | S151: 0 | T151: سن1 | U151: 0 | V151: سن2 | W151: 0 | Y151: 0 | Z151: مادة | AA151: 0 | AB151: 0 | AC151: =IFERROR(VLOOKUP($AB151,LIST!$J$3:$O$190,2,0),0) -> 0 | AD151: =IFERROR(VLOOKUP($AB151,LIST!$J$3:$O$1900,3,0),0) -> 0 | AE151: =IFERROR(VLOOKUP($AB151,LIST!$J$3:$O$1900,4,0),0) -> 0 | AF151: =IFERROR(VLOOKUP($AB151,LIST!$J$3:$O$1900,5,0),0) -> 0 | AG151: =IFERROR(VLOOKUP($AB151,LIST!$J$3:$O$1900,6,0),0) -> 0
A152: يناير | O152: "م2" | P152: اسمنت مقاوم | Q152: 0 | R152: اسمنت عادى | S152: 0 | T152: سن1 | U152: 0 | V152: سن2 | W152: 0 | Y152: 0 | Z152: مادة | AA152: 0 | AB152: 0 | AC152: =IFERROR(VLOOKUP($AB152,LIST!$J$3:$O$190,2,0),0) -> 0 | AD152: =IFERROR(VLOOKUP($AB152,LIST!$J$3:$O$1900,3,0),0) -> 0 | AE152: =IFERROR(VLOOKUP($AB152,LIST!$J$3:$O$1900,4,0),0) -> 0 | AF152: =IFERROR(VLOOKUP($AB152,LIST!$J$3:$O$1900,5,0),0) -> 0 | AG152: =IFERROR(VLOOKUP($AB152,LIST!$J$3:$O$1900,6,0),0) -> 0
A153: يناير | O153: "م2" | P153: اسمنت مقاوم | Q153: 0 | R153: اسمنت عادى | S153: 0 | T153: سن1 | U153: 0 | V153: سن2 | W153: 0 | Y153: 0 | Z153: مادة | AA153: 0 | AB153: 0 | AC153: =IFERROR(VLOOKUP($AB153,LIST!$J$3:$O$190,2,0),0) -> 0 | AD153: =IFERROR(VLOOKUP($AB153,LIST!$J$3:$O$1900,3,0),0) -> 0 | AE153: =IFERROR(VLOOKUP($AB153,LIST!$J$3:$O$1900,4,0),0) -> 0 | AF153: =IFERROR(VLOOKUP($AB153,LIST!$J$3:$O$1900,5,0),0) -> 0 | AG153: =IFERROR(VLOOKUP($AB153,LIST!$J$3:$O$1900,6,0),0) -> 0
A154: يناير | O154: "م2" | P154: اسمنت مقاوم | Q154: 0 | R154: اسمنت عادى | S154: 0 | T154: سن1 | U154: 0 | V154: سن2 | W154: 0 | Y154: 0 | Z154: مادة | AA154: 0 | AB154: 0 | AC154: =IFERROR(VLOOKUP($AB154,LIST!$J$3:$O$190,2,0),0) -> 0 | AD154: =IFERROR(VLOOKUP($AB154,LIST!$J$3:$O$1900,3,0),0) -> 0 | AE154: =IFERROR(VLOOKUP($AB154,LIST!$J$3:$O$1900,4,0),0) -> 0 | AF154: =IFERROR(VLOOKUP($AB154,LIST!$J$3:$O$1900,5,0),0) -> 0 | AG154: =IFERROR(VLOOKUP($AB154,LIST!$J$3:$O$1900,6,0),0) -> 0
A155: يناير | O155: "م2" | P155: اسمنت مقاوم | Q155: 0 | R155: اسمنت عادى | S155: 0 | T155: سن1 | U155: 0 | V155: سن2 | W155: 0 | Y155: 0 | Z155: مادة | AA155: 0 | AB155: 0 | AC155: =IFERROR(VLOOKUP($AB155,LIST!$J$3:$O$190,2,0),0) -> 0 | AD155: =IFERROR(VLOOKUP($AB155,LIST!$J$3:$O$1900,3,0),0) -> 0 | AE155: =IFERROR(VLOOKUP($AB155,LIST!$J$3:$O$1900,4,0),0) -> 0 | AF155: =IFERROR(VLOOKUP($AB155,LIST!$J$3:$O$1900,5,0),0) -> 0 | AG155: =IFERROR(VLOOKUP($AB155,LIST!$J$3:$O$1900,6,0),0) -> 0
A156: يناير | O156: "م2" | P156: اسمنت مقاوم | Q156: 0 | R156: اسمنت عادى | S156: 0 | T156: سن1 | U156: 0 | V156: سن2 | W156: 0 | Y156: 0 | Z156: مادة | AA156: 0 | AB156: 0 | AC156: =IFERROR(VLOOKUP($AB156,LIST!$J$3:$O$190,2,0),0) -> 0 | AD156: =IFERROR(VLOOKUP($AB156,LIST!$J$3:$O$1900,3,0),0) -> 0 | AE156: =IFERROR(VLOOKUP($AB156,LIST!$J$3:$O$1900,4,0),0) -> 0 | AF156: =IFERROR(VLOOKUP($AB156,LIST!$J$3:$O$1900,5,0),0) -> 0 | AG156: =IFERROR(VLOOKUP($AB156,LIST!$J$3:$O$1900,6,0),0) -> 0
A157: يناير | O157: "م2" | P157: اسمنت مقاوم | Q157: 0 | R157: اسمنت عادى | S157: 0 | T157: سن1 | U157: 0 | V157: سن2 | W157: 0 | Y157: 0 | Z157: مادة | AA157: 0 | AB157: 0 | AC157: =IFERROR(VLOOKUP($AB157,LIST!$J$3:$O$190,2,0),0) -> 0 | AD157: =IFERROR(VLOOKUP($AB157,LIST!$J$3:$O$1900,3,0),0) -> 0 | AE157: =IFERROR(VLOOKUP($AB157,LIST!$J$3:$O$1900,4,0),0) -> 0 | AF157: =IFERROR(VLOOKUP($AB157,LIST!$J$3:$O$1900,5,0),0) -> 0 | AG157: =IFERROR(VLOOKUP($AB157,LIST!$J$3:$O$1900,6,0),0) -> 0
A158: يناير | O158: "م2" | P158: اسمنت مقاوم | Q158: 0 | R158: اسمنت عادى | S158: 0 | T158: سن1 | U158: 0 | V158: سن2 | W158: 0 | Y158: 0 | Z158: مادة | AA158: 0 | AB158: 0 | AC158: =IFERROR(VLOOKUP($AB158,LIST!$J$3:$O$190,2,0),0) -> 0 | AD158: =IFERROR(VLOOKUP($AB158,LIST!$J$3:$O$1900,3,0),0) -> 0 | AE158: =IFERROR(VLOOKUP($AB158,LIST!$J$3:$O$1900,4,0),0) -> 0 | AF158: =IFERROR(VLOOKUP($AB158,LIST!$J$3:$O$1900,5,0),0) -> 0 | AG158: =IFERROR(VLOOKUP($AB158,LIST!$J$3:$O$1900,6,0),0) -> 0
A159: يناير | O159: "م2" | P159: اسمنت مقاوم | Q159: 0 | R159: اسمنت عادى | S159: 0 | T159: سن1 | U159: 0 | V159: سن2 | W159: 0 | Y159: 0 | Z159: مادة | AA159: 0 | AB159: 0 | AC159: =IFERROR(VLOOKUP($AB159,LIST!$J$3:$O$190,2,0),0) -> 0 | AD159: =IFERROR(VLOOKUP($AB159,LIST!$J$3:$O$1900,3,0),0) -> 0 | AE159: =IFERROR(VLOOKUP($AB159,LIST!$J$3:$O$1900,4,0),0) -> 0 | AF159: =IFERROR(VLOOKUP($AB159,LIST!$J$3:$O$1900,5,0),0) -> 0 | AG159: =IFERROR(VLOOKUP($AB159,LIST!$J$3:$O$1900,6,0),0) -> 0
A160: يناير | O160: "م2" | P160: اسمنت مقاوم | Q160: 0 | R160: اسمنت عادى | S160: 0 | T160: سن1 | U160: 0 | V160: سن2 | W160: 0 | Y160: 0 | Z160: مادة | AA160: 0 | AB160: 0 | AC160: =IFERROR(VLOOKUP($AB160,LIST!$J$3:$O$190,2,0),0) -> 0 | AD160: =IFERROR(VLOOKUP($AB160,LIST!$J$3:$O$1900,3,0),0) -> 0 | AE160: =IFERROR(VLOOKUP($AB160,LIST!$J$3:$O$1900,4,0),0) -> 0 | AF160: =IFERROR(VLOOKUP($AB160,LIST!$J$3:$O$1900,5,0),0) -> 0 | AG160: =IFERROR(VLOOKUP($AB160,LIST!$J$3:$O$1900,6,0),0) -> 0
A161: يناير | O161: "م2" | P161: اسمنت مقاوم | Q161: 0 | R161: اسمنت عادى | S161: 0 | T161: سن1 | U161: 0 | V161: سن2 | W161: 0 | Y161: 0 | Z161: مادة | AA161: 0 | AB161: 0 | AC161: =IFERROR(VLOOKUP($AB161,LIST!$J$3:$O$190,2,0),0) -> 0 | AD161: =IFERROR(VLOOKUP($AB161,LIST!$J$3:$O$1900,3,0),0) -> 0 | AE161: =IFERROR(VLOOKUP($AB161,LIST!$J$3:$O$1900,4,0),0) -> 0 | AF161: =IFERROR(VLOOKUP($AB161,LIST!$J$3:$O$1900,5,0),0) -> 0 | AG161: =IFERROR(VLOOKUP($AB161,LIST!$J$3:$O$1900,6,0),0) -> 0
A162: يناير | O162: "م2" | P162: اسمنت مقاوم | Q162: 0 | R162: اسمنت عادى | S162: 0 | T162: سن1 | U162: 0 | V162: سن2 | W162: 0 | Y162: 0 | Z162: مادة | AA162: 0 | AB162: 0 | AC162: =IFERROR(VLOOKUP($AB162,LIST!$J$3:$O$190,2,0),0) -> 0 | AD162: =IFERROR(VLOOKUP($AB162,LIST!$J$3:$O$1900,3,0),0) -> 0 | AE162: =IFERROR(VLOOKUP($AB162,LIST!$J$3:$O$1900,4,0),0) -> 0 | AF162: =IFERROR(VLOOKUP($AB162,LIST!$J$3:$O$1900,5,0),0) -> 0 | AG162: =IFERROR(VLOOKUP($AB162,LIST!$J$3:$O$1900,6,0),0) -> 0
A163: يناير | O163: "م2" | P163: اسمنت مقاوم | Q163: 0 | R163: اسمنت عادى | S163: 0 | T163: سن1 | U163: 0 | V163: سن2 | W163: 0 | Y163: 0 | Z163: مادة | AA163: 0 | AB163: 0 | AC163: =IFERROR(VLOOKUP($AB163,LIST!$J$3:$O$190,2,0),0) -> 0 | AD163: =IFERROR(VLOOKUP($AB163,LIST!$J$3:$O$1900,3,0),0) -> 0 | AE163: =IFERROR(VLOOKUP($AB163,LIST!$J$3:$O$1900,4,0),0) -> 0 | AF163: =IFERROR(VLOOKUP($AB163,LIST!$J$3:$O$1900,5,0),0) -> 0 | AG163: =IFERROR(VLOOKUP($AB163,LIST!$J$3:$O$1900,6,0),0) -> 0
A164: يناير | O164: "م2" | P164: اسمنت مقاوم | Q164: 0 | R164: اسمنت عادى | S164: 0 | T164: سن1 | U164: 0 | V164: سن2 | W164: 0 | Y164: 0 | Z164: مادة | AA164: 0 | AB164: 0 | AC164: =IFERROR(VLOOKUP($AB164,LIST!$J$3:$O$190,2,0),0) -> 0 | AD164: =IFERROR(VLOOKUP($AB164,LIST!$J$3:$O$1900,3,0),0) -> 0 | AE164: =IFERROR(VLOOKUP($AB164,LIST!$J$3:$O$1900,4,0),0) -> 0 | AF164: =IFERROR(VLOOKUP($AB164,LIST!$J$3:$O$1900,5,0),0) -> 0 | AG164: =IFERROR(VLOOKUP($AB164,LIST!$J$3:$O$1900,6,0),0) -> 0
A165: يناير | O165: "م2" | P165: اسمنت مقاوم | Q165: 0 | R165: اسمنت عادى | S165: 0 | T165: سن1 | U165: 0 | V165: سن2 | W165: 0 | Y165: 0 | Z165: مادة | AA165: 0 | AB165: 0 | AC165: =IFERROR(VLOOKUP($AB165,LIST!$J$3:$O$190,2,0),0) -> 0 | AD165: =IFERROR(VLOOKUP($AB165,LIST!$J$3:$O$1900,3,0),0) -> 0 | AE165: =IFERROR(VLOOKUP($AB165,LIST!$J$3:$O$1900,4,0),0) -> 0 | AF165: =IFERROR(VLOOKUP($AB165,LIST!$J$3:$O$1900,5,0),0) -> 0 | AG165: =IFERROR(VLOOKUP($AB165,LIST!$J$3:$O$1900,6,0),0) -> 0
A166: يناير | O166: "م2" | P166: اسمنت مقاوم | Q166: 0 | R166: اسمنت عادى | S166: 0 | T166: سن1 | U166: 0 | V166: سن2 | W166: 0 | Y166: 0 | Z166: مادة | AA166: 0 | AB166: 0 | AC166: =IFERROR(VLOOKUP($AB166,LIST!$J$3:$O$190,2,0),0) -> 0 | AD166: =IFERROR(VLOOKUP($AB166,LIST!$J$3:$O$1900,3,0),0) -> 0 | AE166: =IFERROR(VLOOKUP($AB166,LIST!$J$3:$O$1900,4,0),0) -> 0 | AF166: =IFERROR(VLOOKUP($AB166,LIST!$J$3:$O$1900,5,0),0) -> 0 | AG166: =IFERROR(VLOOKUP($AB166,LIST!$J$3:$O$1900,6,0),0) -> 0
A167: يناير | O167: "م2" | P167: اسمنت مقاوم | Q167: 0 | R167: اسمنت عادى | S167: 0 | T167: سن1 | U167: 0 | V167: سن2 | W167: 0 | Y167: 0 | Z167: مادة | AA167: 0 | AB167: 0 | AC167: =IFERROR(VLOOKUP($AB167,LIST!$J$3:$O$190,2,0),0) -> 0 | AD167: =IFERROR(VLOOKUP($AB167,LIST!$J$3:$O$1900,3,0),0) -> 0 | AE167: =IFERROR(VLOOKUP($AB167,LIST!$J$3:$O$1900,4,0),0) -> 0 | AF167: =IFERROR(VLOOKUP($AB167,LIST!$J$3:$O$1900,5,0),0) -> 0 | AG167: =IFERROR(VLOOKUP($AB167,LIST!$J$3:$O$1900,6,0),0) -> 0
A168: يناير | O168: "م2" | P168: اسمنت مقاوم | Q168: 0 | R168: اسمنت عادى | S168: 0 | T168: سن1 | U168: 0 | V168: سن2 | W168: 0 | Y168: 0 | Z168: مادة | AA168: 0 | AB168: 0 | AC168: =IFERROR(VLOOKUP($AB168,LIST!$J$3:$O$190,2,0),0) -> 0 | AD168: =IFERROR(VLOOKUP($AB168,LIST!$J$3:$O$1900,3,0),0) -> 0 | AE168: =IFERROR(VLOOKUP($AB168,LIST!$J$3:$O$1900,4,0),0) -> 0 | AF168: =IFERROR(VLOOKUP($AB168,LIST!$J$3:$O$1900,5,0),0) -> 0 | AG168: =IFERROR(VLOOKUP($AB168,LIST!$J$3:$O$1900,6,0),0) -> 0
A169: يناير | O169: "م2" | P169: اسمنت مقاوم | Q169: 0 | R169: اسمنت عادى | S169: 0 | T169: سن1 | U169: 0 | V169: سن2 | W169: 0 | Y169: 0 | Z169: مادة | AA169: 0 | AB169: 0 | AC169: =IFERROR(VLOOKUP($AB169,LIST!$J$3:$O$190,2,0),0) -> 0 | AD169: =IFERROR(VLOOKUP($AB169,LIST!$J$3:$O$1900,3,0),0) -> 0 | AE169: =IFERROR(VLOOKUP($AB169,LIST!$J$3:$O$1900,4,0),0) -> 0 | AF169: =IFERROR(VLOOKUP($AB169,LIST!$J$3:$O$1900,5,0),0) -> 0 | AG169: =IFERROR(VLOOKUP($AB169,LIST!$J$3:$O$1900,6,0),0) -> 0
A170: يناير | O170: "م2" | P170: اسمنت مقاوم | Q170: 0 | R170: اسمنت عادى | S170: 0 | T170: سن1 | U170: 0 | V170: سن2 | W170: 0 | Y170: 0 | Z170: مادة | AA170: 0 | AB170: 0 | AC170: =IFERROR(VLOOKUP($AB170,LIST!$J$3:$O$190,2,0),0) -> 0 | AD170: =IFERROR(VLOOKUP($AB170,LIST!$J$3:$O$1900,3,0),0) -> 0 | AE170: =IFERROR(VLOOKUP($AB170,LIST!$J$3:$O$1900,4,0),0) -> 0 | AF170: =IFERROR(VLOOKUP($AB170,LIST!$J$3:$O$1900,5,0),0) -> 0 | AG170: =IFERROR(VLOOKUP($AB170,LIST!$J$3:$O$1900,6,0),0) -> 0
A171: يناير | O171: "م2" | P171: اسمنت مقاوم | Q171: 0 | R171: اسمنت عادى | S171: 0 | T171: سن1 | U171: 0 | V171: سن2 | W171: 0 | Y171: 0 | Z171: مادة | AA171: 0 | AB171: 0 | AC171: =IFERROR(VLOOKUP($AB171,LIST!$J$3:$O$190,2,0),0) -> 0 | AD171: =IFERROR(VLOOKUP($AB171,LIST!$J$3:$O$1900,3,0),0) -> 0 | AE171: =IFERROR(VLOOKUP($AB171,LIST!$J$3:$O$1900,4,0),0) -> 0 | AF171: =IFERROR(VLOOKUP($AB171,LIST!$J$3:$O$1900,5,0),0) -> 0 | AG171: =IFERROR(VLOOKUP($AB171,LIST!$J$3:$O$1900,6,0),0) -> 0
A172: يناير | O172: "م2" | P172: اسمنت مقاوم | Q172: 0 | R172: اسمنت عادى | S172: 0 | T172: سن1 | U172: 0 | V172: سن2 | W172: 0 | Y172: 0 | Z172: مادة | AA172: 0 | AB172: 0 | AC172: =IFERROR(VLOOKUP($AB172,LIST!$J$3:$O$190,2,0),0) -> 0 | AD172: =IFERROR(VLOOKUP($AB172,LIST!$J$3:$O$1900,3,0),0) -> 0 | AE172: =IFERROR(VLOOKUP($AB172,LIST!$J$3:$O$1900,4,0),0) -> 0 | AF172: =IFERROR(VLOOKUP($AB172,LIST!$J$3:$O$1900,5,0),0) -> 0 | AG172: =IFERROR(VLOOKUP($AB172,LIST!$J$3:$O$1900,6,0),0) -> 0
A173: يناير | O173: "م2" | P173: اسمنت مقاوم | Q173: 0 | R173: اسمنت عادى | S173: 0 | T173: سن1 | U173: 0 | V173: سن2 | W173: 0 | Y173: 0 | Z173: مادة | AA173: 0 | AB173: 0 | AC173: =IFERROR(VLOOKUP($AB173,LIST!$J$3:$O$190,2,0),0) -> 0 | AD173: =IFERROR(VLOOKUP($AB173,LIST!$J$3:$O$1900,3,0),0) -> 0 | AE173: =IFERROR(VLOOKUP($AB173,LIST!$J$3:$O$1900,4,0),0) -> 0 | AF173: =IFERROR(VLOOKUP($AB173,LIST!$J$3:$O$1900,5,0),0) -> 0 | AG173: =IFERROR(VLOOKUP($AB173,LIST!$J$3:$O$1900,6,0),0) -> 0
A174: يناير | O174: "م2" | P174: اسمنت مقاوم | Q174: 0 | R174: اسمنت عادى | S174: 0 | T174: سن1 | U174: 0 | V174: سن2 | W174: 0 | Y174: 0 | Z174: مادة | AA174: 0 | AB174: 0 | AC174: =IFERROR(VLOOKUP($AB174,LIST!$J$3:$O$190,2,0),0) -> 0 | AD174: =IFERROR(VLOOKUP($AB174,LIST!$J$3:$O$1900,3,0),0) -> 0 | AE174: =IFERROR(VLOOKUP($AB174,LIST!$J$3:$O$1900,4,0),0) -> 0 | AF174: =IFERROR(VLOOKUP($AB174,LIST!$J$3:$O$1900,5,0),0) -> 0 | AG174: =IFERROR(VLOOKUP($AB174,LIST!$J$3:$O$1900,6,0),0) -> 0
A175: يناير | O175: "م2" | P175: اسمنت مقاوم | Q175: 0 | R175: اسمنت عادى | S175: 0 | T175: سن1 | U175: 0 | V175: سن2 | W175: 0 | Y175: 0 | Z175: مادة | AA175: 0 | AB175: 0 | AC175: =IFERROR(VLOOKUP($AB175,LIST!$J$3:$O$190,2,0),0) -> 0 | AD175: =IFERROR(VLOOKUP($AB175,LIST!$J$3:$O$1900,3,0),0) -> 0 | AE175: =IFERROR(VLOOKUP($AB175,LIST!$J$3:$O$1900,4,0),0) -> 0 | AF175: =IFERROR(VLOOKUP($AB175,LIST!$J$3:$O$1900,5,0),0) -> 0 | AG175: =IFERROR(VLOOKUP($AB175,LIST!$J$3:$O$1900,6,0),0) -> 0
A176: يناير | O176: "م2" | P176: اسمنت مقاوم | Q176: 0 | R176: اسمنت عادى | S176: 0 | T176: سن1 | U176: 0 | V176: سن2 | W176: 0 | Y176: 0 | Z176: مادة | AA176: 0 | AB176: 0 | AC176: =IFERROR(VLOOKUP($AB176,LIST!$J$3:$O$190,2,0),0) -> 0 | AD176: =IFERROR(VLOOKUP($AB176,LIST!$J$3:$O$1900,3,0),0) -> 0 | AE176: =IFERROR(VLOOKUP($AB176,LIST!$J$3:$O$1900,4,0),0) -> 0 | AF176: =IFERROR(VLOOKUP($AB176,LIST!$J$3:$O$1900,5,0),0) -> 0 | AG176: =IFERROR(VLOOKUP($AB176,LIST!$J$3:$O$1900,6,0),0) -> 0
A177: يناير | O177: "م2" | P177: اسمنت مقاوم | Q177: 0 | R177: اسمنت عادى | S177: 0 | T177: سن1 | U177: 0 | V177: سن2 | W177: 0 | Y177: 0 | Z177: مادة | AA177: 0 | AB177: 0 | AC177: =IFERROR(VLOOKUP($AB177,LIST!$J$3:$O$190,2,0),0) -> 0 | AD177: =IFERROR(VLOOKUP($AB177,LIST!$J$3:$O$1900,3,0),0) -> 0 | AE177: =IFERROR(VLOOKUP($AB177,LIST!$J$3:$O$1900,4,0),0) -> 0 | AF177: =IFERROR(VLOOKUP($AB177,LIST!$J$3:$O$1900,5,0),0) -> 0 | AG177: =IFERROR(VLOOKUP($AB177,LIST!$J$3:$O$1900,6,0),0) -> 0
A178: يناير | O178: "م2" | P178: اسمنت مقاوم | Q178: 0 | R178: اسمنت عادى | S178: 0 | T178: سن1 | U178: 0 | V178: سن2 | W178: 0 | Y178: 0 | Z178: مادة | AA178: 0 | AB178: 0 | AC178: =IFERROR(VLOOKUP($AB178,LIST!$J$3:$O$190,2,0),0) -> 0 | AD178: =IFERROR(VLOOKUP($AB178,LIST!$J$3:$O$1900,3,0),0) -> 0 | AE178: =IFERROR(VLOOKUP($AB178,LIST!$J$3:$O$1900,4,0),0) -> 0 | AF178: =IFERROR(VLOOKUP($AB178,LIST!$J$3:$O$1900,5,0),0) -> 0 | AG178: =IFERROR(VLOOKUP($AB178,LIST!$J$3:$O$1900,6,0),0) -> 0
A179: يناير | O179: "م2" | P179: اسمنت مقاوم | Q179: 0 | R179: اسمنت عادى | S179: 0 | T179: سن1 | U179: 0 | V179: سن2 | W179: 0 | Y179: 0 | Z179: مادة | AA179: 0 | AB179: 0 | AC179: =IFERROR(VLOOKUP($AB179,LIST!$J$3:$O$190,2,0),0) -> 0 | AD179: =IFERROR(VLOOKUP($AB179,LIST!$J$3:$O$1900,3,0),0) -> 0 | AE179: =IFERROR(VLOOKUP($AB179,LIST!$J$3:$O$1900,4,0),0) -> 0 | AF179: =IFERROR(VLOOKUP($AB179,LIST!$J$3:$O$1900,5,0),0) -> 0 | AG179: =IFERROR(VLOOKUP($AB179,LIST!$J$3:$O$1900,6,0),0) -> 0
A180: يناير | O180: "م2" | P180: اسمنت مقاوم | Q180: 0 | R180: اسمنت عادى | S180: 0 | T180: سن1 | U180: 0 | V180: سن2 | W180: 0 | Y180: 0 | Z180: مادة | AA180: 0 | AB180: 0 | AC180: =IFERROR(VLOOKUP($AB180,LIST!$J$3:$O$190,2,0),0) -> 0 | AD180: =IFERROR(VLOOKUP($AB180,LIST!$J$3:$O$1900,3,0),0) -> 0 | AE180: =IFERROR(VLOOKUP($AB180,LIST!$J$3:$O$1900,4,0),0) -> 0 | AF180: =IFERROR(VLOOKUP($AB180,LIST!$J$3:$O$1900,5,0),0) -> 0 | AG180: =IFERROR(VLOOKUP($AB180,LIST!$J$3:$O$1900,6,0),0) -> 0
A181: يناير | O181: "م2" | P181: اسمنت مقاوم | Q181: 0 | R181: اسمنت عادى | S181: 0 | T181: سن1 | U181: 0 | V181: سن2 | W181: 0 | Y181: 0 | Z181: مادة | AA181: 0 | AB181: 0 | AC181: =IFERROR(VLOOKUP($AB181,LIST!$J$3:$O$190,2,0),0) -> 0 | AD181: =IFERROR(VLOOKUP($AB181,LIST!$J$3:$O$1900,3,0),0) -> 0 | AE181: =IFERROR(VLOOKUP($AB181,LIST!$J$3:$O$1900,4,0),0) -> 0 | AF181: =IFERROR(VLOOKUP($AB181,LIST!$J$3:$O$1900,5,0),0) -> 0 | AG181: =IFERROR(VLOOKUP($AB181,LIST!$J$3:$O$1900,6,0),0) -> 0
A182: يناير | O182: "م2" | P182: اسمنت مقاوم | Q182: 0 | R182: اسمنت عادى | S182: 0 | T182: سن1 | U182: 0 | V182: سن2 | W182: 0 | Y182: 0 | Z182: مادة | AA182: 0 | AB182: 0 | AC182: =IFERROR(VLOOKUP($AB182,LIST!$J$3:$O$190,2,0),0) -> 0 | AD182: =IFERROR(VLOOKUP($AB182,LIST!$J$3:$O$1900,3,0),0) -> 0 | AE182: =IFERROR(VLOOKUP($AB182,LIST!$J$3:$O$1900,4,0),0) -> 0 | AF182: =IFERROR(VLOOKUP($AB182,LIST!$J$3:$O$1900,5,0),0) -> 0 | AG182: =IFERROR(VLOOKUP($AB182,LIST!$J$3:$O$1900,6,0),0) -> 0
A183: يناير | O183: "م2" | P183: اسمنت مقاوم | Q183: 0 | R183: اسمنت عادى | S183: 0 | T183: سن1 | U183: 0 | V183: سن2 | W183: 0 | Y183: 0 | Z183: مادة | AA183: 0 | AB183: 0 | AC183: =IFERROR(VLOOKUP($AB183,LIST!$J$3:$O$190,2,0),0) -> 0 | AD183: =IFERROR(VLOOKUP($AB183,LIST!$J$3:$O$1900,3,0),0) -> 0 | AE183: =IFERROR(VLOOKUP($AB183,LIST!$J$3:$O$1900,4,0),0) -> 0 | AF183: =IFERROR(VLOOKUP($AB183,LIST!$J$3:$O$1900,5,0),0) -> 0 | AG183: =IFERROR(VLOOKUP($AB183,LIST!$J$3:$O$1900,6,0),0) -> 0
A184: يناير | O184: "م2" | P184: اسمنت مقاوم | Q184: 0 | R184: اسمنت عادى | S184: 0 | T184: سن1 | U184: 0 | V184: سن2 | W184: 0 | Y184: 0 | Z184: مادة | AA184: 0 | AB184: 0 | AC184: =IFERROR(VLOOKUP($AB184,LIST!$J$3:$O$190,2,0),0) -> 0 | AD184: =IFERROR(VLOOKUP($AB184,LIST!$J$3:$O$1900,3,0),0) -> 0 | AE184: =IFERROR(VLOOKUP($AB184,LIST!$J$3:$O$1900,4,0),0) -> 0 | AF184: =IFERROR(VLOOKUP($AB184,LIST!$J$3:$O$1900,5,0),0) -> 0 | AG184: =IFERROR(VLOOKUP($AB184,LIST!$J$3:$O$1900,6,0),0) -> 0
A185: يناير | O185: "م2" | P185: اسمنت مقاوم | Q185: 0 | R185: اسمنت عادى | S185: 0 | T185: سن1 | U185: 0 | V185: سن2 | W185: 0 | Y185: 0 | Z185: مادة | AA185: 0 | AB185: 0 | AC185: =IFERROR(VLOOKUP($AB185,LIST!$J$3:$O$190,2,0),0) -> 0 | AD185: =IFERROR(VLOOKUP($AB185,LIST!$J$3:$O$1900,3,0),0) -> 0 | AE185: =IFERROR(VLOOKUP($AB185,LIST!$J$3:$O$1900,4,0),0) -> 0 | AF185: =IFERROR(VLOOKUP($AB185,LIST!$J$3:$O$1900,5,0),0) -> 0 | AG185: =IFERROR(VLOOKUP($AB185,LIST!$J$3:$O$1900,6,0),0) -> 0
A186: يناير | O186: "م2" | P186: اسمنت مقاوم | Q186: 0 | R186: اسمنت عادى | S186: 0 | T186: سن1 | U186: 0 | V186: سن2 | W186: 0 | Y186: 0 | Z186: مادة | AA186: 0 | AB186: 0 | AC186: =IFERROR(VLOOKUP($AB186,LIST!$J$3:$O$190,2,0),0) -> 0 | AD186: =IFERROR(VLOOKUP($AB186,LIST!$J$3:$O$1900,3,0),0) -> 0 | AE186: =IFERROR(VLOOKUP($AB186,LIST!$J$3:$O$1900,4,0),0) -> 0 | AF186: =IFERROR(VLOOKUP($AB186,LIST!$J$3:$O$1900,5,0),0) -> 0 | AG186: =IFERROR(VLOOKUP($AB186,LIST!$J$3:$O$1900,6,0),0) -> 0
A187: يناير | O187: "م2" | P187: اسمنت مقاوم | Q187: 0 | R187: اسمنت عادى | S187: 0 | T187: سن1 | U187: 0 | V187: سن2 | W187: 0 | Y187: 0 | Z187: مادة | AA187: 0 | AB187: 0 | AC187: =IFERROR(VLOOKUP($AB187,LIST!$J$3:$O$190,2,0),0) -> 0 | AD187: =IFERROR(VLOOKUP($AB187,LIST!$J$3:$O$1900,3,0),0) -> 0 | AE187: =IFERROR(VLOOKUP($AB187,LIST!$J$3:$O$1900,4,0),0) -> 0 | AF187: =IFERROR(VLOOKUP($AB187,LIST!$J$3:$O$1900,5,0),0) -> 0 | AG187: =IFERROR(VLOOKUP($AB187,LIST!$J$3:$O$1900,6,0),0) -> 0
A188: يناير | O188: "م2" | P188: اسمنت مقاوم | Q188: 0 | R188: اسمنت عادى | S188: 0 | T188: سن1 | U188: 0 | V188: سن2 | W188: 0 | Y188: 0 | Z188: مادة | AA188: 0 | AB188: 0 | AC188: =IFERROR(VLOOKUP($AB188,LIST!$J$3:$O$190,2,0),0) -> 0 | AD188: =IFERROR(VLOOKUP($AB188,LIST!$J$3:$O$1900,3,0),0) -> 0 | AE188: =IFERROR(VLOOKUP($AB188,LIST!$J$3:$O$1900,4,0),0) -> 0 | AF188: =IFERROR(VLOOKUP($AB188,LIST!$J$3:$O$1900,5,0),0) -> 0 | AG188: =IFERROR(VLOOKUP($AB188,LIST!$J$3:$O$1900,6,0),0) -> 0
A189: يناير | O189: "م2" | P189: اسمنت مقاوم | Q189: 0 | R189: اسمنت عادى | S189: 0 | T189: سن1 | U189: 0 | V189: سن2 | W189: 0 | Y189: 0 | Z189: مادة | AA189: 0 | AB189: 0 | AC189: =IFERROR(VLOOKUP($AB189,LIST!$J$3:$O$190,2,0),0) -> 0 | AD189: =IFERROR(VLOOKUP($AB189,LIST!$J$3:$O$1900,3,0),0) -> 0 | AE189: =IFERROR(VLOOKUP($AB189,LIST!$J$3:$O$1900,4,0),0) -> 0 | AF189: =IFERROR(VLOOKUP($AB189,LIST!$J$3:$O$1900,5,0),0) -> 0 | AG189: =IFERROR(VLOOKUP($AB189,LIST!$J$3:$O$1900,6,0),0) -> 0
A190: يناير | O190: "م2" | P190: اسمنت مقاوم | Q190: 0 | R190: اسمنت عادى | S190: 0 | T190: سن1 | U190: 0 | V190: سن2 | W190: 0 | Y190: 0 | Z190: مادة | AA190: 0 | AB190: 0 | AC190: =IFERROR(VLOOKUP($AB190,LIST!$J$3:$O$190,2,0),0) -> 0 | AD190: =IFERROR(VLOOKUP($AB190,LIST!$J$3:$O$1900,3,0),0) -> 0 | AE190: =IFERROR(VLOOKUP($AB190,LIST!$J$3:$O$1900,4,0),0) -> 0 | AF190: =IFERROR(VLOOKUP($AB190,LIST!$J$3:$O$1900,5,0),0) -> 0 | AG190: =IFERROR(VLOOKUP($AB190,LIST!$J$3:$O$1900,6,0),0) -> 0
A191: يناير | O191: "م2" | P191: اسمنت مقاوم | Q191: 0 | R191: اسمنت عادى | S191: 0 | T191: سن1 | U191: 0 | V191: سن2 | W191: 0 | Y191: 0 | Z191: مادة | AA191: 0 | AB191: 0 | AC191: =IFERROR(VLOOKUP($AB191,LIST!$J$3:$O$190,2,0),0) -> 0 | AD191: =IFERROR(VLOOKUP($AB191,LIST!$J$3:$O$1900,3,0),0) -> 0 | AE191: =IFERROR(VLOOKUP($AB191,LIST!$J$3:$O$1900,4,0),0) -> 0 | AF191: =IFERROR(VLOOKUP($AB191,LIST!$J$3:$O$1900,5,0),0) -> 0 | AG191: =IFERROR(VLOOKUP($AB191,LIST!$J$3:$O$1900,6,0),0) -> 0
A192: يناير | O192: "م2" | P192: اسمنت مقاوم | Q192: 0 | R192: اسمنت عادى | S192: 0 | T192: سن1 | U192: 0 | V192: سن2 | W192: 0 | Y192: 0 | Z192: مادة | AA192: 0 | AB192: 0 | AC192: =IFERROR(VLOOKUP($AB192,LIST!$J$3:$O$190,2,0),0) -> 0 | AD192: =IFERROR(VLOOKUP($AB192,LIST!$J$3:$O$1900,3,0),0) -> 0 | AE192: =IFERROR(VLOOKUP($AB192,LIST!$J$3:$O$1900,4,0),0) -> 0 | AF192: =IFERROR(VLOOKUP($AB192,LIST!$J$3:$O$1900,5,0),0) -> 0 | AG192: =IFERROR(VLOOKUP($AB192,LIST!$J$3:$O$1900,6,0),0) -> 0
A193: يناير | O193: "م2" | P193: اسمنت مقاوم | Q193: 0 | R193: اسمنت عادى | S193: 0 | T193: سن1 | U193: 0 | V193: سن2 | W193: 0 | Y193: 0 | Z193: مادة | AA193: 0 | AB193: 0 | AC193: =IFERROR(VLOOKUP($AB193,LIST!$J$3:$O$190,2,0),0) -> 0 | AD193: =IFERROR(VLOOKUP($AB193,LIST!$J$3:$O$1900,3,0),0) -> 0 | AE193: =IFERROR(VLOOKUP($AB193,LIST!$J$3:$O$1900,4,0),0) -> 0 | AF193: =IFERROR(VLOOKUP($AB193,LIST!$J$3:$O$1900,5,0),0) -> 0 | AG193: =IFERROR(VLOOKUP($AB193,LIST!$J$3:$O$1900,6,0),0) -> 0
A194: يناير | O194: "م2" | P194: اسمنت مقاوم | Q194: 0 | R194: اسمنت عادى | S194: 0 | T194: سن1 | U194: 0 | V194: سن2 | W194: 0 | Y194: 0 | Z194: مادة | AA194: 0 | AB194: 0 | AC194: =IFERROR(VLOOKUP($AB194,LIST!$J$3:$O$190,2,0),0) -> 0 | AD194: =IFERROR(VLOOKUP($AB194,LIST!$J$3:$O$1900,3,0),0) -> 0 | AE194: =IFERROR(VLOOKUP($AB194,LIST!$J$3:$O$1900,4,0),0) -> 0 | AF194: =IFERROR(VLOOKUP($AB194,LIST!$J$3:$O$1900,5,0),0) -> 0 | AG194: =IFERROR(VLOOKUP($AB194,LIST!$J$3:$O$1900,6,0),0) -> 0
A195: يناير | O195: "م2" | P195: اسمنت مقاوم | Q195: 0 | R195: اسمنت عادى | S195: 0 | T195: سن1 | U195: 0 | V195: سن2 | W195: 0 | Y195: 0 | Z195: مادة | AA195: 0 | AB195: 0 | AC195: =IFERROR(VLOOKUP($AB195,LIST!$J$3:$O$190,2,0),0) -> 0 | AD195: =IFERROR(VLOOKUP($AB195,LIST!$J$3:$O$1900,3,0),0) -> 0 | AE195: =IFERROR(VLOOKUP($AB195,LIST!$J$3:$O$1900,4,0),0) -> 0 | AF195: =IFERROR(VLOOKUP($AB195,LIST!$J$3:$O$1900,5,0),0) -> 0 | AG195: =IFERROR(VLOOKUP($AB195,LIST!$J$3:$O$1900,6,0),0) -> 0
A196: يناير | O196: "م2" | P196: اسمنت مقاوم | Q196: 0 | R196: اسمنت عادى | S196: 0 | T196: سن1 | U196: 0 | V196: سن2 | W196: 0 | Y196: 0 | Z196: مادة | AA196: 0 | AB196: 0 | AC196: =IFERROR(VLOOKUP($AB196,LIST!$J$3:$O$190,2,0),0) -> 0 | AD196: =IFERROR(VLOOKUP($AB196,LIST!$J$3:$O$1900,3,0),0) -> 0 | AE196: =IFERROR(VLOOKUP($AB196,LIST!$J$3:$O$1900,4,0),0) -> 0 | AF196: =IFERROR(VLOOKUP($AB196,LIST!$J$3:$O$1900,5,0),0) -> 0 | AG196: =IFERROR(VLOOKUP($AB196,LIST!$J$3:$O$1900,6,0),0) -> 0
A197: يناير | O197: "م2" | P197: اسمنت مقاوم | Q197: 0 | R197: اسمنت عادى | S197: 0 | T197: سن1 | U197: 0 | V197: سن2 | W197: 0 | Y197: 0 | Z197: مادة | AA197: 0 | AB197: 0 | AC197: =IFERROR(VLOOKUP($AB197,LIST!$J$3:$O$190,2,0),0) -> 0 | AD197: =IFERROR(VLOOKUP($AB197,LIST!$J$3:$O$1900,3,0),0) -> 0 | AE197: =IFERROR(VLOOKUP($AB197,LIST!$J$3:$O$1900,4,0),0) -> 0 | AF197: =IFERROR(VLOOKUP($AB197,LIST!$J$3:$O$1900,5,0),0) -> 0 | AG197: =IFERROR(VLOOKUP($AB197,LIST!$J$3:$O$1900,6,0),0) -> 0
A198: =TEXT(C198,"mmmm") -> يناير | O198: "م2" | P198: اسمنت مقاوم | Q198: =+$N198*AC198 -> 0 | R198: اسمنت عادى | S198: =+$N198*AD198 -> 0 | T198: سن1 | U198: =+$N198*AE198 -> 0 | V198: سن2 | W198: =+$N198*AF198 -> 0 | Y198: 0 | Z198: مادة | AA198: 0 | AB198: =+M198 -> 0 | AC198: =IFERROR(VLOOKUP($AB198,LIST!$J$3:$O$190,2,0),0) -> 0 | AD198: =IFERROR(VLOOKUP($AB198,LIST!$J$3:$O$1900,3,0),0) -> 0 | AE198: =IFERROR(VLOOKUP($AB198,LIST!$J$3:$O$1900,4,0),0) -> 0 | AF198: =IFERROR(VLOOKUP($AB198,LIST!$J$3:$O$1900,5,0),0) -> 0 | AG198: =IFERROR(VLOOKUP($AB198,LIST!$J$3:$O$1900,6,0),0) -> 0
A199: يناير | O199: "م2" | P199: اسمنت مقاوم | Q199: 0 | R199: اسمنت عادى | S199: 0 | T199: سن1 | U199: 0 | V199: سن2 | W199: 0 | Y199: =+$N199*AG199 -> 0 | Z199: مادة | AA199: =+X199+Y199 -> 0 | AB199: 0 | AC199: =IFERROR(VLOOKUP($AB199,LIST!$J$3:$O$190,2,0),0) -> 0 | AD199: =IFERROR(VLOOKUP($AB199,LIST!$J$3:$O$1900,3,0),0) -> 0 | AE199: =IFERROR(VLOOKUP($AB199,LIST!$J$3:$O$1900,4,0),0) -> 0 | AF199: =IFERROR(VLOOKUP($AB199,LIST!$J$3:$O$1900,5,0),0) -> 0 | AG199: =IFERROR(VLOOKUP($AB199,LIST!$J$3:$O$1900,6,0),0) -> 0
A200: يناير | B200: =IF(C200<>"",B199+1,"") ->  | O200: "م2" | P200: =+P199 -> اسمنت مقاوم | Q200: 0 | R200: =+R199 -> اسمنت عادى | S200: 0 | T200: =+T199 -> سن1 | U200: 0 | V200: =+V199 -> سن2 | W200: 0 | Y200: 0 | Z200: =+Z199 -> مادة | AA200: 0 | AB200: 0 | AC200: =IFERROR(VLOOKUP($AB200,LIST!$J$3:$O$190,2,0),0) -> 0 | AD200: =IFERROR(VLOOKUP($AB200,LIST!$J$3:$O$1900,3,0),0) -> 0 | AE200: =IFERROR(VLOOKUP($AB200,LIST!$J$3:$O$1900,4,0),0) -> 0 | AF200: =IFERROR(VLOOKUP($AB200,LIST!$J$3:$O$1900,5,0),0) -> 0 | AG200: =IFERROR(VLOOKUP($AB200,LIST!$J$3:$O$1900,6,0),0) -> 0
A201: يناير | O201: "م2" | P201: اسمنت مقاوم | Q201: 0 | R201: اسمنت عادى | S201: 0 | T201: سن1 | U201: 0 | V201: سن2 | W201: 0 | Y201: 0 | Z201: مادة | AA201: 0 | AB201: 0 | AC201: =IFERROR(VLOOKUP($AB201,LIST!$J$3:$O$190,2,0),0) -> 0 | AD201: =IFERROR(VLOOKUP($AB201,LIST!$J$3:$O$1900,3,0),0) -> 0 | AE201: =IFERROR(VLOOKUP($AB201,LIST!$J$3:$O$1900,4,0),0) -> 0 | AF201: =IFERROR(VLOOKUP($AB201,LIST!$J$3:$O$1900,5,0),0) -> 0 | AG201: =IFERROR(VLOOKUP($AB201,LIST!$J$3:$O$1900,6,0),0) -> 0
A202: يناير | O202: "م2" | P202: اسمنت مقاوم | Q202: 0 | R202: اسمنت عادى | S202: 0 | T202: سن1 | U202: 0 | V202: سن2 | W202: 0 | Y202: 0 | Z202: مادة | AA202: 0 | AB202: 0 | AC202: =IFERROR(VLOOKUP($AB202,LIST!$J$3:$O$190,2,0),0) -> 0 | AD202: =IFERROR(VLOOKUP($AB202,LIST!$J$3:$O$1900,3,0),0) -> 0 | AE202: =IFERROR(VLOOKUP($AB202,LIST!$J$3:$O$1900,4,0),0) -> 0 | AF202: =IFERROR(VLOOKUP($AB202,LIST!$J$3:$O$1900,5,0),0) -> 0 | AG202: =IFERROR(VLOOKUP($AB202,LIST!$J$3:$O$1900,6,0),0) -> 0
... 1200 more rows

Sheet تقرير شهرى تصنيع)
C4: الشهر | D4: اسمنت مقاوم | F4: اسمنت عادى | H4: سن1 | J4: سن2 | L4: مادة
D5: محطة رقم 1 | E5: محطة رقم 2 | F5: محطة رقم 1 | G5: محطة رقم 2 | H5: محطة رقم 1 | I5: محطة رقم 2 | J5: محطة رقم 1 | K5: محطة رقم 2 | L5: محطة رقم 1 | M5: محطة رقم 2
C6: يناير | D6: =SUMIFS(التصنيع!$Q$6:$Q$15300,التصنيع!$I$6:$I$15300,D$5,التصنيع!$P$6:$P$15300,D$4,التصنيع!$A$6:$A$15300,$C6) -> 0 | E6: =SUMIFS(التصنيع!$Q$6:$Q$15300,التصنيع!$I$6:$I$15300,E$5,التصنيع!$P$6:$P$15300,D$4,التصنيع!$A$6:$A$15300,$C6) -> 0 | F6: =SUMIFS(التصنيع!$S$6:$S$15300,التصنيع!$I$6:$I$15300,F$5,التصنيع!$R$6:$R$15300,F$4,التصنيع!$A$6:$A$15300,$C6) -> 0 | G6: =SUMIFS(التصنيع!$S$6:$S$15300,التصنيع!$I$6:$I$15300,G$5,التصنيع!$R$6:$R$15300,F$4,التصنيع!$A$6:$A$15300,$C6) -> 0 | H6: =SUMIFS(التصنيع!$U$6:$U$15300,التصنيع!$I$6:$I$15300,H$5,التصنيع!$T$6:$T$15300,H$4,التصنيع!$A$6:$A$15300,$C6) -> 0 | I6: =SUMIFS(التصنيع!$U$6:$U$15300,التصنيع!$I$6:$I$15300,I$5,التصنيع!$T$6:$T$15300,H$4,التصنيع!$A$6:$A$15300,$C6) -> 0 | J6: =SUMIFS(التصنيع!$W$6:$W$15300,التصنيع!$I$6:$I$15300,J$5,التصنيع!$V$6:$V$15300,J$4,التصنيع!$A$6:$A$15300,$C6) -> 0 | K6: =SUMIFS(التصنيع!$W$6:$W$15300,التصنيع!$I$6:$I$15300,K$5,التصنيع!$V$6:$V$15300,J$4,التصنيع!$A$6:$A$15300,$C6) -> 0 | L6: =SUMIFS(التصنيع!$AA$6:$AA$15300,التصنيع!$I$6:$I$15300,L$5,التصنيع!$Z$6:$Z$15300,L$4,التصنيع!$A$6:$A$15300,$C6) -> 0 | M6: =SUMIFS(التصنيع!$AA$6:$AA$15300,التصنيع!$I$6:$I$15300,M$5,التصنيع!$Z$6:$Z$15300,L$4,التصنيع!$A$6:$A$15300,$C6) -> 0
C7: فبراير | D7: =SUMIFS(التصنيع!$Q$6:$Q$15300,التصنيع!$I$6:$I$15300,D$5,التصنيع!$P$6:$P$15300,D$4,التصنيع!$A$6:$A$15300,$C7) -> 0 | E7: =SUMIFS(التصنيع!$Q$6:$Q$15300,التصنيع!$I$6:$I$15300,E$5,التصنيع!$P$6:$P$15300,D$4,التصنيع!$A$6:$A$15300,$C7) -> 0 | F7: =SUMIFS(التصنيع!$S$6:$S$15300,التصنيع!$I$6:$I$15300,F$5,التصنيع!$R$6:$R$15300,F$4,التصنيع!$A$6:$A$15300,$C7) -> 0 | G7: =SUMIFS(التصنيع!$S$6:$S$15300,التصنيع!$I$6:$I$15300,G$5,التصنيع!$R$6:$R$15300,F$4,التصنيع!$A$6:$A$15300,$C7) -> 0 | H7: =SUMIFS(التصنيع!$U$6:$U$15300,التصنيع!$I$6:$I$15300,H$5,التصنيع!$T$6:$T$15300,H$4,التصنيع!$A$6:$A$15300,$C7) -> 0 | I7: =SUMIFS(التصنيع!$U$6:$U$15300,التصنيع!$I$6:$I$15300,I$5,التصنيع!$T$6:$T$15300,H$4,التصنيع!$A$6:$A$15300,$C7) -> 0 | J7: =SUMIFS(التصنيع!$W$6:$W$15300,التصنيع!$I$6:$I$15300,J$5,التصنيع!$V$6:$V$15300,J$4,التصنيع!$A$6:$A$15300,$C7) -> 0 | K7: =SUMIFS(التصنيع!$W$6:$W$15300,التصنيع!$I$6:$I$15300,K$5,التصنيع!$V$6:$V$15300,J$4,التصنيع!$A$6:$A$15300,$C7) -> 0 | L7: =SUMIFS(التصنيع!$AA$6:$AA$15300,التصنيع!$I$6:$I$15300,L$5,التصنيع!$Z$6:$Z$15300,L$4,التصنيع!$A$6:$A$15300,$C7) -> 0 | M7: =SUMIFS(التصنيع!$AA$6:$AA$15300,التصنيع!$I$6:$I$15300,M$5,التصنيع!$Z$6:$Z$15300,L$4,التصنيع!$A$6:$A$15300,$C7) -> 0
C8: مارس | D8: =SUMIFS(التصنيع!$Q$6:$Q$15300,التصنيع!$I$6:$I$15300,D$5,التصنيع!$P$6:$P$15300,D$4,التصنيع!$A$6:$A$15300,$C8) -> 0 | E8: =SUMIFS(التصنيع!$Q$6:$Q$15300,التصنيع!$I$6:$I$15300,E$5,التصنيع!$P$6:$P$15300,D$4,التصنيع!$A$6:$A$15300,$C8) -> 0 | F8: =SUMIFS(التصنيع!$S$6:$S$15300,التصنيع!$I$6:$I$15300,F$5,التصنيع!$R$6:$R$15300,F$4,التصنيع!$A$6:$A$15300,$C8) -> 0 | G8: =SUMIFS(التصنيع!$S$6:$S$15300,التصنيع!$I$6:$I$15300,G$5,التصنيع!$R$6:$R$15300,F$4,التصنيع!$A$6:$A$15300,$C8) -> 0 | H8: =SUMIFS(التصنيع!$U$6:$U$15300,التصنيع!$I$6:$I$15300,H$5,التصنيع!$T$6:$T$15300,H$4,التصنيع!$A$6:$A$15300,$C8) -> 0 | I8: =SUMIFS(التصنيع!$U$6:$U$15300,التصنيع!$I$6:$I$15300,I$5,التصنيع!$T$6:$T$15300,H$4,التصنيع!$A$6:$A$15300,$C8) -> 0 | J8: =SUMIFS(التصنيع!$W$6:$W$15300,التصنيع!$I$6:$I$15300,J$5,التصنيع!$V$6:$V$15300,J$4,التصنيع!$A$6:$A$15300,$C8) -> 0 | K8: =SUMIFS(التصنيع!$W$6:$W$15300,التصنيع!$I$6:$I$15300,K$5,التصنيع!$V$6:$V$15300,J$4,التصنيع!$A$6:$A$15300,$C8) -> 0 | L8: =SUMIFS(التصنيع!$AA$6:$AA$15300,التصنيع!$I$6:$I$15300,L$5,التصنيع!$Z$6:$Z$15300,L$4,التصنيع!$A$6:$A$15300,$C8) -> 0 | M8: =SUMIFS(التصنيع!$AA$6:$AA$15300,التصنيع!$I$6:$I$15300,M$5,التصنيع!$Z$6:$Z$15300,L$4,التصنيع!$A$6:$A$15300,$C8) -> 0
C9: أبريل | D9: =SUMIFS(التصنيع!$Q$6:$Q$15300,التصنيع!$I$6:$I$15300,D$5,التصنيع!$P$6:$P$15300,D$4,التصنيع!$A$6:$A$15300,$C9) -> 0 | E9: =SUMIFS(التصنيع!$Q$6:$Q$15300,التصنيع!$I$6:$I$15300,E$5,التصنيع!$P$6:$P$15300,D$4,التصنيع!$A$6:$A$15300,$C9) -> 0 | F9: =SUMIFS(التصنيع!$S$6:$S$15300,التصنيع!$I$6:$I$15300,F$5,التصنيع!$R$6:$R$15300,F$4,التصنيع!$A$6:$A$15300,$C9) -> 0 | G9: =SUMIFS(التصنيع!$S$6:$S$15300,التصنيع!$I$6:$I$15300,G$5,التصنيع!$R$6:$R$15300,F$4,التصنيع!$A$6:$A$15300,$C9) -> 0 | H9: =SUMIFS(التصنيع!$U$6:$U$15300,التصنيع!$I$6:$I$15300,H$5,التصنيع!$T$6:$T$15300,H$4,التصنيع!$A$6:$A$15300,$C9) -> 0 | I9: =SUMIFS(التصنيع!$U$6:$U$15300,التصنيع!$I$6:$I$15300,I$5,التصنيع!$T$6:$T$15300,H$4,التصنيع!$A$6:$A$15300,$C9) -> 0 | J9: =SUMIFS(التصنيع!$W$6:$W$15300,التصنيع!$I$6:$I$15300,J$5,التصنيع!$V$6:$V$15300,J$4,التصنيع!$A$6:$A$15300,$C9) -> 0 | K9: =SUMIFS(التصنيع!$W$6:$W$15300,التصنيع!$I$6:$I$15300,K$5,التصنيع!$V$6:$V$15300,J$4,التصنيع!$A$6:$A$15300,$C9) -> 0 | L9: =SUMIFS(التصنيع!$AA$6:$AA$15300,التصنيع!$I$6:$I$15300,L$5,التصنيع!$Z$6:$Z$15300,L$4,التصنيع!$A$6:$A$15300,$C9) -> 0 | M9: =SUMIFS(التصنيع!$AA$6:$AA$15300,التصنيع!$I$6:$I$15300,M$5,التصنيع!$Z$6:$Z$15300,L$4,التصنيع!$A$6:$A$15300,$C9) -> 0
C10: مايو | D10: =SUMIFS(التصنيع!$Q$6:$Q$15300,التصنيع!$I$6:$I$15300,D$5,التصنيع!$P$6:$P$15300,D$4,التصنيع!$A$6:$A$15300,$C10) -> 5600 | E10: =SUMIFS(التصنيع!$Q$6:$Q$15300,التصنيع!$I$6:$I$15300,E$5,التصنيع!$P$6:$P$15300,D$4,التصنيع!$A$6:$A$15300,$C10) -> 12000 | F10: =SUMIFS(التصنيع!$S$6:$S$15300,التصنيع!$I$6:$I$15300,F$5,التصنيع!$R$6:$R$15300,F$4,التصنيع!$A$6:$A$15300,$C10) -> 130000 | G10: =SUMIFS(التصنيع!$S$6:$S$15300,التصنيع!$I$6:$I$15300,G$5,التصنيع!$R$6:$R$15300,F$4,التصنيع!$A$6:$A$15300,$C10) -> 79480 | H10: =SUMIFS(التصنيع!$U$6:$U$15300,التصنيع!$I$6:$I$15300,H$5,التصنيع!$T$6:$T$15300,H$4,التصنيع!$A$6:$A$15300,$C10) -> 166.5594406 | I10: =SUMIFS(التصنيع!$U$6:$U$15300,التصنيع!$I$6:$I$15300,I$5,التصنيع!$T$6:$T$15300,H$4,التصنيع!$A$6:$A$15300,$C10) -> 103.9090909 | J10: =SUMIFS(التصنيع!$W$6:$W$15300,التصنيع!$I$6:$I$15300,J$5,التصنيع!$V$6:$V$15300,J$4,التصنيع!$A$6:$A$15300,$C10) -> 165.9178082 | K10: =SUMIFS(التصنيع!$W$6:$W$15300,التصنيع!$I$6:$I$15300,K$5,التصنيع!$V$6:$V$15300,J$4,التصنيع!$A$6:$A$15300,$C10) -> 101.8047945 | L10: =SUMIFS(التصنيع!$AA$6:$AA$15300,التصنيع!$I$6:$I$15300,L$5,التصنيع!$Z$6:$Z$15300,L$4,التصنيع!$A$6:$A$15300,$C10) -> 1114.166667 | M10: =SUMIFS(التصنيع!$AA$6:$AA$15300,التصنيع!$I$6:$I$15300,M$5,التصنيع!$Z$6:$Z$15300,L$4,التصنيع!$A$6:$A$15300,$C10) -> 670.625
C11: يونيو | D11: =SUMIFS(التصنيع!$Q$6:$Q$15300,التصنيع!$I$6:$I$15300,D$5,التصنيع!$P$6:$P$15300,D$4,التصنيع!$A$6:$A$15300,$C11) -> 0 | E11: =SUMIFS(التصنيع!$Q$6:$Q$15300,التصنيع!$I$6:$I$15300,E$5,التصنيع!$P$6:$P$15300,D$4,التصنيع!$A$6:$A$15300,$C11) -> 0 | F11: =SUMIFS(التصنيع!$S$6:$S$15300,التصنيع!$I$6:$I$15300,F$5,التصنيع!$R$6:$R$15300,F$4,التصنيع!$A$6:$A$15300,$C11) -> 19200 | G11: =SUMIFS(التصنيع!$S$6:$S$15300,التصنيع!$I$6:$I$15300,G$5,التصنيع!$R$6:$R$15300,F$4,التصنيع!$A$6:$A$15300,$C11) -> 19200 | H11: =SUMIFS(التصنيع!$U$6:$U$15300,التصنيع!$I$6:$I$15300,H$5,التصنيع!$T$6:$T$15300,H$4,التصنيع!$A$6:$A$15300,$C11) -> 20.47552448 | I11: =SUMIFS(التصنيع!$U$6:$U$15300,التصنيع!$I$6:$I$15300,I$5,التصنيع!$T$6:$T$15300,H$4,التصنيع!$A$6:$A$15300,$C11) -> 20.47552448 | J11: =SUMIFS(التصنيع!$W$6:$W$15300,التصنيع!$I$6:$I$15300,J$5,التصنيع!$V$6:$V$15300,J$4,التصنيع!$A$6:$A$15300,$C11) -> 16.76712329 | K11: =SUMIFS(التصنيع!$W$6:$W$15300,التصنيع!$I$6:$I$15300,K$5,التصنيع!$V$6:$V$15300,J$4,التصنيع!$A$6:$A$15300,$C11) -> 16.76712329 | L11: =SUMIFS(التصنيع!$AA$6:$AA$15300,التصنيع!$I$6:$I$15300,L$5,التصنيع!$Z$6:$Z$15300,L$4,التصنيع!$A$6:$A$15300,$C11) -> 120 | M11: =SUMIFS(التصنيع!$AA$6:$AA$15300,التصنيع!$I$6:$I$15300,M$5,التصنيع!$Z$6:$Z$15300,L$4,التصنيع!$A$6:$A$15300,$C11) -> 120
C12: يوليو | D12: =SUMIFS(التصنيع!$Q$6:$Q$15300,التصنيع!$I$6:$I$15300,D$5,التصنيع!$P$6:$P$15300,D$4,التصنيع!$A$6:$A$15300,$C12) -> 0 | E12: =SUMIFS(التصنيع!$Q$6:$Q$15300,التصنيع!$I$6:$I$15300,E$5,التصنيع!$P$6:$P$15300,D$4,التصنيع!$A$6:$A$15300,$C12) -> 0 | F12: =SUMIFS(التصنيع!$S$6:$S$15300,التصنيع!$I$6:$I$15300,F$5,التصنيع!$R$6:$R$15300,F$4,التصنيع!$A$6:$A$15300,$C12) -> 0 | G12: =SUMIFS(التصنيع!$S$6:$S$15300,التصنيع!$I$6:$I$15300,G$5,التصنيع!$R$6:$R$15300,F$4,التصنيع!$A$6:$A$15300,$C12) -> 0 | H12: =SUMIFS(التصنيع!$U$6:$U$15300,التصنيع!$I$6:$I$15300,H$5,التصنيع!$T$6:$T$15300,H$4,التصنيع!$A$6:$A$15300,$C12) -> 0 | I12: =SUMIFS(التصنيع!$U$6:$U$15300,التصنيع!$I$6:$I$15300,I$5,التصنيع!$T$6:$T$15300,H$4,التصنيع!$A$6:$A$15300,$C12) -> 0 | J12: =SUMIFS(التصنيع!$W$6:$W$15300,التصنيع!$I$6:$I$15300,J$5,التصنيع!$V$6:$V$15300,J$4,التصنيع!$A$6:$A$15300,$C12) -> 0 | K12: =SUMIFS(التصنيع!$W$6:$W$15300,التصنيع!$I$6:$I$15300,K$5,التصنيع!$V$6:$V$15300,J$4,التصنيع!$A$6:$A$15300,$C12) -> 0 | L12: =SUMIFS(التصنيع!$AA$6:$AA$15300,التصنيع!$I$6:$I$15300,L$5,التصنيع!$Z$6:$Z$15300,L$4,التصنيع!$A$6:$A$15300,$C12) -> 0 | M12: =SUMIFS(التصنيع!$AA$6:$AA$15300,التصنيع!$I$6:$I$15300,M$5,التصنيع!$Z$6:$Z$15300,L$4,التصنيع!$A$6:$A$15300,$C12) -> 0
C13: أغسطس | D13: =SUMIFS(التصنيع!$Q$6:$Q$15300,التصنيع!$I$6:$I$15300,D$5,التصنيع!$P$6:$P$15300,D$4,التصنيع!$A$6:$A$15300,$C13) -> 0 | E13: =SUMIFS(التصنيع!$Q$6:$Q$15300,التصنيع!$I$6:$I$15300,E$5,التصنيع!$P$6:$P$15300,D$4,التصنيع!$A$6:$A$15300,$C13) -> 0 | F13: =SUMIFS(التصنيع!$S$6:$S$15300,التصنيع!$I$6:$I$15300,F$5,التصنيع!$R$6:$R$15300,F$4,التصنيع!$A$6:$A$15300,$C13) -> 0 | G13: =SUMIFS(التصنيع!$S$6:$S$15300,التصنيع!$I$6:$I$15300,G$5,التصنيع!$R$6:$R$15300,F$4,التصنيع!$A$6:$A$15300,$C13) -> 0 | H13: =SUMIFS(التصنيع!$U$6:$U$15300,التصنيع!$I$6:$I$15300,H$5,التصنيع!$T$6:$T$15300,H$4,التصنيع!$A$6:$A$15300,$C13) -> 0 | I13: =SUMIFS(التصنيع!$U$6:$U$15300,التصنيع!$I$6:$I$15300,I$5,التصنيع!$T$6:$T$15300,H$4,التصنيع!$A$6:$A$15300,$C13) -> 0 | J13: =SUMIFS(التصنيع!$W$6:$W$15300,التصنيع!$I$6:$I$15300,J$5,التصنيع!$V$6:$V$15300,J$4,التصنيع!$A$6:$A$15300,$C13) -> 0 | K13: =SUMIFS(التصنيع!$W$6:$W$15300,التصنيع!$I$6:$I$15300,K$5,التصنيع!$V$6:$V$15300,J$4,التصنيع!$A$6:$A$15300,$C13) -> 0 | L13: =SUMIFS(التصنيع!$AA$6:$AA$15300,التصنيع!$I$6:$I$15300,L$5,التصنيع!$Z$6:$Z$15300,L$4,التصنيع!$A$6:$A$15300,$C13) -> 0 | M13: =SUMIFS(التصنيع!$AA$6:$AA$15300,التصنيع!$I$6:$I$15300,M$5,التصنيع!$Z$6:$Z$15300,L$4,التصنيع!$A$6:$A$15300,$C13) -> 0
C14: سبتمبر | D14: =SUMIFS(التصنيع!$Q$6:$Q$15300,التصنيع!$I$6:$I$15300,D$5,التصنيع!$P$6:$P$15300,D$4,التصنيع!$A$6:$A$15300,$C14) -> 0 | E14: =SUMIFS(التصنيع!$Q$6:$Q$15300,التصنيع!$I$6:$I$15300,E$5,التصنيع!$P$6:$P$15300,D$4,التصنيع!$A$6:$A$15300,$C14) -> 0 | F14: =SUMIFS(التصنيع!$S$6:$S$15300,التصنيع!$I$6:$I$15300,F$5,التصنيع!$R$6:$R$15300,F$4,التصنيع!$A$6:$A$15300,$C14) -> 0 | G14: =SUMIFS(التصنيع!$S$6:$S$15300,التصنيع!$I$6:$I$15300,G$5,التصنيع!$R$6:$R$15300,F$4,التصنيع!$A$6:$A$15300,$C14) -> 0 | H14: =SUMIFS(التصنيع!$U$6:$U$15300,التصنيع!$I$6:$I$15300,H$5,التصنيع!$T$6:$T$15300,H$4,التصنيع!$A$6:$A$15300,$C14) -> 0 | I14: =SUMIFS(التصنيع!$U$6:$U$15300,التصنيع!$I$6:$I$15300,I$5,التصنيع!$T$6:$T$15300,H$4,التصنيع!$A$6:$A$15300,$C14) -> 0 | J14: =SUMIFS(التصنيع!$W$6:$W$15300,التصنيع!$I$6:$I$15300,J$5,التصنيع!$V$6:$V$15300,J$4,التصنيع!$A$6:$A$15300,$C14) -> 0 | K14: =SUMIFS(التصنيع!$W$6:$W$15300,التصنيع!$I$6:$I$15300,K$5,التصنيع!$V$6:$V$15300,J$4,التصنيع!$A$6:$A$15300,$C14) -> 0 | L14: =SUMIFS(التصنيع!$AA$6:$AA$15300,التصنيع!$I$6:$I$15300,L$5,التصنيع!$Z$6:$Z$15300,L$4,التصنيع!$A$6:$A$15300,$C14) -> 0 | M14: =SUMIFS(التصنيع!$AA$6:$AA$15300,التصنيع!$I$6:$I$15300,M$5,التصنيع!$Z$6:$Z$15300,L$4,التصنيع!$A$6:$A$15300,$C14) -> 0
C15: أكتوبر | D15: =SUMIFS(التصنيع!$Q$6:$Q$15300,التصنيع!$I$6:$I$15300,D$5,التصنيع!$P$6:$P$15300,D$4,التصنيع!$A$6:$A$15300,$C15) -> 0 | E15: =SUMIFS(التصنيع!$Q$6:$Q$15300,التصنيع!$I$6:$I$15300,E$5,التصنيع!$P$6:$P$15300,D$4,التصنيع!$A$6:$A$15300,$C15) -> 0 | F15: =SUMIFS(التصنيع!$S$6:$S$15300,التصنيع!$I$6:$I$15300,F$5,التصنيع!$R$6:$R$15300,F$4,التصنيع!$A$6:$A$15300,$C15) -> 0 | G15: =SUMIFS(التصنيع!$S$6:$S$15300,التصنيع!$I$6:$I$15300,G$5,التصنيع!$R$6:$R$15300,F$4,التصنيع!$A$6:$A$15300,$C15) -> 0 | H15: =SUMIFS(التصنيع!$U$6:$U$15300,التصنيع!$I$6:$I$15300,H$5,التصنيع!$T$6:$T$15300,H$4,التصنيع!$A$6:$A$15300,$C15) -> 0 | I15: =SUMIFS(التصنيع!$U$6:$U$15300,التصنيع!$I$6:$I$15300,I$5,التصنيع!$T$6:$T$15300,H$4,التصنيع!$A$6:$A$15300,$C15) -> 0 | J15: =SUMIFS(التصنيع!$W$6:$W$15300,التصنيع!$I$6:$I$15300,J$5,التصنيع!$V$6:$V$15300,J$4,التصنيع!$A$6:$A$15300,$C15) -> 0 | K15: =SUMIFS(التصنيع!$W$6:$W$15300,التصنيع!$I$6:$I$15300,K$5,التصنيع!$V$6:$V$15300,J$4,التصنيع!$A$6:$A$15300,$C15) -> 0 | L15: =SUMIFS(التصنيع!$AA$6:$AA$15300,التصنيع!$I$6:$I$15300,L$5,التصنيع!$Z$6:$Z$15300,L$4,التصنيع!$A$6:$A$15300,$C15) -> 0 | M15: =SUMIFS(التصنيع!$AA$6:$AA$15300,التصنيع!$I$6:$I$15300,M$5,التصنيع!$Z$6:$Z$15300,L$4,التصنيع!$A$6:$A$15300,$C15) -> 0
C16: نوفمبر | D16: =SUMIFS(التصنيع!$Q$6:$Q$15300,التصنيع!$I$6:$I$15300,D$5,التصنيع!$P$6:$P$15300,D$4,التصنيع!$A$6:$A$15300,$C16) -> 0 | E16: =SUMIFS(التصنيع!$Q$6:$Q$15300,التصنيع!$I$6:$I$15300,E$5,التصنيع!$P$6:$P$15300,D$4,التصنيع!$A$6:$A$15300,$C16) -> 0 | F16: =SUMIFS(التصنيع!$S$6:$S$15300,التصنيع!$I$6:$I$15300,F$5,التصنيع!$R$6:$R$15300,F$4,التصنيع!$A$6:$A$15300,$C16) -> 0 | G16: =SUMIFS(التصنيع!$S$6:$S$15300,التصنيع!$I$6:$I$15300,G$5,التصنيع!$R$6:$R$15300,F$4,التصنيع!$A$6:$A$15300,$C16) -> 0 | H16: =SUMIFS(التصنيع!$U$6:$U$15300,التصنيع!$I$6:$I$15300,H$5,التصنيع!$T$6:$T$15300,H$4,التصنيع!$A$6:$A$15300,$C16) -> 0 | I16: =SUMIFS(التصنيع!$U$6:$U$15300,التصنيع!$I$6:$I$15300,I$5,التصنيع!$T$6:$T$15300,H$4,التصنيع!$A$6:$A$15300,$C16) -> 0 | J16: =SUMIFS(التصنيع!$W$6:$W$15300,التصنيع!$I$6:$I$15300,J$5,التصنيع!$V$6:$V$15300,J$4,التصنيع!$A$6:$A$15300,$C16) -> 0 | K16: =SUMIFS(التصنيع!$W$6:$W$15300,التصنيع!$I$6:$I$15300,K$5,التصنيع!$V$6:$V$15300,J$4,التصنيع!$A$6:$A$15300,$C16) -> 0 | L16: =SUMIFS(التصنيع!$AA$6:$AA$15300,التصنيع!$I$6:$I$15300,L$5,التصنيع!$Z$6:$Z$15300,L$4,التصنيع!$A$6:$A$15300,$C16) -> 0 | M16: =SUMIFS(التصنيع!$AA$6:$AA$15300,التصنيع!$I$6:$I$15300,M$5,التصنيع!$Z$6:$Z$15300,L$4,التصنيع!$A$6:$A$15300,$C16) -> 0
C17: ديسمبر | D17: =SUMIFS(التصنيع!$Q$6:$Q$15300,التصنيع!$I$6:$I$15300,D$5,التصنيع!$P$6:$P$15300,D$4,التصنيع!$A$6:$A$15300,$C17) -> 0 | E17: =SUMIFS(التصنيع!$Q$6:$Q$15300,التصنيع!$I$6:$I$15300,E$5,التصنيع!$P$6:$P$15300,D$4,التصنيع!$A$6:$A$15300,$C17) -> 0 | F17: =SUMIFS(التصنيع!$S$6:$S$15300,التصنيع!$I$6:$I$15300,F$5,التصنيع!$R$6:$R$15300,F$4,التصنيع!$A$6:$A$15300,$C17) -> 0 | G17: =SUMIFS(التصنيع!$S$6:$S$15300,التصنيع!$I$6:$I$15300,G$5,التصنيع!$R$6:$R$15300,F$4,التصنيع!$A$6:$A$15300,$C17) -> 0 | H17: =SUMIFS(التصنيع!$U$6:$U$15300,التصنيع!$I$6:$I$15300,H$5,التصنيع!$T$6:$T$15300,H$4,التصنيع!$A$6:$A$15300,$C17) -> 0 | I17: =SUMIFS(التصنيع!$U$6:$U$15300,التصنيع!$I$6:$I$15300,I$5,التصنيع!$T$6:$T$15300,H$4,التصنيع!$A$6:$A$15300,$C17) -> 0 | J17: =SUMIFS(التصنيع!$W$6:$W$15300,التصنيع!$I$6:$I$15300,J$5,التصنيع!$V$6:$V$15300,J$4,التصنيع!$A$6:$A$15300,$C17) -> 0 | K17: =SUMIFS(التصنيع!$W$6:$W$15300,التصنيع!$I$6:$I$15300,K$5,التصنيع!$V$6:$V$15300,J$4,التصنيع!$A$6:$A$15300,$C17) -> 0 | L17: =SUMIFS(التصنيع!$AA$6:$AA$15300,التصنيع!$I$6:$I$15300,L$5,التصنيع!$Z$6:$Z$15300,L$4,التصنيع!$A$6:$A$15300,$C17) -> 0 | M17: =SUMIFS(التصنيع!$AA$6:$AA$15300,التصنيع!$I$6:$I$15300,M$5,التصنيع!$Z$6:$Z$15300,L$4,التصنيع!$A$6:$A$15300,$C17) -> 0
C18: الاجمالى المحطات | D18: =SUM(D6:D17) -> 5600 | E18: =SUM(E6:E17) -> 12000 | F18: 149200 | G18: 98680 | H18: 187.034965 | I18: 124.3846154 | J18: 182.6849315 | K18: 118.5719178 | L18: =SUM(L6:L17) -> 1234.166667 | M18: 790.625
C19: الاجمالى الكلى | D19: =+D18+E18 -> 17600 | F19: =+F18+G18 -> 247880 | H19: =+H18+I18 -> 311.4195804 | J19: =+J18+K18 -> 301.2568493 | L19: =+L18+M18 -> 2024.791667

Sheet تقرير عام تصنيع
B2: =C11 -> رقم الاذن التصنيع | C2: =H11 -> المحطة التصنيع | D2: =I11 -> مهندس الجودة | E2: =J11 -> اسم الشركة | F2: =K11 -> اسم المشروع | G2: =L11 -> المحتوى | H2: التاريخ التصنيع | I2: التاريخ التصنيع
H3: =">="&B6 -> >=45433 | I3: ="<="&C6 -> <=45448
B5: التاريخ التصنيع من | C5: التاريخ التصنيع الى | E5: بيان تفصيلى للخرسانة | M5: كمية الخرسانة | N5: الوحدة | P5: اسمنت مقاوم | R5: اسمنت عادى | T5: سن1 | V5: سن2 | W5: مادة
B6: 2024-05-21 | C6: 2024-06-05 | M6: =SUBTOTAL(9,M12:M18000) -> 732 | N6: "م2" | P6: =SUBTOTAL(9,P12:P18000)/1000&"طن" -> 17.6طن | R6: =SUBTOTAL(9,R12:R18000)/1000&"طن" -> 233.48طن | T6: =SUBTOTAL(9,T12:T18000) -> 296.0629371 | V6: =SUBTOTAL(9,V12:V18000) -> 288.6815068 | W6: =SUBTOTAL(9,Z12:Z18000) -> 1934.791667
A11: م | B11: التاريخ التصنيع | C11: رقم الاذن التصنيع | D11: رقم السيارة | E11: اسم السائق | F11: ساعة الخروج | G11: ساعة الوصول | H11: المحطة التصنيع | I11: مهندس الجودة | J11: اسم الشركة | K11: اسم المشروع | L11: المحتوى | M11: كمية الخرسانة | N11: الوحدة | O11: 1 | P11: اسمنت مقاوم | Q11: 2 | R11: اسمنت عادى | S11: 3 | T11: سن1 | U11: 4 | V11: سن2 | W11: مادة إضافية | X11: مادة | Y11: 5 | Z11: اجمالى المادة
A12: 1 | B12: 2024-05-21 | C12: 5021 | D12: 2523 | E12: محمود | F12: 22:00:00 | G12: 22:25:00 | H12: محطة رقم 1 | I12: يونس | J12: الصفوة | K12: جنوبية | L12: 200 / 300 | M12: 200 | N12: "م2" | O12: اسمنت مقاوم | P12: 0 | Q12: اسمنت عادى | R12: 60000 | S12: سن1 | T12: 74.12587413 | U12: سن2 | V12: 86.98630137 | W12: 50 | X12: 541.6666667 | Y12: مادة | Z12: 591.6666667
A13: 2 | B13: 2024-05-21 | C13: 5022 | D13: 2523 | E13: محمود | F13: 22:00:00 | G13: 22:25:00 | H13: محطة رقم 2 | I13: يونس | J13: الصفوة | K13: جنوبية | L13: 180 / 260 | M13: 23 | N13: "م2" | O13: اسمنت مقاوم | P13: 0 | Q13: اسمنت عادى | R13: 5980 | S13: سن1 | T13: 10.93706294 | U13: سن2 | V13: 8.585616438 | W13: 20 | X13: 52.70833333 | Y13: مادة | Z13: 72.70833333
A14: 3 | B14: 2024-05-21 | C14: 5023 | D14: 2523 | E14: محمود | F14: 22:00:00 | G14: 22:25:00 | H14: محطة رقم 1 | I14: يونس | J14: الصفوة | K14: جنوبية | L14: 200 / 350 | M14: 12 | N14: "م2" | O14: اسمنت مقاوم | P14: 0 | Q14: اسمنت عادى | R14: 4200 | S14: سن1 | T14: 4.447552448 | U14: سن2 | V14: 5.219178082 | X14: 30 | Y14: مادة | Z14: 30
A15: 4 | B15: 2024-05-21 | C15: 5024 | D15: 2523 | E15: محمود | F15: 22:00:00 | G15: 22:25:00 | H15: محطة رقم 2 | I15: يونس | J15: الصفوة | K15: جنوبية | L15: 300 / 400 | M15: 15 | N15: "م2" | O15: اسمنت مقاوم | P15: 0 | Q15: اسمنت عادى | R15: 6000 | S15: سن1 | T15: 6.398601399 | U15: سن2 | V15: 5.239726027 | X15: 37.5 | Y15: مادة | Z15: 37.5
A16: 5 | B16: 2024-05-21 | C16: 5025 | D16: 2352 | E16: على | F16: 22:00:00 | G16: 22:25:00 | H16: محطة رقم 1 | I16: يونس | J16: الصفوة | K16: جنوبية | L16: 250 / 350 | M16: 20 | N16: "م2" | O16: اسمنت مقاوم | P16: 0 | Q16: اسمنت عادى | R16: 7000 | S16: سن1 | T16: 7.412587413 | U16: سن2 | V16: 8.698630137 | X16: 50 | Y16: مادة | Z16: 50
A17: 6 | B17: 2024-05-22 | C17: 5025 | D17: 2352 | E17: على | F17: 22:00:00 | G17: 22:25:00 | H17: محطة رقم 2 | I17: يونس | J17: الصفوة | K17: جنوبية | L17: 300/400 | M17: 30 | N17: "م2" | O17: اسمنت مقاوم | P17: 12000 | Q17: اسمنت عادى | R17: 0 | S17: سن1 | T17: 12.7972028 | U17: سن2 | V17: 10.47945205 | X17: 75 | Y17: مادة | Z17: 75
A18: 7 | B18: 2024-05-22 | C18: 5025 | D18: 2352 | E18: على | F18: 22:00:00 | G18: 22:25:00 | H18: محطة رقم 1 | I18: يونس | J18: الصفوة | K18: جنوبية | L18: 300 / 400 | M18: 40 | N18: "م2" | O18: اسمنت مقاوم | P18: 0 | Q18: اسمنت عادى | R18: 16000 | S18: سن1 | T18: 17.06293706 | U18: سن2 | V18: 13.97260274 | X18: 100 | Y18: مادة | Z18: 100
A19: 8 | B19: 2024-05-22 | C19: 5025 | D19: 2352 | E19: على | F19: 22:00:00 | G19: 22:25:00 | H19: محطة رقم 2 | I19: يونس | J19: الصفوة | K19: جنوبية | L19: 200 / 310 | M19: 50 | N19: "م2" | O19: اسمنت مقاوم | P19: 0 | Q19: اسمنت عادى | R19: 15500 | S19: سن1 | T19: 18.53146853 | U19: سن2 | V19: 21.74657534 | X19: 135.4166667 | Y19: مادة | Z19: 135.4166667
A20: 9 | B20: 2024-05-22 | C20: 5025 | D20: 2352 | E20: على | F20: 22:00:00 | G20: 22:25:00 | H20: محطة رقم 1 | I20: يونس | J20: الصفوة | K20: جنوبية | L20: 180 / 260 | M20: 60 | N20: "م2" | O20: اسمنت مقاوم | P20: 0 | Q20: اسمنت عادى | R20: 15600 | S20: سن1 | T20: 28.53146853 | U20: سن2 | V20: 22.39726027 | X20: 137.5 | Y20: مادة | Z20: 137.5
A21: 10 | B21: 2024-05-22 | C21: 5025 | D21: 2352 | E21: على | F21: 22:00:00 | G21: 22:25:00 | H21: محطة رقم 2 | I21: يونس | J21: الصفوة | K21: جنوبية | L21: 200 / 350 | M21: 70 | N21: "م2" | O21: اسمنت مقاوم | P21: 0 | Q21: اسمنت عادى | R21: 24500 | S21: سن1 | T21: 25.94405594 | U21: سن2 | V21: 30.44520548 | X21: 175 | Y21: مادة | Z21: 175
A22: 11 | B22: 2024-05-23 | C22: 5025 | D22: 2352 | E22: على | F22: 22:00:00 | G22: 22:25:00 | H22: محطة رقم 1 | I22: يونس | J22: الصفوة | K22: جنوبية | L22: 300 / 400 | M22: 20 | N22: "م2" | O22: اسمنت مقاوم | P22: 0 | Q22: اسمنت عادى | R22: 8000 | S22: سن1 | T22: 8.531468531 | U22: سن2 | V22: 6.98630137 | X22: 50 | Y22: مادة | Z22: 50
A23: 12 | B23: 2024-05-23 | C23: 5025 | D23: 2352 | E23: على | F23: 22:00:00 | G23: 22:25:00 | H23: محطة رقم 2 | I23: يونس | J23: الصفوة | K23: جنوبية | L23: 250 / 350 | M23: 10 | N23: "م2" | O23: اسمنت مقاوم | P23: 0 | Q23: اسمنت عادى | R23: 3500 | S23: سن1 | T23: 3.706293706 | U23: سن2 | V23: 4.349315068 | X23: 25 | Y23: مادة | Z23: 25
A24: 13 | B24: 2024-05-23 | C24: 5025 | D24: 2352 | E24: على | F24: 22:00:00 | G24: 22:25:00 | H24: محطة رقم 1 | I24: يونس | J24: الصفوة | K24: جنوبية | L24: 300/400 | M24: 14 | N24: "م2" | O24: اسمنت مقاوم | P24: 5600 | Q24: اسمنت عادى | R24: 0 | S24: سن1 | T24: 5.972027972 | U24: سن2 | V24: 4.890410959 | X24: 35 | Y24: مادة | Z24: 35
A25: 14 | B25: 2024-05-23 | C25: 5025 | D25: 2352 | E25: على | F25: 22:00:00 | G25: 22:25:00 | H25: محطة رقم 2 | I25: يونس | J25: الصفوة | K25: جنوبية | L25: 300 / 400 | M25: 12 | N25: "م2" | O25: اسمنت مقاوم | P25: 0 | Q25: اسمنت عادى | R25: 4800 | S25: سن1 | T25: 5.118881119 | U25: سن2 | V25: 4.191780822 | X25: 30 | Y25: مادة | Z25: 30
A26: 15 | B26: 2024-05-24 | C26: 5025 | D26: 2352 | E26: على | F26: 22:00:00 | G26: 22:25:00 | H26: محطة رقم 1 | I26: يونس | J26: الصفوة | K26: جنوبية | L26: 300 / 400 | M26: 12 | N26: "م2" | O26: اسمنت مقاوم | P26: 0 | Q26: اسمنت عادى | R26: 4800 | S26: سن1 | T26: 5.118881119 | U26: سن2 | V26: 4.191780822 | X26: 30 | Y26: مادة | Z26: 30
A27: 16 | B27: 2024-05-25 | C27: 5025 | D27: 2352 | E27: على | F27: 22:00:00 | G27: 22:25:00 | H27: محطة رقم 2 | I27: يونس | J27: الصفوة | K27: جنوبية | L27: 300 / 400 | M27: 12 | N27: "م2" | O27: اسمنت مقاوم | P27: 0 | Q27: اسمنت عادى | R27: 4800 | S27: سن1 | T27: 5.118881119 | U27: سن2 | V27: 4.191780822 | X27: 30 | Y27: مادة | Z27: 30
A28: 17 | B28: 2024-05-26 | C28: 5025 | D28: 2352 | E28: على | F28: 22:00:00 | G28: 22:25:00 | H28: محطة رقم 1 | I28: يونس | J28: الصفوة | K28: جنوبية | L28: 300 / 400 | M28: 12 | N28: "م2" | O28: اسمنت مقاوم | P28: 0 | Q28: اسمنت عادى | R28: 4800 | S28: سن1 | T28: 5.118881119 | U28: سن2 | V28: 4.191780822 | X28: 30 | Y28: مادة | Z28: 30
A29: 18 | B29: 2024-05-27 | C29: 5025 | D29: 2352 | E29: على | F29: 22:00:00 | G29: 22:25:00 | H29: محطة رقم 2 | I29: يونس | J29: الصفوة | K29: جنوبية | L29: 300 / 400 | M29: 12 | N29: "م2" | O29: اسمنت مقاوم | P29: 0 | Q29: اسمنت عادى | R29: 4800 | S29: سن1 | T29: 5.118881119 | U29: سن2 | V29: 4.191780822 | X29: 30 | Y29: مادة | Z29: 30
A30: 19 | B30: 2024-05-28 | C30: 5025 | D30: 2352 | E30: على | F30: 22:00:00 | G30: 22:25:00 | H30: محطة رقم 1 | I30: يونس | J30: الصفوة | K30: جنوبية | L30: 300 / 400 | M30: 12 | N30: "م2" | O30: اسمنت مقاوم | P30: 0 | Q30: اسمنت عادى | R30: 4800 | S30: سن1 | T30: 5.118881119 | U30: سن2 | V30: 4.191780822 | X30: 30 | Y30: مادة | Z30: 30
A31: 20 | B31: 2024-05-29 | C31: 5025 | D31: 2352 | E31: على | F31: 22:00:00 | G31: 22:25:00 | H31: محطة رقم 2 | I31: يونس | J31: الصفوة | K31: جنوبية | L31: 300 / 400 | M31: 12 | N31: "م2" | O31: اسمنت مقاوم | P31: 0 | Q31: اسمنت عادى | R31: 4800 | S31: سن1 | T31: 5.118881119 | U31: سن2 | V31: 4.191780822 | X31: 30 | Y31: مادة | Z31: 30
A32: 21 | B32: 2024-05-30 | C32: 5025 | D32: 2352 | E32: على | F32: 22:00:00 | G32: 22:25:00 | H32: محطة رقم 1 | I32: يونس | J32: الصفوة | K32: جنوبية | L32: 300 / 400 | M32: 12 | N32: "م2" | O32: اسمنت مقاوم | P32: 0 | Q32: اسمنت عادى | R32: 4800 | S32: سن1 | T32: 5.118881119 | U32: سن2 | V32: 4.191780822 | X32: 30 | Y32: مادة | Z32: 30
A33: 22 | B33: 2024-05-31 | C33: 5025 | D33: 2352 | E33: على | F33: 22:00:00 | G33: 22:25:00 | H33: محطة رقم 2 | I33: يونس | J33: الصفوة | K33: جنوبية | L33: 300 / 400 | M33: 12 | N33: "م2" | O33: اسمنت مقاوم | P33: 0 | Q33: اسمنت عادى | R33: 4800 | S33: سن1 | T33: 5.118881119 | U33: سن2 | V33: 4.191780822 | X33: 30 | Y33: مادة | Z33: 30
A34: 23 | B34: 2024-06-01 | C34: 5025 | D34: 2352 | E34: على | F34: 22:00:00 | G34: 22:25:00 | H34: محطة رقم 1 | I34: يونس | J34: الصفوة | K34: جنوبية | L34: 300 / 400 | M34: 12 | N34: "م2" | O34: اسمنت مقاوم | P34: 0 | Q34: اسمنت عادى | R34: 4800 | S34: سن1 | T34: 5.118881119 | U34: سن2 | V34: 4.191780822 | X34: 30 | Y34: مادة | Z34: 30
A35: 24 | B35: 2024-06-02 | C35: 5025 | D35: 2352 | E35: على | F35: 22:00:00 | G35: 22:25:00 | H35: محطة رقم 2 | I35: يونس | J35: الصفوة | K35: جنوبية | L35: 300 / 400 | M35: 12 | N35: "م2" | O35: اسمنت مقاوم | P35: 0 | Q35: اسمنت عادى | R35: 4800 | S35: سن1 | T35: 5.118881119 | U35: سن2 | V35: 4.191780822 | X35: 30 | Y35: مادة | Z35: 30
A36: 25 | B36: 2024-06-03 | C36: 5025 | D36: 2352 | E36: على | F36: 22:00:00 | G36: 22:25:00 | H36: محطة رقم 1 | I36: يونس | J36: الصفوة | K36: جنوبية | L36: 300 / 400 | M36: 12 | N36: "م2" | O36: اسمنت مقاوم | P36: 0 | Q36: اسمنت عادى | R36: 4800 | S36: سن1 | T36: 5.118881119 | U36: سن2 | V36: 4.191780822 | X36: 30 | Y36: مادة | Z36: 30
A37: 26 | B37: 2024-06-04 | C37: 5025 | D37: 2352 | E37: على | F37: 22:00:00 | G37: 22:25:00 | H37: محطة رقم 2 | I37: يونس | J37: الصفوة | K37: جنوبية | L37: 300 / 400 | M37: 12 | N37: "م2" | O37: اسمنت مقاوم | P37: 0 | Q37: اسمنت عادى | R37: 4800 | S37: سن1 | T37: 5.118881119 | U37: سن2 | V37: 4.191780822 | X37: 30 | Y37: مادة | Z37: 30
A38: 27 | B38: 2024-06-05 | C38: 5025 | D38: 2352 | E38: على | F38: 22:00:00 | G38: 22:25:00 | H38: محطة رقم 1 | I38: يونس | J38: الصفوة | K38: جنوبية | L38: 300 / 400 | M38: 12 | N38: "م2" | O38: اسمنت مقاوم | P38: 0 | Q38: اسمنت عادى | R38: 4800 | S38: سن1 | T38: 5.118881119 | U38: سن2 | V38: 4.191780822 | X38: 30 | Y38: مادة | Z38: 30

Sheet رصيد اجمالى
B2: الصنف | C2: المحطة | D2: تاريخ رصيد اول المدة | E2: رصيد اول المدة | F2: الوارد | G2: المنصرف | H2: الرصيد | I2: اجمالى الرصيد
B3: اسمنت عادى | C3: محطة رقم 1 | E3: 105000 | F3: =SUMIFS('التوريدات '!$J$5:$J$1900,'التوريدات '!$I$5:$I$1900,$B3,'التوريدات '!L5:L1900,$C3) -> 0 | G3: =SUMIFS(التصنيع!$S$6:$S$1900,التصنيع!$I$6:$I$1900,$C3) -> 149200 | H3: =+E3+F3-G3 -> -44200 | I3: =(H3+H4)/1000&"طن" -> 352.32طن
C4: محطة رقم 2 | E4: 120200 | F4: =SUMIFS('التوريدات '!$J$5:$J$1900,'التوريدات '!$I$5:$I$1900,$B3,'التوريدات '!$L$5:$L$1900,$C4) -> 375000 | G4: =SUMIFS(التصنيع!$S$6:$S$1900,التصنيع!$I$6:$I$1900,$C4) -> 98680 | H4: =+E4+F4-G4 -> 396520
B5: اسمنت مقاوم | C5: محطة رقم 1 | E5: 205000 | F5: =SUMIFS('التوريدات '!$J$5:$J$1900,'التوريدات '!$I$5:$I$1900,$B5,'التوريدات '!$L$5:$L$1900,$C5) -> 0 | G5: =SUMIFS(التصنيع!$Q$6:$Q$1900,التصنيع!$I$6:$I$1900,$C5) -> 5600 | H5: =+E5+F5-G5 -> 199400 | I5: =(H5+H6)/1000&"طن" -> 487.4طن
C6: محطة رقم 2 | F6: =SUMIFS('التوريدات '!$J$5:$J$1900,'التوريدات '!$I$5:$I$1900,$B5,'التوريدات '!$L$5:$L$1900,$C6) -> 300000 | G6: =SUMIFS(التصنيع!$Q$6:$Q$1900,التصنيع!$I$6:$I$1900,$C6) -> 12000 | H6: 288000
B7: سن1 | C7: محطة رقم 1 | E7: 250 | F7: =SUMIFS('التوريدات '!$J$5:$J$1900,'التوريدات '!$I$5:$I$1900,$B7,'التوريدات '!$L$5:$L$1900,$C7) -> 0 | G7: =SUMIFS(التصنيع!$U$6:$U$1900,التصنيع!$I$6:$I$1900,$C7) -> 187.034965 | H7: 62.96503497 | I7: =+H7+H8 -> 296.5804196
C8: محطة رقم 2 | E8: 233 | F8: =SUMIFS('التوريدات '!$J$5:$J$1900,'التوريدات '!$I$5:$I$1900,$B7,'التوريدات '!$L$5:$L$1900,$C8) -> 125 | G8: =SUMIFS(التصنيع!$U$6:$U$1900,التصنيع!$I$6:$I$1900,$C8) -> 124.3846154 | H8: 233.6153846
B9: سن2 | C9: محطة رقم 1 | E9: 290 | F9: =SUMIFS('التوريدات '!$J$5:$J$1900,'التوريدات '!$I$5:$I$1900,$B9,'التوريدات '!$L$5:$L$1900,$C9) -> 0 | G9: =SUMIFS(التصنيع!$W$6:$W$1900,التصنيع!$I$6:$I$1900,$C9) -> 182.6849315 | H9: 107.3150685 | I9: =+H9+H10 -> 328.7431507
C10: محطة رقم 2 | E10: 275 | F10: =SUMIFS('التوريدات '!$J$5:$J$1900,'التوريدات '!$I$5:$I$1900,$B9,'التوريدات '!$L$5:$L$1900,$C10) -> 65 | G10: =SUMIFS(التصنيع!$W$6:$W$1900,التصنيع!$I$6:$I$1900,$C10) -> 118.5719178 | H10: 221.4280822
B11: مادة | C11: محطة رقم 1 | E11: 1500 | F11: =SUMIFS('التوريدات '!$J$5:$J$1900,'التوريدات '!$I$5:$I$1900,$B11,'التوريدات '!$L$5:$L$1900,$C11) -> 0 | G11: =SUMIFS(التصنيع!$AA$6:$AA$1900,التصنيع!$I$6:$I$1900,$C11) -> 1234.166667 | H11: 265.8333333 | I11: =+H11+H12 -> 6225.208333
C12: محطة رقم 2 | E12: 1750 | F12: =SUMIFS('التوريدات '!$J$5:$J$1900,'التوريدات '!$I$5:$I$1900,$B11,'التوريدات '!$L$5:$L$1900,$C12) -> 5000 | G12: =SUMIFS(التصنيع!$AA$6:$AA$1900,التصنيع!$I$6:$I$1900,$C12) -> 790.625 | H12: 5959.375
E13: 0

Sheet بطاقة صنف اسمنت عادىة
E3: بطاقة صنف اسمنت عادى
B7: التاريخ التوريدات | C7: تاريخ التصنيع | D7: رقم اذن التوريدات | E7: اسم المورد | F7: المحطة التوريد | G7: رقم اذن التصنيع | H7: الشركة التصنيع | I7: المشروع التصنيع | J7: المحتوى التصنيع | K7: المحطة التصنيع | L7: كمية الواردة | M7: الكمية التصنيع | N7: الرصيد
N8: =+'رصيد اجمالى '!E3+'رصيد اجمالى '!E4 -> 225200
N9: =+N8+L9-M9 -> 225200
N10: =+N9+L10-M10 -> 225200
N11: 225200
N12: 225200
N13: 225200
N14: 225200
N15: 225200
N16: 225200
N17: 225200
N18: 225200
N19: 225200
N20: 225200
N21: 225200
N22: 225200
N23: 225200
N24: 225200
N25: 225200
N26: 225200
N27: 225200
N28: 225200
N29: 225200
N30: 225200
N31: 225200
N32: 225200
N33: 225200
N34: 225200
N35: 225200
N36: 225200
N37: 225200
N38: 225200
N39: 225200
N40: 225200
N41: 225200
N42: 225200
N43: 225200
N44: 225200
N45: 225200
N46: 225200
N47: 225200
N48: 225200
N49: 225200
N50: 225200
N51: 225200
N52: 225200
N53: 225200
N54: 225200
N55: 225200
N56: 225200
N57: 225200
N58: 225200
N59: 225200
N60: 225200
N61: 225200
N62: 225200
N63: 225200
N64: 225200
N65: 225200
N66: 225200
N67: 225200
N68: 225200
N69: 225200
N70: 225200
N71: 225200
N72: 225200
N73: 225200
N74: =+N73+L74-M74 -> 225200
N75: 225200
N76: 225200
N77: 225200
N78: 225200
N79: 225200
N80: 225200
N81: 225200
N82: 225200
N83: 225200
N84: 225200
N85: 225200
N86: 225200
N87: 225200
N88: 225200
N89: 225200
N90: 225200
N91: 225200
N92: 225200
N93: 225200
N94: 225200
N95: 225200
N96: 225200
N97: 225200
N98: 225200
N99: 225200
N100: 225200
N101: 225200
N102: 225200
N103: 225200
N104: 225200
N105: 225200
N106: 225200
N107: 225200
N108: 225200
N109: 225200
N110: 225200
N111: 225200
N112: 225200
N113: 225200
N114: 225200
N115: 225200
N116: 225200
N117: 225200
N118: 225200
N119: 225200
N120: 225200
N121: 225200
N122: 225200
N123: 225200
N124: 225200
N125: 225200
N126: 225200
N127: 225200
N128: 225200
N129: 225200
N130: 225200
N131: 225200
N132: 225200
N133: 225200
N134: 225200
N135: 225200
N136: 225200
N137: 225200
N138: =+N137+L138-M138 -> 225200
N139: 225200
N140: 225200
N141: 225200
N142: 225200
N143: 225200
N144: 225200
N145: 225200
N146: 225200
N147: 225200
N148: 225200
N149: 225200
N150: 225200
N151: 225200
N152: 225200
N153: 225200
N154: 225200
N155: 225200
N156: 225200
N157: 225200
N158: 225200
N159: 225200
N160: 225200
N161: 225200
N162: 225200
N163: 225200
N164: 225200
N165: 225200
N166: 225200
N167: 225200
N168: 225200
N169: 225200
N170: 225200
N171: 225200
N172: 225200
N173: 225200
N174: 225200
N175: 225200
N176: 225200
N177: 225200
N178: 225200
N179: 225200
N180: 225200
N181: 225200
N182: 225200
N183: 225200
N184: 225200
N185: 225200
N186: 225200
N187: 225200
N188: 225200
N189: 225200
N190: 225200
N191: 225200
N192: 225200
N193: 225200
N194: 225200
N195: 225200
N196: 225200
N197: 225200
N198: 225200
N199: 225200
N200: 225200
N201: 225200
N202: =+N201+L202-M202 -> 225200
N203: 225200
N204: 225200
N205: 225200
... 130 more rows

Sheet بطاقة صنف اسمنت مقاوم
E3: بطاقة صنف اسمنت مقاوم
B7: التاريخ التوريدات | C7: تاريخ التصنيع | D7: رقم اذن التوريدات | E7: اسم المورد | F7: المحطة التوريد | G7: رقم اذن التصنيع | H7: الشركة التصنيع | I7: المشروع التصنيع | J7: المحتوى التصنيع | K7: المحطة التصنيع | L7: كمية الواردة | M7: الكمية التصنيع | N7: الرصيد
N8: =+'رصيد اجمالى '!E5+'رصيد اجمالى '!E6 -> 205000
N9: =+N8+L9-M9 -> 205000
N10: =+N9+L10-M10 -> 205000
N11: 205000
N12: 205000
N13: 205000
N14: 205000
N15: 205000
N16: 205000
N17: 205000
N18: 205000
N19: 205000
N20: 205000
N21: 205000
N22: 205000
N23: 205000
N24: 205000
N25: 205000
N26: 205000
N27: 205000
N28: 205000
N29: 205000
N30: 205000
N31: 205000
N32: 205000
N33: 205000
N34: 205000
N35: 205000
N36: 205000
N37: 205000
N38: 205000
N39: 205000
N40: 205000
N41: 205000
N42: 205000
N43: 205000
N44: 205000
N45: 205000
N46: 205000
N47: 205000
N48: 205000
N49: 205000
N50: 205000
N51: 205000
N52: 205000
N53: 205000
N54: 205000
N55: 205000
N56: 205000
N57: 205000
N58: 205000
N59: 205000
N60: 205000
N61: 205000
N62: 205000
N63: 205000
N64: 205000
N65: 205000
N66: 205000
N67: 205000
N68: 205000
N69: 205000
N70: 205000
N71: 205000
N72: 205000
N73: 205000
N74: =+N73+L74-M74 -> 205000
N75: 205000
N76: 205000
N77: 205000
N78: 205000
N79: 205000
N80: 205000
N81: 205000
N82: 205000
N83: 205000
N84: 205000
N85: 205000
N86: 205000
N87: 205000
N88: 205000
N89: 205000
N90: 205000
N91: 205000
N92: 205000
N93: 205000
N94: 205000
N95: 205000
N96: 205000
N97: 205000
N98: 205000
N99: 205000
N100: 205000
N101: 205000
N102: 205000
N103: 205000
N104: 205000
N105: 205000
N106: 205000
N107: 205000
N108: 205000
N109: 205000
N110: 205000
N111: 205000
N112: 205000
N113: 205000
N114: 205000
N115: 205000
N116: 205000
N117: 205000
N118: 205000
N119: 205000
N120: 205000
N121: 205000
N122: 205000
N123: 205000
N124: 205000
N125: 205000
N126: 205000
N127: 205000
N128: 205000
N129: 205000
N130: 205000
N131: 205000
N132: 205000
N133: 205000
N134: 205000
N135: 205000
N136: 205000
N137: 205000
N138: =+N137+L138-M138 -> 205000
N139: 205000
N140: 205000
N141: 205000
N142: 205000
N143: 205000
N144: 205000
N145: 205000
N146: 205000
N147: 205000
N148: 205000
N149: 205000
N150: 205000
N151: 205000
N152: 205000
N153: 205000
N154: 205000
N155: 205000
N156: 205000
N157: 205000
N158: 205000
N159: 205000
N160: 205000
N161: 205000
N162: 205000
N163: 205000
N164: 205000
N165: 205000
N166: 205000
N167: 205000
N168: 205000
N169: 205000
N170: 205000
N171: 205000
N172: 205000
N173: 205000
N174: 205000
N175: 205000
N176: 205000
N177: 205000
N178: 205000
N179: 205000
N180: 205000
N181: 205000
N182: 205000
N183: 205000
N184: 205000
N185: 205000
N186: 205000
N187: 205000
N188: 205000
N189: 205000
N190: 205000
N191: 205000
N192: 205000
N193: 205000
N194: 205000
N195: 205000
N196: 205000
N197: 205000
N198: 205000
N199: 205000
N200: 205000
N201: 205000
N202: =+N201+L202-M202 -> 205000
N203: 205000
N204: 205000
N205: 205000
... 130 more rows

Sheet بطاقة صنف سن1
E3: بطاقة صنف سن1
B7: التاريخ التوريدات | C7: تاريخ التصنيع | D7: رقم اذن التوريدات | E7: اسم المورد | F7: المحطة التوريد | G7: رقم اذن التصنيع | H7: الشركة التصنيع | I7: المشروع التصنيع | J7: المحتوى التصنيع | K7: المحطة التصنيع | L7: كمية الواردة | M7: الكمية التصنيع | N7: الرصيد
N8: =+'رصيد اجمالى '!E7+'رصيد اجمالى '!E8 -> 483
N9: =+N8+L9-M9 -> 483
N10: =+N9+L10-M10 -> 483
N11: 483
N12: 483
N13: 483
N14: 483
N15: 483
N16: 483
N17: 483
N18: 483
N19: 483
N20: 483
N21: 483
N22: 483
N23: 483
N24: 483
N25: 483
N26: 483
N27: 483
N28: 483
N29: 483
N30: 483
N31: 483
N32: 483
N33: 483
N34: 483
N35: 483
N36: 483
N37: 483
N38: 483
N39: 483
N40: 483
N41: 483
N42: 483
N43: 483
N44: 483
N45: 483
N46: 483
N47: 483
N48: 483
N49: 483
N50: 483
N51: 483
N52: 483
N53: 483
N54: 483
N55: 483
N56: 483
N57: 483
N58: 483
N59: 483
N60: 483
N61: 483
N62: 483
N63: 483
N64: 483
N65: 483
N66: 483
N67: 483
N68: 483
N69: 483
N70: 483
N71: 483
N72: 483
N73: 483
N74: =+N73+L74-M74 -> 483
N75: 483
N76: 483
N77: 483
N78: 483
N79: 483
N80: 483
N81: 483
N82: 483
N83: 483
N84: 483
N85: 483
N86: 483
N87: 483
N88: 483
N89: 483
N90: 483
N91: 483
N92: 483
N93: 483
N94: 483
N95: 483
N96: 483
N97: 483
N98: 483
N99: 483
N100: 483
N101: 483
N102: 483
N103: 483
N104: 483
N105: 483
N106: 483
N107: 483
N108: 483
N109: 483
N110: 483
N111: 483
N112: 483
N113: 483
N114: 483
N115: 483
N116: 483
N117: 483
N118: 483
N119: 483
N120: 483
N121: 483
N122: 483
N123: 483
N124: 483
N125: 483
N126: 483
N127: 483
N128: 483
N129: 483
N130: 483
N131: 483
N132: 483
N133: 483
N134: 483
N135: 483
N136: 483
N137: 483
N138: =+N137+L138-M138 -> 483
N139: 483
N140: 483
N141: 483
N142: 483
N143: 483
N144: 483
N145: 483
N146: 483
N147: 483
N148: 483
N149: 483
N150: 483
N151: 483
N152: 483
N153: 483
N154: 483
N155: 483
N156: 483
N157: 483
N158: 483
N159: 483
N160: 483
N161: 483
N162: 483
N163: 483
N164: 483
N165: 483
N166: 483
N167: 483
N168: 483
N169: 483
N170: 483
N171: 483
N172: 483
N173: 483
N174: 483
N175: 483
N176: 483
N177: 483
N178: 483
N179: 483
N180: 483
N181: 483
N182: 483
N183: 483
N184: 483
N185: 483
N186: 483
N187: 483
N188: 483
N189: 483
N190: 483
N191: 483
N192: 483
N193: 483
N194: 483
N195: 483
N196: 483
N197: 483
N198: 483
N199: 483
N200: 483
N201: 483
N202: =+N201+L202-M202 -> 483
N203: 483
N204: 483
N205: 483
... 130 more rows

Sheet بطاقة صنف سن2
E3: بطاقة صنف سن2
B7: التاريخ التوريدات | C7: تاريخ التصنيع | D7: رقم اذن التوريدات | E7: اسم المورد | F7: المحطة التوريد | G7: رقم اذن التصنيع | H7: الشركة التصنيع | I7: المشروع التصنيع | J7: المحتوى التصنيع | K7: المحطة التصنيع | L7: كمية الواردة | M7: الكمية التصنيع | N7: الرصيد
N8: =+'رصيد اجمالى '!E9+'رصيد اجمالى '!E10 -> 565
N9: =+N8+L9-M9 -> 565
N10: =+N9+L10-M10 -> 565
N11: 565
N12: 565
N13: 565
N14: 565
N15: 565
N16: 565
N17: 565
N18: 565
N19: 565
N20: 565
N21: 565
N22: 565
N23: 565
N24: 565
N25: 565
N26: 565
N27: 565
N28: 565
N29: 565
N30: 565
N31: 565
N32: 565
N33: 565
N34: 565
N35: 565
N36: 565
N37: 565
N38: 565
N39: 565
N40: 565
N41: 565
N42: 565
N43: 565
N44: 565
N45: 565
N46: 565
N47: 565
N48: 565
N49: 565
N50: 565
N51: 565
N52: 565
N53: 565
N54: 565
N55: 565
N56: 565
N57: 565
N58: 565
N59: 565
N60: 565
N61: 565
N62: 565
N63: 565
N64: 565
N65: 565
N66: 565
N67: 565
N68: 565
N69: 565
N70: 565
N71: 565
N72: 565
N73: 565
N74: =+N73+L74-M74 -> 565
N75: 565
N76: 565
N77: 565
N78: 565
N79: 565
N80: 565
N81: 565
N82: 565
N83: 565
N84: 565
N85: 565
N86: 565
N87: 565
N88: 565
N89: 565
N90: 565
N91: 565
N92: 565
N93: 565
N94: 565
N95: 565
N96: 565
N97: 565
N98: 565
N99: 565
N100: 565
N101: 565
N102: 565
N103: 565
N104: 565
N105: 565
N106: 565
N107: 565
N108: 565
N109: 565
N110: 565
N111: 565
N112: 565
N113: 565
N114: 565
N115: 565
N116: 565
N117: 565
N118: 565
N119: 565
N120: 565
N121: 565
N122: 565
N123: 565
N124: 565
N125: 565
N126: 565
N127: 565
N128: 565
N129: 565
N130: 565
N131: 565
N132: 565
N133: 565
N134: 565
N135: 565
N136: 565
N137: 565
N138: =+N137+L138-M138 -> 565
N139: 565
N140: 565
N141: 565
N142: 565
N143: 565
N144: 565
N145: 565
N146: 565
N147: 565
N148: 565
N149: 565
N150: 565
N151: 565
N152: 565
N153: 565
N154: 565
N155: 565
N156: 565
N157: 565
N158: 565
N159: 565
N160: 565
N161: 565
N162: 565
N163: 565
N164: 565
N165: 565
N166: 565
N167: 565
N168: 565
N169: 565
N170: 565
N171: 565
N172: 565
N173: 565
N174: 565
N175: 565
N176: 565
N177: 565
N178: 565
N179: 565
N180: 565
N181: 565
N182: 565
N183: 565
N184: 565
N185: 565
N186: 565
N187: 565
N188: 565
N189: 565
N190: 565
N191: 565
N192: 565
N193: 565
N194: 565
N195: 565
N196: 565
N197: 565
N198: 565
N199: 565
N200: 565
N201: 565
N202: =+N201+L202-M202 -> 565
N203: 565
N204: 565
N205: 565
... 130 more rows

Sheet بطاقة صنف اجمالى مادة
E3: بطاقة صنف اجمالى المادة
B7: التاريخ التوريدات | C7: تاريخ التصنيع | D7: رقم اذن التوريدات | E7: اسم المورد | F7: المحطة التوريد | G7: رقم اذن التصنيع | H7: الشركة التصنيع | I7: المشروع التصنيع | J7: المحتوى التصنيع | K7: المحطة التصنيع | L7: كمية الواردة | M7: الكمية التصنيع | N7: الرصيد
N8: =+'رصيد اجمالى '!E11+'رصيد اجمالى '!E12 -> 3250
N9: =+N8+L9-M9 -> 3250
N10: =+N9+L10-M10 -> 3250
N11: 3250
N12: 3250
N13: 3250
N14: 3250
N15: 3250
N16: 3250
N17: 3250
N18: 3250
N19: 3250
N20: 3250
N21: 3250
N22: 3250
N23: 3250
N24: 3250
N25: 3250
N26: 3250
N27: 3250
N28: 3250
N29: 3250
N30: 3250
N31: 3250
N32: 3250
N33: 3250
N34: 3250
N35: 3250
N36: 3250
N37: 3250
N38: 3250
N39: 3250
N40: 3250
N41: 3250
N42: 3250
N43: 3250
N44: 3250
N45: 3250
N46: 3250
N47: 3250
N48: 3250
N49: 3250
N50: 3250
N51: 3250
N52: 3250
N53: 3250
N54: 3250
N55: 3250
N56: 3250
N57: 3250
N58: 3250
N59: 3250
N60: 3250
N61: 3250
N62: 3250
N63: 3250
N64: 3250
N65: 3250
N66: 3250
N67: 3250
N68: 3250
N69: 3250
N70: 3250
N71: 3250
N72: 3250
N73: 3250
N74: =+N73+L74-M74 -> 3250
N75: 3250
N76: 3250
N77: 3250
N78: 3250
N79: 3250
N80: 3250
N81: 3250
N82: 3250
N83: 3250
N84: 3250
N85: 3250
N86: 3250
N87: 3250
N88: 3250
N89: 3250
N90: 3250
N91: 3250
N92: 3250
N93: 3250
N94: 3250
N95: 3250
N96: 3250
N97: 3250
N98: 3250
N99: 3250
N100: 3250
N101: 3250
N102: 3250
N103: 3250
N104: 3250
N105: 3250
N106: 3250
N107: 3250
N108: 3250
N109: 3250
N110: 3250
N111: 3250
N112: 3250
N113: 3250
N114: 3250
N115: 3250
N116: 3250
N117: 3250
N118: 3250
N119: 3250
N120: 3250
N121: 3250
N122: 3250
N123: 3250
N124: 3250
N125: 3250
N126: 3250
N127: 3250
N128: 3250
N129: 3250
N130: 3250
N131: 3250
N132: 3250
N133: 3250
N134: 3250
N135: 3250
N136: 3250
N137: 3250
N138: =+N137+L138-M138 -> 3250
N139: 3250
N140: 3250
N141: 3250
N142: 3250
N143: 3250
N144: 3250
N145: 3250
N146: 3250
N147: 3250
N148: 3250
N149: 3250
N150: 3250
N151: 3250
N152: 3250
N153: 3250
N154: 3250
N155: 3250
N156: 3250
N157: 3250
N158: 3250
N159: 3250
N160: 3250
N161: 3250
N162: 3250
N163: 3250
N164: 3250
N165: 3250
N166: 3250
N167: 3250
N168: 3250
N169: 3250
N170: 3250
N171: 3250
N172: 3250
N173: 3250
N174: 3250
N175: 3250
N176: 3250
N177: 3250
N178: 3250
N179: 3250
N180: 3250
N181: 3250
N182: 3250
N183: 3250
N184: 3250
N185: 3250
N186: 3250
N187: 3250
N188: 3250
N189: 3250
N190: 3250
N191: 3250
N192: 3250
N193: 3250
N194: 3250
N195: 3250
N196: 3250
N197: 3250
N198: 3250
N199: 3250
N200: 3250
N201: 3250
N202: =+N201+L202-M202 -> 3250
N203: 3250
N204: 3250
N205: 3250
... 130 more rows
